{"text_format":"1","workbook":"xlsx","n_sheets":27,"sheets":["Maquette","récap","1-tab emplois_ETAB","2-tab_aut_budg_ETAB","2-tab_aut_budg_PRINC","2-tab_aut_budg_FU","2-tab_aut_budg_AGR","3-tab_destination_origine_ETAB","3-tab_destination_origine_PRINC","3-tab_destination_origine_AGR","4-tab_financier_ETAB","5-tab compte de tiers_ETAB","6-tab CR_TF_ETAB","6-tab CR_TF_PRINC","6-tab CR_TF_FU","6-tab CR_TF_AGR","6-tab CR_TF_SIE","7-tab Plan_tréso_ETAB","8-tab recettes_fléchées_ETAB","8-tab recettes_fléchées_PRINC","8-tab recettes_fléchées_AGR","9-tab op_pluriannuelles_ETAB","10-tab_op_pluri_détail_ETAB","11-tab_UMR_ETAB","Annexe Synthèse_ETAB","Annexe PAA_ETAB","Annexe immo_ETAB "],"not_rendered":{"charts":0,"images":0,"macros":1,"external_links":2,"defined_names":103,"comments":17,"pivot_tables":0},"unopened":[],"bounds":{"document_bytes":16777216,"sheet_cells":100000,"rows_first":2000,"rows_last":500,"rows_between":2000,"halvings":0,"cell_chars":16384,"cell_head_chars":4096},"cells_cut":0,"cells_raw":0,"read":"whole","date_system":"1900"}

{"sheet":"Maquette","index":0,"n_rows":5,"n_cols":2,"rows_kept":5,"cut":false,"hidden":false,"merged":[[1,0,1,1]]}
[]
["VARIABLES A SAISIR"]
["Année",2023]
["Budget","initial"]
["N° budget"]

{"sheet":"récap","index":1,"n_rows":25,"n_cols":4,"rows_kept":25,"cut":false,"hidden":false,"merged":[[0,1,0,3],[1,1,1,3],[17,0,18,0],[17,1,18,1],[9,0,10,0],[9,1,10,1],[6,1,8,1],[6,0,8,0],[13,1,15,1],[13,0,15,0],[17,3,18,3],[6,3,8,3],[9,3,10,3],[13,3,15,3]]}
[null,"EPSCP - synthèse des documents budgétaires"]
[]
[]
[null,"Intitulé du tableau","Périmètre","Soumission au CA"]
[]
[1,"Tableau des emplois","Budget de l'établissement","Pour vote"]
[2,"Tableau des autorisations budgétaires","Budget de l'établissement (3) = (1)+(2)","Pour vote. Pour les SIE, le vote relève du CA de l'établissement de rattachement"]
[null,null,"Budget établissement principal (1)"]
[null,null,"Fondation universitaire (2)"]
[3,"Tableau des dépenses par destination et recettes par origine","Budget de l'établissement","Pour information"]
[null,null,"Budget établissement principal"]
[4,"Tableau d'équilibre financier","Budget de l'établissement","Pour vote"]
[5,"Tableau des opération pour compte de tiers","Budget de l'établissement","Pour information"]
[6,"Tableau de situation patrimoniale (tableau compte de résultat - tableau de financement)","Budget de l'établissement (3) = (1)+(2)","Pour vote"]
[null,null,"Budget établissement principal (1)"]
[null,null,"Fondation universitaire (2)"]
[7,"Tableau présentant le plan de trésorerie","Budget de l'établissement","Pour information"]
[8,"Tableau des opérations liées aux recettes fléchées","Budget de l'établissement","Pour information"]
[null,null,"Budget établissement principal"]
[9,"Tableau des opérations pluriannuelles","Budget de l'établissement","Pour vote"]
[10,"Tableau détaillé des opérations pluriannuelles et programmation","Budget de l'établissement","Pour information"]
[11,"Tableau retraçant les moyens des unités mixtes de recherche",null,"Pour information"]
["Annexe 5","Tableau de synthèse","Budget de l'établissement"]
["Annexe 14","Plan d'actions achats prévisionnel","Budget de l'établissement"]
["Annexe 15","Annexe immobilière","Budget de l'établissement"]

{"sheet":"1-tab emplois_ETAB","index":2,"n_rows":26,"n_cols":17,"rows_kept":26,"cut":false,"hidden":false,"merged":[[0,1,0,15],[1,1,1,15],[5,5,5,8],[5,10,5,13],[5,15,6,15],[6,2,6,3],[6,5,6,8],[6,10,6,13],[3,1,3,15],[7,1,9,1],[7,2,8,2],[7,10,7,13],[7,5,7,8],[8,5,8,8],[9,5,9,8],[8,10,8,13],[9,10,9,13],[10,1,10,3],[10,5,10,8],[10,10,10,13],[12,1,12,3],[12,5,12,8],[12,10,12,13],[14,1,16,1],[14,2,15,2],[14,10,14,13],[14,5,14,8],[15,5,15,8],[16,5,16,8],[15,10,15,13],[16,10,16,13],[17,1,17,3],[17,5,17,8],[17,10,17,13],[18,1,18,3],[18,5,18,8],[18,10,18,13],[24,1,24,15],[25,1,25,16],[19,5,19,8],[20,1,20,3],[20,5,20,8],[22,1,22,15],[23,1,23,15],[19,10,19,13],[20,10,20,13]]}
[null,"Tableau 1 - Université de Bretagne Sud (0561718N) : Etablissement principal + Fondation"]
[null,{"$f":"\"Tableau des emplois présenté par l’établissement à l’appui du budget \"&Maquette!B4&\" \"&Maquette!B5&\" \"&Maquette!B3","v":"Tableau des emplois présenté par l’établissement à l’appui du budget initial  2023"}]
[]
[null,"POUR VOTE DE L'ORGANE DÉLIBÉRANT"]
[null,null,null,null,null,null,"(A)",null,null,null,null,"(B)",null,null,null,"( C ) = (A) + (B)"]
[null,null,null,null,null,"Emplois sous plafond Etat *",null,null,null,null,"Emplois financés hors SCSP",null,null,null,null,"Global"]
[null,"Catégories d'emplois","Nature des emplois",null,null,"En ETPT",null,null,null,null,"En ETPT"]
[null,"Enseignants, enseignants-chercheurs, chercheurs","Permanents","Titulaires",null,378.7,null,null,null,null,null,null,null,0,null,{"$f":"F8","v":378.7}]
[null,null,null,"CDI",null,7.5,null,null,null,null,4,null,null,null,null,{"$f":"F9+K9","v":11.5}]
[null,null,"Non permanents","CDD",null,71.78,null,null,null,null,83.25,null,null,null,null,{"$f":"F10+K10","v":155.03}]
[null,"S/total EC",null,null,null,{"$f":"SUM(F8:I10)","v":457.98},null,null,null,null,{"$f":"SUM(K9:N10)","v":87.25},null,null,null,null,{"$f":"SUM(P8:P10)","v":545.23}]
[]
[null,"Elèves fonctionnaires stagiaires des écoles nationales supérieures (ENS)",null,null,null,null,null,null,null,null,null,null,null,null,null,{"$f":"F13","v":0}]
[]
[null,"BIATSS (personnels de bibliothèques, ingénieurs, administratifs, techniques et de service)","Permanents","Titulaires",null,284.27,null,null,null,null,null,null,null,null,null,{"$f":"F15","v":284.27}]
[null,null,null,"CDI",null,23,null,null,null,null,17,null,null,null,null,{"$f":"K16+F16","v":40}]
[null,null,"Non permanents","CDD",null,61.75,null,null,null,null,120.75,null,null,null,null,{"$f":"K17+F17","v":182.5}]
[null,"S/total Biatss",null,null,null,{"$f":"SUM(F15:I17)","v":369.02},null,null,null,null,{"$f":"SUM(K16:N17)","v":137.75},null,null,null,null,{"$f":"SUM(P15:P17)","v":506.77}]
[null,"Totaux",null,null,null,{"$f":"F11+F13+F18","v":827},null,null,null,"(1)",{"$f":"K11+K18","v":225},null,null,null,null,{"$f":"P11+P13+P18","v":1052}]
[null,null,null,null,null,{"$f":"IF(F19>F21,\"! Nombre total d'emplois sous plafond > à la notification de l'Etat\",\"\")","v":""},null,null,null,null,null,null,null,null,null,"Plafond global des emplois voté par le CA **","(2)"]
[null,"Rappel du plafond des emplois fixé par l'Etat",null,null,null,830,null,null,null,"(3)"]
[null,"Note sur les modalités de renseignement du tableau"]
[null,"Ce tableau doit être annexé au budget de l'établissement et, en cas de modification, aux budgets rectificatifs. Les chiffres qu'il contient doivent être exprimés en équivalents temps plein travaillés (ETPT). Le guide de décompte des emplois élaboré par la DAF et la DGESIP précise les régles de décompte des emplois en ETPT en fonction des catégories de personnel."]
[null,"Seul est soumis au vote du conseil d'administration le plafond global des emplois (case annotée (2))"]
[null,"Le nombre total d'emplois sous plafond Etat (case annotée (1)) ne peut être supérieur au plafond des emplois Etat qui a été notifié à l'établissement et rappelé en case (3)"]
[null,"* : cf. article R719-54 du code de l'éducation : \"plafond d'emplois fixé par l'État relatif aux emplois financés par l'État\"\n** : cf. article R719-54 du code de l'éducation : \"plafond d'autorisation de l'ensemble des emplois rémunérés par l'établissement\""]

{"sheet":"2-tab_aut_budg_ETAB","index":3,"n_rows":37,"n_cols":19,"rows_kept":37,"cut":false,"hidden":false,"merged":[[0,1,0,18],[1,1,1,18],[7,13,7,18],[8,2,8,3],[8,4,8,5],[8,6,8,7],[8,10,8,11],[7,1,7,11],[8,8,8,9]]}
[null,"Tableau 2 - Université de Bretagne Sud (0561718N) : Etablissement principal + Fondation"]
[null,{"$f":"\"Autorisations budgétaires - Budget consolidé \"&Maquette!B4&\" \"&Maquette!B5&\" \"&Maquette!B3","v":"Autorisations budgétaires - Budget consolidé initial  2023"}]
[]
[]
[null,"POUR VOTE DE L'ORGANE DÉLIBÉRANT"]
[]
[]
[null,"Dépenses",null,null,null,null,null,null,null,null,null,null,null,"Recettes"]
[null,null,"Exécution N-1: BR2/2022\n",null,"Budget initial\n(a)",null,"Nouveau BR",null,"Somme des BR\n(yc nouveau BR) (b)",null,"TOTAL : dernier budget modifié\n(c) = (a) + (b)",null,null,"Exécution N-1: BR1/2021\n","Budget initial\n(d)","Nouveau BR","Somme des BR\n(yc nouveau BR) (e)","TOTAL : dernier budget modifié\n(f) = (d) + (e)"]
[null,null,"AE","CP","AE","CP","AE","CP","AE","CP","AE","CP",null,"Montants","Montants","Montants","Montants","Montants"]
[null,"Personnel",{"$f":"'2-tab_aut_budg_PRINC'!C11+'2-tab_aut_budg_FU'!C11","v":75723453.469999999},{"$f":"'2-tab_aut_budg_PRINC'!D11+'2-tab_aut_budg_FU'!D11","v":75722346.359999999},{"$f":"'2-tab_aut_budg_PRINC'!E11+'2-tab_aut_budg_FU'!E11","v":79962268},{"$f":"'2-tab_aut_budg_PRINC'!F11+'2-tab_aut_budg_FU'!F11","v":79962268},null,null,null,null,{"$f":"E11+I11","v":79962268},{"$f":"F11+J11","v":79962268},null,{"$f":"SUM(N12:N16)","v":94625620.689999998},{"$f":"SUM(O12:O16)","v":98798595.960000008},{"$f":"SUM(P12:P16)","v":0},0,{"$f":"O11+Q11","v":98798595.960000008},"Recettes globalisées"]
[null,"dont contributions employeur au CAS Pension",null,null,{"$f":"'2-tab_aut_budg_PRINC'!E12+'2-tab_aut_budg_FU'!E12","v":20016600},{"$f":"'2-tab_aut_budg_PRINC'!F12+'2-tab_aut_budg_FU'!F12","v":20016600},null,null,null,null,{"$f":"E12+I12","v":20016600},{"$f":"F12+J12","v":20016600},null,{"$f":"'2-tab_aut_budg_PRINC'!N12+'2-tab_aut_budg_FU'!N12","v":67419953},{"$f":"+'2-tab_aut_budg_PRINC'!O12+'2-tab_aut_budg_FU'!O12","v":69245984},null,null,{"$f":"O12+Q12","v":69245984},"Subvention pour charges de service public"]
[null,null,null,null,null,null,null,null,null,null,0,0,null,{"$f":"'2-tab_aut_budg_PRINC'!N13+'2-tab_aut_budg_FU'!N13","v":3237122.3},{"$f":"+'2-tab_aut_budg_PRINC'!O13+'2-tab_aut_budg_FU'!O13","v":2024516.6},null,null,2024516.6,"Autres financements de l'Etat"]
[null,null,null,null,null,null,null,null,null,null,0,0,null,{"$f":"'2-tab_aut_budg_PRINC'!N14+'2-tab_aut_budg_FU'!N14","v":600000},{"$f":"+'2-tab_aut_budg_PRINC'!O14+'2-tab_aut_budg_FU'!O14","v":626184},null,null,626184,"Fiscalité affectée"]
[null,"Fonctionnement et intervention",{"$f":"'2-tab_aut_budg_PRINC'!C15+'2-tab_aut_budg_FU'!C15","v":14395473.24},{"$f":"'2-tab_aut_budg_PRINC'!D15+'2-tab_aut_budg_FU'!D15","v":13387426.74},{"$f":"'2-tab_aut_budg_PRINC'!E15+'2-tab_aut_budg_FU'!E15","v":15692811.449999999},{"$f":"'2-tab_aut_budg_PRINC'!F15+'2-tab_aut_budg_FU'!F15","v":15152611.449999999},null,null,null,null,15692811.449999999,15152611.449999999,null,{"$f":"'2-tab_aut_budg_PRINC'!N15+'2-tab_aut_budg_FU'!N15","v":6843446.3700000001},{"$f":"+'2-tab_aut_budg_PRINC'!O15+'2-tab_aut_budg_FU'!O15","v":10106891.23},null,null,10106891.23,"Autres financements publics"]
[null,null,null,null,null,null,null,null,null,null,0,0,null,{"$f":"'2-tab_aut_budg_PRINC'!N16+'2-tab_aut_budg_FU'!N16","v":16525099.02},{"$f":"+'2-tab_aut_budg_PRINC'!O16+'2-tab_aut_budg_FU'!O16","v":16795020.130000003},null,null,16795020.130000003,"Recettes propres"]
[null,null,null,null,null,null,null,null,null,null,0,0]
[null,null,null,null,null,null,null,null,null,null,0,0,null,{"$f":"SUM(N19:N21)","v":2221464},{"$f":"SUM(O19:O21)","v":0},0,0,0,"Recettes fléchées **"]
[null,null,null,null,null,null,null,null,null,null,0,0,null,null,null,null,null,0,"Financements de l'Etat fléchés"]
[null,"Investissement",{"$f":"'2-tab_aut_budg_PRINC'!C20+'2-tab_aut_budg_FU'!C20","v":7932552.1500000004},{"$f":"'2-tab_aut_budg_PRINC'!D20+'2-tab_aut_budg_FU'!D20","v":8525126.7300000004},{"$f":"'2-tab_aut_budg_PRINC'!E20+'2-tab_aut_budg_FU'!E20","v":8959911.8000000007},{"$f":"'2-tab_aut_budg_PRINC'!F20+'2-tab_aut_budg_FU'!F20","v":7991911.7999999998},null,null,null,null,8959911.8000000007,7991911.7999999998,null,{"$f":"'2-tab_aut_budg_PRINC'!N20+'2-tab_aut_budg_FU'!N20","v":2221464},null,null,null,0,"Autres financements publics fléchés"]
[null,null,null,null,null,null,null,null,null,null,0,0,null,null,null,null,null,0,"Recettes propres fléchées"]
[null,null,null,null,null,null,null,null,null,null,0,0]
[null,"Enveloppes* destinées à des contrats de recherche",null,null,null,null,{"$f":"G24+G25+G26","v":0},0,0,0,0,0]
[null,"Personnel",null,null,null,null,null,null,null,null,{"$f":"E24+I24","v":0},{"$f":"F24+J24","v":0}]
[null,"Fonctionnement",null,null,null,null,null,null,null,null,0,0]
[null,"Investissement",null,null,null,null,null,null,null,null,0,0]
[]
[null,"TOTAL DES DÉPENSES",{"$f":"C20+C15+C11+C23","v":98051478.859999999},{"$f":"D20+D15+D11+D23","v":97634899.829999998},{"$f":"E20+E15+E11+E23","v":104614991.25},{"$f":"F20+F15+F11+F23","v":103106791.25},0,0,0,0,104614991.25,103106791.25,null,{"$f":"N11+N18","v":96847084.689999998},98798595.960000008,{"$f":"P11+P18","v":0},{"$f":"Q11+Q18","v":0},{"$f":"R11+R18","v":98798595.960000008},"TOTAL DES RECETTES"]
[]
[null,"Solde budgétaire (excédent)",null,{"$f":"IF(N28-D28>=0,N28-D28,0)","v":0},null,{"$f":"IF(O28-F28>=0,O28-F28,0)","v":0},null,{"$f":"IF(P28-H28>=0,P28-H28,0)","v":0},null,{"$f":"IF(Q28-J28>=0,Q28-J28,0)","v":0},null,{"$f":"IF(R28-L28>=0,R28-L28,0)","v":0},null,{"$f":"IF(D28-N28>0,D28-N28,0)","v":787815.1400000006},{"$f":"IF(F28-O28>0,F28-O28,0)","v":4308195.2899999917},{"$f":"IF(H28-P28>0,H28-P28,0)","v":0},{"$f":"IF(J28-Q28>0,J28-Q28,0)","v":0},{"$f":"IF(L28-R28>0,L28-R28,0)","v":4308195.2899999917},"Solde budgétaire (déficit)"]
[]
[null,"* Chaque enveloppe peut être détaillée en fonction des besoins des organismes.",null,null,{"$f":"IF('3-tab_destination_origine_ETAB'!C31=\"\",\"\",\"! Incohérence total Personnel AE avec Tab3 ETAB\")","v":""},{"$f":"IF('3-tab_destination_origine_ETAB'!D31=\"\",\"\",\"! Incohérence total Personnel CP avec Tab3 ETAB\")","v":""},null,{"$f":"IF(L24=\"\",IF(ROUND(D12,-1)<>ROUND('6-tab CR_TF_ETAB'!B10,-1),\"! Incohérence pensions civ. N-1 Tab6 ETAB\",\"\"),\"\")","v":""},{"$f":"IF('7-tab Plan_tréso_ETAB'!P30=\"\",\"\",\"! Incohérence total Personnel CP avec Tab7\")","v":""},null,{"$f":"IF(ROUND(K28,-1)=ROUND(#REF!+'2-tab_aut_budg_AGR'!K28,-1),\"\",\"! Pb agrégat dépenses AE\")","v":{"$error":"#REF!"}},{"$f":"IF(AND(CONTROLES_TAB3_3_ETAB=\"\",CONTROLES_TAB3_4_ETAB=\"\"),\"\",\"! Incohérence solde budgétaire Tab3 ETAB\")","v":""},null,{"$f":"IF('3-tab_destination_origine_ETAB'!C53=\"\",\"\",\"! Incohérence Subv charges serv public avec Tab3 ETAB\")","v":""},{"$f":"IF('3-tab_destination_origine_ETAB'!D53=\"\",\"\",\"! Incohérence Autres financ. Etat avec Tab3 ETAB\")","v":""},{"$f":"IF('7-tab Plan_tréso_ETAB'!P10=\"\",\"\",\"! Incohérence Subv service public Tab7\")","v":""},{"$f":"IF('7-tab Plan_tréso_ETAB'!P16=\"\",\"\",\"! Incohérence Financ Etat fléchés Tab7\")","v":""},{"$f":"IF(ROUND(R19,-1)<>ROUND('8-tab recettes_fléchées_ETAB'!D13,-1),\"! Incohérence Financ. Etat fléchés avec Tab8 ETAB\",\"\")","v":""}]
[null,"** Montant issu du tableau \"Opérations sur recettes fléchées\" (tableau 8)",null,null,{"$f":"IF('3-tab_destination_origine_ETAB'!E31=\"\",\"\",\"! Incohérence total Fonct AE avec Tab3 ETAB\")","v":""},{"$f":"IF('3-tab_destination_origine_ETAB'!F31=\"\",\"\",\"! Incohérence total Fonct CP avec Tab3 ETAB\")","v":""},null,{"$f":"IF(L24=\"\",IF(ROUND(F12,-1)<>ROUND('6-tab CR_TF_ETAB'!C10,-1),\"! Incohérence pensions civ. BI Tab6 ETAB\",\"\"),\"\")","v":""},{"$f":"IF('7-tab Plan_tréso_ETAB'!P31=\"\",\"\",\"! Incohérence total Fonct CP avec Tab 7\")","v":""},null,{"$f":"IF(ROUND(L28,-1)=ROUND(#REF!+'2-tab_aut_budg_AGR'!L28,-1),\"\",\"! Pb agrégat dépenses CP\")","v":{"$error":"#REF!"}},{"$f":"IF(COUNTA(CONTROLES_TAB4)-COUNTIF(CONTROLES_TAB4_1,\"\")-COUNTIF(CONTROLES_TAB4_2,\"\")=0,\"\",\"! Incohérence solde budgétaire avec tab4\")","v":"! Incohérence solde budgétaire avec tab4"},null,{"$f":"IF('3-tab_destination_origine_ETAB'!E53=\"\",\"\",\"! Incohérence Fiscalité affectée avec Tab3 ETAB\")","v":""},{"$f":"IF('3-tab_destination_origine_ETAB'!F531=\"\",\"\",\"! Incohérence Autres financements publics avec Tab3 ETAB\")","v":""},{"$f":"IF('7-tab Plan_tréso_ETAB'!P11=\"\",\"\",\"! Incohérence Autres financ Etat Tab7\")","v":""},{"$f":"IF('7-tab Plan_tréso_ETAB'!P17=\"\",\"\",\"! Incohérence Autres financ fléchés Tab7\")","v":""},{"$f":"IF(ROUND(R20,-1)<>ROUND('8-tab recettes_fléchées_ETAB'!D14,-1),\"! Incohérence Autres financ. publics fléchés avec Tab8 ETAB\",\"\")","v":""}]
[null,null,null,null,{"$f":"IF('3-tab_destination_origine_ETAB'!G31=\"\",\"\",\"! Incohérence total Invest AE avec Tab3 ETAB\")","v":""},{"$f":"IF('3-tab_destination_origine_ETAB'!H31=\"\",\"\",\"! Incohérence total Invest CP avec Tab3 ETAB\")","v":""},null,{"$f":"IF(L24=\"\",IF(ROUND(H12,-1)<>ROUND('6-tab CR_TF_ETAB'!D10,-1),\"! Incohérence pensions civ. BR Tab6 ETAB\",\"\"),\"\")","v":""},{"$f":"IF('7-tab Plan_tréso_ETAB'!P33=\"\",\"\",\"! Incohérence total Invest. CP avec Tab 7\")","v":""},null,{"$f":"IF(ROUND(R28,-1)=ROUND(#REF!+'2-tab_aut_budg_AGR'!R28,-1),\"\",\"! Pb agrégat total recettes\")","v":{"$error":"#REF!"}},null,null,{"$f":"IF('3-tab_destination_origine_ETAB'!G53=\"\",\"\",\"! Incohérence Recettes propres avec Tab3 ETAB\")","v":""},{"$f":"IF('3-tab_destination_origine_ETAB'!H53=\"\",\"\",\"! Incohérence Financements Etat fléchés avec Tab3 ETAB\")","v":""},{"$f":"IF('7-tab Plan_tréso_ETAB'!P12=\"\",\"\",\"! Incohérence Fiscalité affectée Tab7\")","v":""},{"$f":"IF('7-tab Plan_tréso_ETAB'!P18=\"\",\"\",\"! Incohérence Recettes propres fléchées Tab7\")","v":""},{"$f":"IF(ROUND(R21,-1)<>ROUND('8-tab recettes_fléchées_ETAB'!D15,-1),\"! Incohérence Recettes propres fléchées avec Tab8 ETAB\",\"\")","v":""}]
[null,null,null,null,{"$f":"\"Exécution N-1 : Différence charges de personnel entre tableau 2 et tableau 6 est de : \"&'6-tab CR_TF_ETAB'!B9-ROUND('2-tab_aut_budg_ETAB'!D11+'2-tab_aut_budg_ETAB'!D24,-1)","v":"Exécution N-1 : Différence charges de personnel entre tableau 2 et tableau 6 est de : -791601,230000004"},null,null,{"$f":"IF(L24=\"\",IF(ROUND(J12,-1)<>ROUND('6-tab CR_TF_ETAB'!E10,-1),\"! Incohérence pensions civ. total BR Tab6 ETAB\",\"\"),\"\")","v":""},null,null,null,null,null,{"$f":"IF('3-tab_destination_origine_ETAB'!I53=\"\",\"\",\"! Incohérence Autres financ. fléchés avec Tab3 ETAB\")","v":""},{"$f":"IF('3-tab_destination_origine_ETAB'!J53=\"\",\"\",\"! Incohérence Recettes propres fléchées avec Tab3 ETAB\")","v":""},{"$f":"IF('7-tab Plan_tréso_ETAB'!P13=\"\",\"\",\"! Incohérence Autres financ publ Tab7\")","v":""}]
[null,null,null,null,{"$f":"\"BI : Différence charges de personnel entre tableau 2 et tableau 6 est de : \"&'6-tab CR_TF_ETAB'!C9-ROUND('2-tab_aut_budg_ETAB'!F11+'2-tab_aut_budg_ETAB'!F24,-1)","v":"BI : Différence charges de personnel entre tableau 2 et tableau 6 est de : -839583"},null,null,null,null,null,null,null,null,null,null,{"$f":"IF('7-tab Plan_tréso_ETAB'!P14=\"\",\"\",\"! Incohérence Recettes propres Tab7\")","v":""}]
[null,null,null,null,{"$f":"\"Budget BI+BR : Différence charges de personnel entre tableau 2 et tableau 6 est de : \"&'6-tab CR_TF_ETAB'!F9-ROUND('2-tab_aut_budg_ETAB'!L11+'2-tab_aut_budg_ETAB'!L24,-1)","v":"Budget BI+BR : Différence charges de personnel entre tableau 2 et tableau 6 est de : -839583"}]

{"sheet":"2-tab_aut_budg_PRINC","index":4,"n_rows":37,"n_cols":19,"rows_kept":37,"cut":false,"hidden":false,"merged":[[0,1,0,18],[1,1,1,18],[7,1,7,11],[7,13,7,18],[8,2,8,3],[8,4,8,5],[8,6,8,7],[8,8,8,9],[8,10,8,11]]}
[null,"Tableau 2 - Université de Bretagne Sud (0561718N) : Etablissement principal"]
[null,{"$f":"\"Autorisations budgétaires - Budget \"&Maquette!B4&\" \"&Maquette!B5&\" \"&Maquette!B3","v":"Autorisations budgétaires - Budget initial  2023"}]
[]
[]
[null,"POUR VOTE DE L'ORGANE DÉLIBÉRANT"]
[]
[]
[null,"Dépenses",null,null,null,null,null,null,null,null,null,null,null,"Recettes"]
[null,null,"Exécution N-1: BR2/2022\n",null,"Budget initial\n(a)",null,"Nouveau BR",null,"Somme des BR\n(yc nouveau BR) (b)",null,"TOTAL : dernier budget modifié\n(c) = (a) + (b)",null,null,"Exécution N-1: BR2/2022\n","Budget initial\n(d)","Nouveau BR","Somme des BR\n(yc nouveau BR) (e)","TOTAL : dernier budget modifié\n(f) = (d) + (e)"]
[null,null,"AE","CP","AE","CP","AE","CP","AE","CP","AE","CP",null,"Montants","Montants","Montants","Montants","Montants"]
[null,"Personnel",75609975.230000004,75608868.120000005,79729668,79729668,null,null,null,null,{"$f":"E11+I11","v":79729668},{"$f":"F11+J11","v":79729668},null,{"$f":"SUM(N12:N16)","v":94307688.689999998},{"$f":"SUM(O12:O16)","v":98351237.959999993},{"$f":"SUM(P12:P16)","v":0},0,{"$f":"O11+Q11","v":98351237.959999993},"Recettes globalisées"]
[null,"dont contributions employeur au CAS Pension",19827314,19827314,20016600,20016600,null,null,null,null,{"$f":"E12+I12","v":20016600},20016600,null,67419953,69245984,null,null,{"$f":"O12+Q12","v":69245984},"Subvention pour charges de service public"]
[null,null,0,0,null,null,null,null,null,null,0,0,null,3217669.3,2024516.6,null,null,2024516.6,"Autres financements de l'Etat"]
[null,null,0,0,null,null,null,null,null,null,0,0,null,600000,626184,null,null,626184,"Fiscalité affectée"]
[null,"Fonctionnement et intervention",14252376.359999999,13238588.859999999,15467811.449999999,14932611.449999999,null,null,null,null,15467811.449999999,14932611.449999999,null,6783379.3700000001,10047891.23,null,null,10047891.23,"Autres financements publics"]
[null,null,0,0,null,null,null,null,null,null,0,0,null,16286687.02,16406662.130000001,null,null,16406662.130000001,"Recettes propres"]
[null,null,0,0,null,null,null,null,null,null,0,0]
[null,null,0,0,null,null,null,null,null,null,0,0,null,{"$f":"SUM(N19:N21)","v":2221464},{"$f":"SUM(O19:O21)","v":0},0,0,0,"Recettes fléchées **"]
[null,null,0,0,null,null,null,null,null,null,0,0,null,null,null,null,null,0,"Financements de l'Etat fléchés"]
[null,"Investissement",7930552.1500000004,8523126.7300000004,8898911.8000000007,7935911.7999999998,null,null,null,null,8898911.8000000007,7935911.7999999998,null,2221464,null,null,null,0,"Autres financements publics fléchés"]
[null,null,null,null,null,null,null,null,null,null,0,0,null,null,null,null,null,0,"Recettes propres fléchées"]
[null,null,null,null,null,null,null,null,null,null,0,0]
[null,"Enveloppes* destinées à des contrats de recherche",{"$f":"C24+C25+C26","v":0},{"$f":"D24+D25+D26","v":0},{"$f":"E24+E25+E26","v":0},{"$f":"F24+F25+F26","v":0},0,0,0,0,0,0]
[null,"Personnel",null,null,null,null,null,null,null,null,0,0]
[null,"Fonctionnement",null,null,null,null,null,null,null,null,0,0]
[null,"Investissement",null,null,null,null,null,null,null,null,0,0]
[]
[null,"TOTAL DES DÉPENSES",{"$f":"C20+C15+C11+C23","v":97792903.74000001},{"$f":"D20+D15+D11+D23","v":97370583.710000008},{"$f":"E20+E15+E11+E23","v":104096391.25},{"$f":"F20+F15+F11+F23","v":102598191.25},0,0,0,0,{"$f":"K20+K15+K11+K23","v":104096391.25},{"$f":"L20+L15+L11+L23","v":102598191.25},null,{"$f":"N11+N18","v":96529152.689999998},98351237.959999993,{"$f":"P11+P18","v":0},{"$f":"Q11+Q18","v":0},{"$f":"R11+R18","v":98351237.959999993},"TOTAL DES RECETTES"]
[]
[null,"Solde budgétaire (excédent)",null,{"$f":"IF(N28-D28>=0,N28-D28,0)","v":0},null,{"$f":"IF(O28-F28>=0,O28-F28,0)","v":0},null,{"$f":"IF(P28-H28>=0,P28-H28,0)","v":0},null,{"$f":"IF(Q28-J28>=0,Q28-J28,0)","v":0},null,{"$f":"IF(R28-L28>=0,R28-L28,0)","v":0},null,{"$f":"IF(D28-N28>0,D28-N28,0)","v":841431.02000001073},{"$f":"IF(F28-O28>0,F28-O28,0)","v":4246953.2900000066},{"$f":"IF(H28-P28>0,H28-P28,0)","v":0},{"$f":"IF(J28-Q28>0,J28-Q28,0)","v":0},{"$f":"IF(L28-R28>0,L28-R28,0)","v":4246953.2900000066},"Solde budgétaire (déficit)"]
[]
[null,"* Chaque enveloppe peut être détaillée en fonction des besoins des organismes.",null,null,null,null,null,null,null,null,null,null,null,null,null,null,null,{"$f":"IF(ROUND(R19,-1)<>ROUND('8-tab recettes_fléchées_PRINC'!D13,-1),\"! Incohérence Financ. Etat fléchés avec Tab8 PRINC\",\"\")","v":""}]
[null,"** Montant issu du tableau \"Opérations sur recettes fléchées\" (tableau 8)",null,null,null,null,null,null,null,null,null,null,null,null,null,null,null,{"$f":"IF(ROUND(R20,-1)<>ROUND('8-tab recettes_fléchées_PRINC'!D14,-1),\"! Incohérence Autres financ. publics fléchés avec Tab8 PRINC\",\"\")","v":""}]
[null,null,null,null,null,null,null,null,null,null,null,null,null,null,null,null,null,{"$f":"IF(ROUND(R21,-1)<>ROUND('8-tab recettes_fléchées_PRINC'!D15,-1),\"! Incohérence Recettes propres fléchées avec Tab8 PRINC\",\"\")","v":""}]
[]
[null,null,null,null,{"$f":"\"BI : Différence charges de personnel entre tableau 2 et tableau 6 est de : \"&'6-tab CR_TF_PRINC'!C9-ROUND('2-tab_aut_budg_PRINC'!F11+'2-tab_aut_budg_PRINC'!F24,-1)","v":"BI : Différence charges de personnel entre tableau 2 et tableau 6 est de : -837164"}]
[null,null,null,null,{"$f":"\"Budget BI+BR : Différence charges de personnel entre tableau 2 et tableau 6 est de : \"&'6-tab CR_TF_PRINC'!F9-ROUND('2-tab_aut_budg_PRINC'!L11+'2-tab_aut_budg_PRINC'!L24,-1)","v":"Budget BI+BR : Différence charges de personnel entre tableau 2 et tableau 6 est de : -837164"}]

{"sheet":"2-tab_aut_budg_FU","index":5,"n_rows":37,"n_cols":19,"rows_kept":37,"cut":false,"hidden":false,"merged":[[0,1,0,18],[1,1,1,18],[7,1,7,11],[7,13,7,18],[8,2,8,3],[8,4,8,5],[8,6,8,7],[8,8,8,9],[8,10,8,11]]}
[null,"Tableau 2 - Université de Bretagne Sud (0561718N) : Fondation"]
[null,{"$f":"\"Autorisations budgétaires - Budget \"&Maquette!B4&\" \"&Maquette!B5&\" \"&Maquette!B3","v":"Autorisations budgétaires - Budget initial  2023"}]
[]
[]
[null,"POUR VOTE DE L'ORGANE DÉLIBÉRANT"]
[]
[]
[null,"Dépenses",null,null,null,null,null,null,null,null,null,null,null,"Recettes"]
[null,null,"Exécution N-1: BR2/2022\n",null,"Budget initial\n(a)",null,"Nouveau BR",null,"Somme des BR\n(yc nouveau BR) (b)",null,"TOTAL : dernier budget modifié\n(c) = (a) + (b)",null,null,"Exécution N-1: BR2/2022\n","Budget initial\n(d)","Nouveau BR","Somme des BR\n(yc nouveau BR) (e)","TOTAL : dernier budget modifié\n(f) = (d) + (e)"]
[null,null,"AE","CP","AE","CP","AE","CP","AE","CP","AE","CP",null,"Montants","Montants","Montants","Montants","Montants"]
[null,"Personnel",113478.24,113478.24,232600,232600,null,null,null,null,{"$f":"E11+I11","v":232600},{"$f":"F11+J11","v":232600},null,{"$f":"SUM(N12:N16)","v":317932},{"$f":"SUM(O12:O16)","v":447358},{"$f":"SUM(P12:P16)","v":0},0,{"$f":"O11+Q11","v":447358},"Recettes globalisées"]
[null,"dont contributions employeur au CAS Pension",0,0,null,null,null,null,null,null,{"$f":"E12+I12","v":0},0,null,0,null,null,null,{"$f":"O12+Q12","v":0},"Subvention pour charges de service public"]
[null,null,0,0,null,null,null,null,null,null,0,0,null,19453,null,null,null,0,"Autres financements de l'Etat"]
[null,null,0,0,null,null,null,null,null,null,0,0,null,0,null,null,null,0,"Fiscalité affectée"]
[null,"Fonctionnement et intervention",143096.88,148837.88,225000,220000,null,null,null,null,225000,220000,null,60067,59000,null,null,59000,"Autres financements publics"]
[null,null,0,0,null,null,null,null,null,null,0,0,null,238412,388358,null,null,388358,"Recettes propres"]
[null,null,0,0,null,null,null,null,null,null,0,0]
[null,null,0,0,null,null,null,null,null,null,0,0,null,{"$f":"SUM(N19:N21)","v":0},{"$f":"SUM(O19:O21)","v":0},0,0,0,"Recettes fléchées **"]
[null,null,0,0,null,null,null,null,null,null,0,0,null,null,null,null,null,0,"Financements de l'Etat fléchés"]
[null,"Investissement",2000,2000,61000,56000,null,null,null,null,61000,56000,null,null,null,null,null,0,"Autres financements publics fléchés"]
[null,null,null,null,null,null,null,null,null,null,0,0,null,null,null,null,null,0,"Recettes propres fléchées"]
[null,null,null,null,null,null,null,null,null,null,0,0]
[null,"Enveloppes* destinées à des contrats de recherche",{"$f":"C24+C25+C26","v":0},{"$f":"D24+D25+D26","v":0},{"$f":"E24+E25+E26","v":0},{"$f":"F24+F25+F26","v":0},0,0,0,0,0,0]
[null,"Personnel",null,null,null,null,null,null,null,null,0,0]
[null,"Fonctionnement",null,null,null,null,null,null,null,null,0,0]
[null,"Investissement",null,null,null,null,null,null,null,null,0,0]
[]
[null,"TOTAL DES DÉPENSES",{"$f":"C20+C15+C11+C23","v":258575.12},{"$f":"D20+D15+D11+D23","v":264316.12},{"$f":"E20+E15+E11+E23","v":518600},{"$f":"F20+F15+F11+F23","v":508600},0,0,0,0,{"$f":"K20+K15+K11+K23","v":518600},{"$f":"L20+L15+L11+L23","v":508600},null,{"$f":"N11+N18","v":317932},447358,{"$f":"P11+P18","v":0},{"$f":"Q11+Q18","v":0},{"$f":"R11+R18","v":447358},"TOTAL DES RECETTES"]
[]
[null,"Solde budgétaire (excédent)",null,{"$f":"IF(N28-D28>=0,N28-D28,0)","v":53615.880000000005},null,{"$f":"IF(O28-F28>=0,O28-F28,0)","v":0},null,{"$f":"IF(P28-H28>=0,P28-H28,0)","v":0},null,{"$f":"IF(Q28-J28>=0,Q28-J28,0)","v":0},null,{"$f":"IF(R28-L28>=0,R28-L28,0)","v":0},null,{"$f":"IF(D28-N28>0,D28-N28,0)","v":0},{"$f":"IF(F28-O28>0,F28-O28,0)","v":61242},{"$f":"IF(H28-P28>0,H28-P28,0)","v":0},{"$f":"IF(J28-Q28>0,J28-Q28,0)","v":0},{"$f":"IF(L28-R28>0,L28-R28,0)","v":61242},"Solde budgétaire (déficit)"]
[]
[null,"* Chaque enveloppe peut être détaillée en fonction des besoins des organismes.",null,null,null,null,null,{"$f":"IF(L24=\"\",IF(ROUND(D12,-1)<>ROUND('6-tab CR_TF_FU'!B10,-1),\"! Incohérence pensions civ. N-1 Tab6 FU\",\"\"),\"\")","v":""}]
[null,"** Montant issu du tableau \"Opérations sur recettes fléchées\" (tableau 8)",null,null,null,null,null,{"$f":"IF(L24=\"\",IF(ROUND(F12,-1)<>ROUND('6-tab CR_TF_FU'!C10,-1),\"! Incohérence pensions civ. BI Tab6 FU\",\"\"),\"\")","v":""}]
[null,null,null,null,null,null,null,{"$f":"IF(L24=\"\",IF(ROUND(H12,-1)<>ROUND('6-tab CR_TF_FU'!D10,-1),\"! Incohérence pensions civ. BR Tab6 FU\",\"\"),\"\")","v":""}]
[null,null,null,null,{"$f":"\"Exécution N-1 : Différence charges de personnel entre tableau 2 et tableau 6 est de : \"&'6-tab CR_TF_FU'!B9-ROUND('2-tab_aut_budg_FU'!D11+'2-tab_aut_budg_FU'!D24,-1)","v":"Exécution N-1 : Différence charges de personnel entre tableau 2 et tableau 6 est de : -2896,75999999999"},null,null,{"$f":"IF(L24=\"\",IF(ROUND(J12,-1)<>ROUND('6-tab CR_TF_FU'!E10,-1),\"! Incohérence pensions civ. total BR Tab6 FU\",\"\"),\"\")","v":""}]
[null,null,null,null,{"$f":"\"BI : Différence charges de personnel entre tableau 2 et tableau 6 est de : \"&'6-tab CR_TF_FU'!C9-ROUND('2-tab_aut_budg_FU'!F11+'2-tab_aut_budg_FU'!F24,-1)","v":"BI : Différence charges de personnel entre tableau 2 et tableau 6 est de : -2419"}]
[null,null,null,null,{"$f":"\"Budget BI+BR : Différence charges de personnel entre tableau 2 et tableau 6 est de : \"&'6-tab CR_TF_FU'!F9-ROUND('2-tab_aut_budg_FU'!L11+'2-tab_aut_budg_FU'!L24,-1)","v":"Budget BI+BR : Différence charges de personnel entre tableau 2 et tableau 6 est de : -2419"}]

{"sheet":"2-tab_aut_budg_AGR","index":6,"n_rows":37,"n_cols":19,"rows_kept":37,"cut":false,"hidden":true,"merged":[[0,1,0,18],[1,1,1,18],[7,1,7,11],[7,13,7,18],[8,2,8,3],[8,4,8,5],[8,6,8,7],[8,8,8,9],[8,10,8,11]]}
[null,"Tableau 2 - Université de Bretagne Sud (0561718N) : Etablissement principal + Fondation"]
[null,{"$f":"\"Autorisations budgétaires - Budget agrégé \"&Maquette!B4&\" \"&Maquette!B5&\" \"&Maquette!B3","v":"Autorisations budgétaires - Budget agrégé initial  2023"}]
[]
[]
[null,"POUR VOTE DE L'ORGANE DÉLIBÉRANT"]
[]
[]
[null,"Dépenses",null,null,null,null,null,null,null,null,null,null,null,"Recettes"]
[null,null,"Exécution N-1",null,"Budget initial\n(a)",null,"Nouveau BR",null,"Somme des BR\n(yc nouveau BR) (b)",null,"TOTAL : dernier budget modifié\n(c) = (a) + (b)",null,null,"Exécution N-1","Budget initial\n(d)","Nouveau BR","Somme des BR\n(yc nouveau BR) (e)","TOTAL : dernier budget modifié\n(f) = (d) + (e)"]
[null,null,"AE","CP","AE","CP","AE","CP","AE","CP","AE","CP",null,"Montants","Montants","Montants","Montants","Montants"]
[null,"Personnel",null,null,null,null,null,null,null,null,{"$f":"E11+I11","v":0},{"$f":"F11+J11","v":0},null,{"$f":"SUM(N12:N16)","v":0},{"$f":"SUM(O12:O16)","v":0},{"$f":"SUM(P12:P16)","v":0},0,{"$f":"O11+Q11","v":0},"Recettes globalisées"]
[null,"dont contributions employeur au CAS Pension",null,null,null,null,null,null,null,null,{"$f":"E12+I12","v":0},0,null,null,null,null,null,{"$f":"O12+Q12","v":0},"Subvention pour charges de service public"]
[null,null,null,null,null,null,null,null,null,null,0,0,null,null,null,null,null,0,"Autres financements de l'Etat"]
[null,null,null,null,null,null,null,null,null,null,0,0,null,null,null,null,null,0,"Fiscalité affectée"]
[null,"Fonctionnement et intervention",null,null,null,null,null,null,null,null,0,0,null,null,null,null,null,0,"Autres financements publics"]
[null,null,null,null,null,null,null,null,null,null,0,0,null,null,null,null,null,0,"Recettes propres"]
[null,null,null,null,null,null,null,null,null,null,0,0]
[null,null,null,null,null,null,null,null,null,null,0,0,null,{"$f":"SUM(N19:N21)","v":0},{"$f":"SUM(O19:O21)","v":0},0,0,0,"Recettes fléchées **"]
[null,null,null,null,null,null,null,null,null,null,0,0,null,null,null,null,null,0,"Financements de l'Etat fléchés"]
[null,"Investissement",null,null,null,null,null,null,null,null,0,0,null,null,null,null,null,0,"Autres financements publics fléchés"]
[null,null,null,null,null,null,null,null,null,null,0,0,null,null,null,null,null,0,"Recettes propres fléchées"]
[null,null,null,null,null,null,null,null,null,null,0,0]
[null,"Enveloppes* destinées à des contrats de recherche",{"$f":"C24+C25+C26","v":0},{"$f":"D24+D25+D26","v":0},{"$f":"E24+E25+E26","v":0},{"$f":"F24+F25+F26","v":0},0,0,0,0,0,0]
[null,"Personnel",null,null,null,null,null,null,null,null,0,0]
[null,"Fonctionnement",null,null,null,null,null,null,null,null,0,0]
[null,"Investissement",null,null,null,null,null,null,null,null,0,0]
[]
[null,"TOTAL DES DÉPENSES",{"$f":"C20+C15+C11+C23","v":0},{"$f":"D20+D15+D11+D23","v":0},{"$f":"E20+E15+E11+E23","v":0},{"$f":"F20+F15+F11+F23","v":0},0,0,0,0,0,0,null,{"$f":"N11+N18","v":0},0,{"$f":"P11+P18","v":0},{"$f":"Q11+Q18","v":0},{"$f":"R11+R18","v":0},"TOTAL DES RECETTES"]
[]
[null,"Solde budgétaire (excédent)",null,{"$f":"IF(N28-D28>=0,N28-D28,0)","v":0},null,{"$f":"IF(O28-F28>=0,O28-F28,0)","v":0},null,{"$f":"IF(P28-H28>=0,P28-H28,0)","v":0},null,{"$f":"IF(Q28-J28>=0,Q28-J28,0)","v":0},null,{"$f":"IF(R28-L28>=0,R28-L28,0)","v":0},null,{"$f":"IF(D28-N28>0,D28-N28,0)","v":0},{"$f":"IF(F28-O28>0,F28-O28,0)","v":0},{"$f":"IF(H28-P28>0,H28-P28,0)","v":0},{"$f":"IF(J28-Q28>0,J28-Q28,0)","v":0},{"$f":"IF(L28-R28>0,L28-R28,0)","v":0},"Solde budgétaire (déficit)"]
[]
[null,"* Chaque enveloppe peut être détaillée en fonction des besoins des organismes.",null,null,{"$f":"IF('3-tab_destination_origine_AGR'!C31=\"\",\"\",\"! Incohérence total Personnel AE avec Tab3 AGR\")","v":""},{"$f":"IF('3-tab_destination_origine_AGR'!D31=\"\",\"\",\"! Incohérence total Personnel CP avec Tab3 AGR\")","v":""},null,{"$f":"IF(L24=\"\",IF(ROUND(D12,-1)<>ROUND('6-tab CR_TF_AGR'!B10,-1),\"! Incohérence pensions civ. N-1 Tab6 AGR\",\"\"),\"\")","v":""},null,null,{"$f":"IF(ROUND(K28,-1)=ROUND('2-tab_aut_budg_PRINC'!K28+'2-tab_aut_budg_FU'!K28,-1),\"\",\"! Pb agrégat dépenses AE\")","v":"! Pb agrégat dépenses AE"},{"$f":"IF(AND(CONTROLES_TAB3_3_AGR=\"\",CONTROLES_TAB3_4_AGR=\"\"),\"\",\"! Incohérence solde budgétaire Tab3 AGR\")","v":""},null,{"$f":"IF('3-tab_destination_origine_AGR'!C53=\"\",\"\",\"! Incohérence Subv charges serv public avec Tab3 AGR\")","v":""},{"$f":"IF('3-tab_destination_origine_AGR'!D53=\"\",\"\",\"! Incohérence Autres financ. Etat avec Tab3 AGR\")","v":""},null,null,{"$f":"IF(ROUND(R19,-1)<>ROUND('8-tab recettes_fléchées_AGR'!D13,-1),\"! Incohérence Financ. Etat fléchés avec Tab8 AGR\",\"\")","v":""}]
[null,"** Montant issu du tableau \"Opérations sur recettes fléchées\" (tableau 8)",null,null,{"$f":"IF('3-tab_destination_origine_AGR'!E31=\"\",\"\",\"! Incohérence total Fonct AE avec Tab3 AGR\")","v":""},{"$f":"IF('3-tab_destination_origine_AGR'!F31=\"\",\"\",\"! Incohérence total Fonct CP avec Tab3 AGR\")","v":""},null,{"$f":"IF(L24=\"\",IF(ROUND(F12,-1)<>ROUND('6-tab CR_TF_AGR'!C10,-1),\"! Incohérence pensions civ. BI Tab6 AGR\",\"\"),\"\")","v":""},null,null,{"$f":"IF(ROUND(L28,-1)=ROUND('2-tab_aut_budg_PRINC'!L28+'2-tab_aut_budg_FU'!L28,-1),\"\",\"! Pb agrégat dépenses CP\")","v":"! Pb agrégat dépenses CP"},null,null,{"$f":"IF('3-tab_destination_origine_AGR'!E53=\"\",\"\",\"! Incohérence Fiscalité affectée avec Tab3 AGR\")","v":""},{"$f":"IF('3-tab_destination_origine_AGR'!F531=\"\",\"\",\"! Incohérence Autres financements publics avec Tab3 AGR\")","v":""},null,null,{"$f":"IF(ROUND(R20,-1)<>ROUND('8-tab recettes_fléchées_AGR'!D14,-1),\"! Incohérence Autres financ. publics fléchés avec Tab8 AGR\",\"\")","v":""}]
[null,null,null,null,{"$f":"IF('3-tab_destination_origine_AGR'!G31=\"\",\"\",\"! Incohérence total Invest AE avec Tab3 AGR\")","v":""},{"$f":"IF('3-tab_destination_origine_AGR'!H31=\"\",\"\",\"! Incohérence total Invest CP avec Tab3 AGR\")","v":""},null,{"$f":"IF(L24=\"\",IF(ROUND(H12,-1)<>ROUND('6-tab CR_TF_AGR'!D10,-1),\"! Incohérence pensions civ. BR Tab6 AGR\",\"\"),\"\")","v":""},null,null,{"$f":"IF(ROUND(R28,-1)=ROUND('2-tab_aut_budg_PRINC'!R28+'2-tab_aut_budg_FU'!R28,-1),\"\",\"! Pb agrégat total recettes\")","v":"! Pb agrégat total recettes"},null,null,{"$f":"IF('3-tab_destination_origine_AGR'!G53=\"\",\"\",\"! Incohérence Recettes propres avec Tab3 AGR\")","v":""},{"$f":"IF('3-tab_destination_origine_AGR'!H53=\"\",\"\",\"! Incohérence Financements Etat fléchés avec Tab3 AGR\")","v":""},null,null,{"$f":"IF(ROUND(R21,-1)<>ROUND('8-tab recettes_fléchées_AGR'!D15,-1),\"! Incohérence Recettes propres fléchées avec Tab8 AGR\",\"\")","v":""}]
[null,null,null,null,{"$f":"\"Exécution N-1 : Différence charges de personnel entre tableau 2 et tableau 6 est de : \"&'6-tab CR_TF_AGR'!B9-ROUND('2-tab_aut_budg_AGR'!D11+'2-tab_aut_budg_AGR'!D24,-1)","v":"Exécution N-1 : Différence charges de personnel entre tableau 2 et tableau 6 est de : 74930748,77"},null,null,{"$f":"IF(L24=\"\",IF(ROUND(J12,-1)<>ROUND('6-tab CR_TF_AGR'!E10,-1),\"! Incohérence pensions civ. total BR Tab6 AGR\",\"\"),\"\")","v":""},null,null,null,null,null,{"$f":"IF('3-tab_destination_origine_AGR'!I53=\"\",\"\",\"! Incohérence Autres financ. fléchés avec Tab3 AGR\")","v":""},{"$f":"IF('3-tab_destination_origine_AGR'!J53=\"\",\"\",\"! Incohérence Recettes propres fléchées avec Tab3 AGR\")","v":""}]
[null,null,null,null,{"$f":"\"BI : Différence charges de personnel entre tableau 2 et tableau 6 est de : \"&'6-tab CR_TF_AGR'!C9-ROUND('2-tab_aut_budg_AGR'!F11+'2-tab_aut_budg_AGR'!F24,-1)","v":"BI : Différence charges de personnel entre tableau 2 et tableau 6 est de : 79122687"}]
[null,null,null,null,{"$f":"\"Budget BI+BR : Différence charges de personnel entre tableau 2 et tableau 6 est de : \"&'6-tab CR_TF_AGR'!F9-ROUND('2-tab_aut_budg_AGR'!L11+'2-tab_aut_budg_AGR'!L24,-1)","v":"Budget BI+BR : Différence charges de personnel entre tableau 2 et tableau 6 est de : 79122687"}]

{"sheet":"3-tab_destination_origine_ETAB","index":7,"n_rows":52,"n_cols":11,"rows_kept":52,"cut":false,"hidden":false,"merged":[[29,2,29,3],[0,1,0,11],[1,1,1,11],[5,1,7,1],[5,2,5,9],[6,2,6,3],[6,4,6,5],[6,6,6,7],[6,8,6,9],[7,2,7,3],[3,1,3,9],[33,1,35,1],[33,2,33,10],[34,2,34,6],[34,7,34,9],[34,10,35,10]]}
[null,"Tableau 3 - Université de Bretagne Sud (0561718N) : Etablissement principal + Fondation"]
[null,{"$f":"\"Dépenses par destination et recettes par origine - Budget consolidé \"&Maquette!B4&\" \"&Maquette!B5&\" \"&Maquette!B3","v":"Dépenses par destination et recettes par origine - Budget consolidé initial  2023"}]
[]
[null,"POUR INFORMATION DE L'ORGANE DÉLIBÉRANT"]
[null,"Tableau des dépenses par destination (obligatoire)"]
[null,"Budget","Dépenses de l’organisme"]
[null,null,"Personnel",null,"Fonctionnement et intervention",null,"Investissement",null,"Total"]
[null,null,"AE = CP",null,"AE","CP","AE","CP","AE","CP"]
[null,"Formation initiale et continue (d) = (a) + (b) + (c)",{"$f":"SUM(C10:C12)","v":46372432.740000002},{"$f":"SUM(D10:D12)","v":46372432.740000002},3778397,3478397,1913433,1913433,{"$f":"C9+E9+G9","v":52064262.740000002},{"$f":"D9+F9+H9","v":51764262.740000002}]
[null,"D101 - Formation initiale et continue de niveau Licence (a)",33748940.5,33748940.5,2241814,2041814,1486846,1486846,{"$f":"C10+E10+G10","v":37477600.5},{"$f":"D10+F10+H10","v":37277600.5}]
[null,"D102 - Formation initiale et continue de niveau Master (b)",11106247.5,11106247.5,1380355,1280355,426587,426587,12913189.5,12813189.5]
[null,"D103 - Formation initiale et continue de niveau Doctorat (c) ",1517244.74,1517244.74,156228,156228,0,0,1673472.74,1673472.74]
[null,"D105 - Bibliothèques et documentation",1827958,1827958,487664,487664,60000,60000,2375622,2375622]
[null,"D106 - Recherche universitaire en sciences de la vie, biotechnologie et santé",1409895.96,1409895.96,335172.89,335172.89,409000,384000,2154068.85,2129068.85]
[null,"D107 -  Recherche universitaire en mathématiques, sciences et techniques de l'information et de la communication, micro et nanotechnologies",6301414.0199999996,6301414.0199999996,655585.4,655585.4,718004.54,723004.54,7675003.96,7680003.96]
[null,"D108 -  Recherche universitaire en physique, chimie et sciences pour l'ingénieur",6820391.8099999996,6820391.8099999996,1705347.11,1705347.11,2131910.2599999998,2016910.26,10657649.18,10542649.18]
[null,"D109 -  Recherche universitaire en physique nucléaire et des hautes énergies",0,0,0,0,0,0,0,0]
[null,"D110 -  Recherche universitaire en sciences de la terre, de l'univers et de l'environnement",569343.86,569343.86,150465.5,150465.5,46060,46060,765869.36,765869.36]
[null,"D111 -  Recherche universitaire en sciences de l'homme et de la société",5577049.6100000003,5577049.6100000003,459498.55,459498.55,57067,57067,6093615.1600000001,6093615.1600000001]
[null,"D112 -  Recherche universitaire interdisciplinaire et transversale",297801,297801,429979,429979,2000,2000,729780,729780]
[null,"D113 -  Diffusion des savoirs et musées",null,null,null,null,null,null,0,0]
[null,"D114 - Immobilier",2261703,2261703,4728692,4728692,1402617,1592617,8393012,8583012]
[null,"D115 - Pilotage et support",6897446,6897446,1818586,1813586,185300,180300,8901332,8891332]
[null,"Étudiants (h) = (e) + (f) + (g)",{"$f":"SUM(C25:C27)","v":1626832},{"$f":"SUM(D25:D27)","v":1626832},1143424,908224,2034520,1016520,4804776,3551576]
[null,"D201 - Aides directes aux étudiants (e)",0,0,630906,395706,0,0,630906,395706]
[null,"D202 - Aides indirectes (f)",0,0,20210,20210,11520,11520,31730,31730]
[null,"D203 - Santé des étudiants et activités associatives, culturelles et sportives (g)",1626832,1626832,492308,492308,2023000,1005000,4142140,3124140]
[null,"Total",{"$f":"SUM(C10:C24)","v":79962268},{"$f":"SUM(D10:D24)","v":79962268},15692811.449999999,15152611.449999999,8959911.8000000007,7991911.7999999998,{"$f":"C28+E28+G28","v":104614991.25},{"$f":"D28+F28+H28","v":103106791.25}]
[]
[null,null,null,null,null,null,null,"SOLDE BUDGETAIRE (excédent)",null,{"$f":"IF(K50>J28,K50-J28,0)","v":0}]
[]
[null,"Tableau des recettes par origine (obligatoire)"]
[]
[null,"Budget","Recettes de l'organisme"]
[null,null,"Recettes globalisées",null,null,null,null,"Recettes fléchées",null,null,"Total"]
[null,null,"Subvention pour charges de service public","Autres financements de l'Etat","Fiscalité affectée","Autres financements publics","Recettes propres","Financements de l'Etat fléchés","Autres financements publics fléchés","Recettes propres fléchées"]
[null,"Subvention pour charges de service public",69245984,null,null,null,null,0,0,0,{"$f":"C37","v":69245984}]
[null,"Droits d'inscription",null,null,null,null,1276607,0,0,0,{"$f":"SUM(G38:J38)","v":1276607}]
[null,"Formation continue, diplômes propres et VAE",null,null,null,null,7627571,0,0,0,{"$f":"SUM(G39:J39)","v":7627571}]
[null,"Taxe d'apprentissage",null,null,null,null,625000,0,0,0,{"$f":"SUM(G40:J40)","v":625000}]
[null,"Contrats et prestations de recherche hors ANR",null,null,null,null,1123622.1299999999,0,0,0,{"$f":"SUM(G41:J41)","v":1123622.1299999999}]
[null,"Valorisation",null,null,null,null,718601,0,0,0,{"$f":"SUM(G42:J42)","v":718601}]
[null,"ANR investissements d'avenir",null,null,null,1023595,null,0,0,0,{"$f":"SUM(F43,H43:J43)","v":1023595}]
[null,"ANR hors investissements d'avenir",null,null,null,1964237,null,0,0,0,{"$f":"SUM(F44,H44:J44)","v":1964237}]
[null,"Subventions d'exploitation et financement des actifs - Région",null,null,null,2280799.7599999998,null,0,0,0,{"$f":"SUM(F45,H45:J45)","v":2280799.7599999998}]
[null,"Subventions d'exploitation et financement des actifs - Union Européenne",null,null,null,3251084.57,null,0,0,0,{"$f":"SUM(F46,H46:J46)","v":3251084.57}]
[null,"Subventions d'exploitation et financement des actifs - Autres",null,2024516.6,null,1587174.9,71500,0,0,0,{"$f":"SUM(D47,F47:J47)","v":3683191.5}]
[null,"Fondations - fonds propres, réserves, dons et legs",null,null,null,null,350933,0,0,0,{"$f":"SUM(D48,F48:J48)","v":350933}]
[null,"Autres recettes",null,null,626184,null,5001186,0,0,0,{"$f":"SUM(E49:J49)","v":5627370}]
[null,"Total",{"$f":"C37","v":69245984},{"$f":"SUM(D47:D48)","v":2024516.6},{"$f":"E49","v":626184},{"$f":"SUM(F43:F49)","v":10106891.23},{"$f":"SUM(G38:G42,G47:G49)","v":16795020.129999999},{"$f":"SUM(H38:H49)","v":0},{"$f":"SUM(I38:I49)","v":0},0,{"$f":"SUM(K37:K49)","v":98798595.959999993}]
[]
[null,"La liste des destination est susceptible d'être modifiée par le ministre chargé de l'enseignement supérieur",null,null,null,null,null,null,"SOLDE BUDGETAIRE (déficit)",null,{"$f":"IF(J28>K50,J28-K50,0)","v":4308195.2900000066}]

{"sheet":"3-tab_destination_origine_PRINC","index":8,"n_rows":52,"n_cols":11,"rows_kept":52,"cut":false,"hidden":false,"merged":[[0,1,0,11],[1,1,1,11],[3,1,3,9],[5,1,7,1],[5,2,5,9],[6,2,6,3],[6,4,6,5],[6,6,6,7],[6,8,6,9],[7,2,7,3],[29,2,29,3],[33,1,35,1],[33,2,33,10],[34,2,34,6],[34,7,34,9],[34,10,35,10]]}
[null,"Tableau 3 - Université de Bretagne Sud (0561718N) : Etablissement principal"]
[null,{"$f":"\"Dépenses par destination et recettes par origine - Budget \"&Maquette!B4&\" \"&Maquette!B5&\" \"&Maquette!B3","v":"Dépenses par destination et recettes par origine - Budget initial  2023"}]
[]
[null,"POUR INFORMATION DE L'ORGANE DÉLIBÉRANT"]
[null,"Tableau des dépenses par destination (obligatoire)"]
[null,"Budget","Dépenses de l’organisme"]
[null,null,"Personnel",null,"Fonctionnement et intervention",null,"Investissement",null,"Total"]
[null,null,"AE = CP",null,"AE","CP","AE","CP","AE","CP"]
[null,"Formation initiale et continue (d) = (a) + (b) + (c)",{"$f":"SUM(C10:C12)","v":46372432.740000002},{"$f":"SUM(D10:D12)","v":46372432.740000002},3778397,3478397,1913433,1913433,{"$f":"C9+E9+G9","v":52064262.740000002},{"$f":"D9+F9+H9","v":51764262.740000002}]
[null,"D101 - Formation initiale et continue de niveau Licence (a)",33748940.5,33748940.5,2241814,2041814,1486846,1486846,{"$f":"C10+E10+G10","v":37477600.5},37277600.5]
[null,"D102 - Formation initiale et continue de niveau Master (b)",11106247.5,11106247.5,1380355,1280355,426587,426587,12913189.5,12813189.5]
[null,"D103 - Formation initiale et continue de niveau Doctorat (c) ",1517244.74,1517244.74,156228,156228,0,0,1673472.74,1673472.74]
[null,"D105 - Bibliothèques et documentation",1827958,1827958,487664,487664,60000,60000,2375622,2375622]
[null,"D106 - Recherche universitaire en sciences de la vie, biotechnologie et santé",1409895.96,1409895.96,335172.89,335172.89,409000,384000,2154068.85,2129068.85]
[null,"D107 -  Recherche universitaire en mathématiques, sciences et techniques de l'information et de la communication, micro et nanotechnologies",6162214.0199999996,6162214.0199999996,577585.4,577585.4,708004.54,713004.54,7447803.96,7452803.96]
[null,"D108 -  Recherche universitaire en physique, chimie et sciences pour l'ingénieur",6820391.8099999996,6820391.8099999996,1705347.11,1705347.11,2131910.2599999998,2016910.26,10657649.18,10542649.18]
[null,"D109 -  Recherche universitaire en physique nucléaire et des hautes énergies",0,0,0,0,0,0,0,0]
[null,"D110 -  Recherche universitaire en sciences de la terre, de l'univers et de l'environnement",569343.86,569343.86,150465.5,150465.5,46060,46060,765869.36,765869.36]
[null,"D111 -  Recherche universitaire en sciences de l'homme et de la société",5577049.6100000003,5577049.6100000003,391498.55,391498.55,57067,57067,6025615.1600000001,6025615.1600000001]
[null,"D112 -  Recherche universitaire interdisciplinaire et transversale",297801,297801,429979,429979,2000,2000,729780,729780]
[null,"D113 -  Diffusion des savoirs et musées",null,null,null,null,null,null,0,0]
[null,"D114 - Immobilier",2261703,2261703,4728692,4728692,1402617,1592617,8393012,8583012]
[null,"D115 - Pilotage et support",6804046,6804046,1739586,1739586,134300,134300,8677932,8677932]
[null,"Étudiants (h) = (e) + (f) + (g)",{"$f":"SUM(C25:C27)","v":1626832},{"$f":"SUM(D25:D27)","v":1626832},1143424,908224,2034520,1016520,4804776,3551576]
[null,"D201 - Aides directes aux étudiants (e)",0,0,630906,395706,0,0,630906,395706]
[null,"D202 - Aides indirectes (f)",0,0,20210,20210,11520,11520,31730,31730]
[null,"D203 - Santé des étudiants et activités associatives, culturelles et sportives (g)",1626832,1626832,492308,492308,2023000,1005000,4142140,3124140]
[null,"Total",{"$f":"SUM(C10:C24)","v":79729668},{"$f":"SUM(D10:D24)","v":79729668},15467811.449999999,14932611.449999999,8898911.8000000007,7935911.7999999998,{"$f":"C28+E28+G28","v":104096391.25},{"$f":"D28+F28+H28","v":102598191.25}]
[]
[null,null,null,null,null,null,null,"SOLDE BUDGETAIRE (excédent)",null,{"$f":"IF(K50>J28,K50-J28,0)","v":0}]
[]
[null,"Tableau des recettes par origine (obligatoire)"]
[]
[null,"Budget","Recettes de l'organisme"]
[null,null,"Recettes globalisées",null,null,null,null,"Recettes fléchées",null,null,"Total"]
[null,null,"Subvention pour charges de service public","Autres financements de l'Etat","Fiscalité affectée","Autres financements publics","Recettes propres","Financements de l'Etat fléchés","Autres financements publics fléchés","Recettes propres fléchées"]
[null,"Subvention pour charges de service public",69245984,null,null,null,null,0,0,0,{"$f":"C37","v":69245984}]
[null,"Droits d'inscription",null,null,null,null,1276607,0,0,0,{"$f":"SUM(G38:J38)","v":1276607}]
[null,"Formation continue, diplômes propres et VAE",null,null,null,null,7627571,0,0,0,{"$f":"SUM(G39:J39)","v":7627571}]
[null,"Taxe d'apprentissage",null,null,null,null,625000,0,0,0,625000]
[null,"Contrats et prestations de recherche hors ANR",null,null,null,null,1123622.1299999999,0,0,0,1123622.1299999999]
[null,"Valorisation",null,null,null,null,718601,0,0,0,718601]
[null,"ANR investissements d'avenir",null,null,null,1023595,null,0,0,0,{"$f":"SUM(F43,H43:J43)","v":1023595}]
[null,"ANR hors investissements d'avenir",null,null,null,1964237,null,0,0,0,{"$f":"SUM(F44,H44:J44)","v":1964237}]
[null,"Subventions d'exploitation et financement des actifs - Région",null,null,null,2280799.7599999998,null,0,0,0,2280799.7599999998]
[null,"Subventions d'exploitation et financement des actifs - Union Européenne",null,null,null,3251084.57,null,0,0,0,3251084.57]
[null,"Subventions d'exploitation et financement des actifs - Autres",null,2024516.6,null,1528174.9,71500,0,0,0,{"$f":"SUM(D47,F47:J47)","v":3624191.5}]
[null,"Fondations - fonds propres, réserves, dons et legs",null,null,null,null,null,0,0,0,{"$f":"SUM(D48,F48:J48)","v":0}]
[null,"Autres recettes",null,null,626184,null,4963761,0,0,0,{"$f":"SUM(E49:J49)","v":5589945}]
[null,"Total",{"$f":"C37","v":69245984},{"$f":"SUM(D47:D48)","v":2024516.6},{"$f":"E49","v":626184},{"$f":"SUM(F43:F49)","v":10047891.23},{"$f":"SUM(G38:G42,G47:G49)","v":16406662.129999999},{"$f":"SUM(H38:H49)","v":0},{"$f":"SUM(I38:I49)","v":0},0,{"$f":"SUM(K37:K49)","v":98351237.959999993}]
[]
[null,"La liste des destination est susceptible d'être modifiée par le ministre chargé de l'enseignement supérieur",null,null,null,null,null,null,"SOLDE BUDGETAIRE (déficit)",null,{"$f":"IF(J28>K50,J28-K50,0)","v":4246953.2900000066}]

{"sheet":"3-tab_destination_origine_AGR","index":9,"n_rows":54,"n_cols":12,"rows_kept":54,"cut":false,"hidden":true,"merged":[[29,2,29,3],[33,1,35,1],[33,2,33,10],[34,2,34,6],[34,7,34,9],[34,10,35,10],[0,1,0,11],[1,1,1,11],[3,1,3,9],[5,1,7,1],[5,2,5,9],[6,2,6,3],[6,4,6,5],[6,6,6,7],[6,8,6,9],[7,2,7,3]]}
[null,"Tableau 3 - Université de Bretagne Sud (0561718N) : Etablissement principal + Fondation"]
[null,{"$f":"\"Dépenses par destination et recettes par origine - Budget agrégé \"&Maquette!B4&\" \"&Maquette!B5&\" \"&Maquette!B3","v":"Dépenses par destination et recettes par origine - Budget agrégé initial  2023"}]
[]
[null,"POUR INFORMATION DE L'ORGANE DÉLIBÉRANT"]
[null,"Tableau des dépenses par destination (obligatoire)"]
[null,"Budget","Dépenses de l’organisme"]
[null,null,"Personnel",null,"Fonctionnement et intervention",null,"Investissement",null,"Total"]
[null,null,"AE = CP",null,"AE","CP","AE","CP","AE","CP"]
[null,"Formation initiale et continue (d) = (a) + (b) + (c)",{"$f":"SUM(C10:C12)","v":0},{"$f":"SUM(D10:D12)","v":0},0,0,0,0,{"$f":"C9+E9+G9","v":0},{"$f":"D9+F9+H9","v":0}]
[null,"D101 - Formation initiale et continue de niveau Licence (a)",null,null,null,null,null,null,{"$f":"C10+E10+G10","v":0},0]
[null,"D102 - Formation initiale et continue de niveau Master (b)",null,null,null,null,null,null,0,0]
[null,"D103 - Formation initiale et continue de niveau Doctorat (c) ",null,null,null,null,null,null,0,0]
[null,"D105 - Bibliothèques et documentation",null,null,null,null,null,null,0,0]
[null,"D106 - Recherche universitaire en sciences de la vie, biotechnologie et santé",null,null,null,null,null,null,0,0]
[null,"D107 -  Recherche universitaire en mathématiques, sciences et techniques de l'information et de la communication, micro et nanotechnologies",null,null,null,null,null,null,0,0]
[null,"D108 -  Recherche universitaire en physique, chimie et sciences pour l'ingénieur",null,null,null,null,null,null,0,0]
[null,"D109 -  Recherche universitaire en physique nucléaire et des hautes énergies",null,null,null,null,null,null,0,0]
[null,"D110 -  Recherche universitaire en sciences de la terre, de l'univers et de l'environnement",null,null,null,null,null,null,0,0]
[null,"D111 -  Recherche universitaire en sciences de l'homme et de la société",null,null,null,null,null,null,0,0]
[null,"D112 -  Recherche universitaire interdisciplinaire et transversale",null,null,null,null,null,null,0,0]
[null,"D113 -  Diffusion des savoirs et musées",null,null,null,null,null,null,0,0]
[null,"D114 - Immobilier",null,null,null,null,null,null,0,0]
[null,"D115 - Pilotage et support",null,null,null,null,null,null,0,0]
[null,"Étudiants (h) = (e) + (f) + (g)",{"$f":"SUM(C25:C27)","v":0},{"$f":"SUM(D25:D27)","v":0},0,0,0,0,0,0]
[null,"D201 - Aides directes aux étudiants (e)",null,null,null,null,null,null,0,0]
[null,"D202 - Aides indirectes (f)",null,null,null,null,null,null,0,0]
[null,"D203 - Santé des étudiants et activités associatives, culturelles et sportives (g)",null,null,null,null,null,null,0,0]
[null,"Total",{"$f":"SUM(C10:C24)","v":0},{"$f":"SUM(D10:D24)","v":0},0,0,0,0,{"$f":"C28+E28+G28","v":0},{"$f":"D28+F28+H28","v":0}]
[]
[null,null,{"$f":"IF(SUM(C9:C28)<>SUM(D9:D28),\"! Dépenses de personnel AE <> CP\",\"\")","v":""},null,null,null,null,"SOLDE BUDGETAIRE (excédent)",null,{"$f":"IF(K50>J28,K50-J28,0)","v":0},{"$f":"IF(ROUND(J30,-1)<>ROUND('2-tab_aut_budg_AGR'!L30,-1),\"Incohérence solde budgétaire avec Tab2 AGR\",\"\")","v":""}]
[null,null,{"$f":"IF(ROUND(C28,-1)<>ROUND('2-tab_aut_budg_AGR'!K11+'2-tab_aut_budg_AGR'!K24,-1),\"! Incohérence total Personnel AE avec Tab2 AGR\",\"\")","v":""},{"$f":"IF(ROUND(D28,-1)<>ROUND('2-tab_aut_budg_AGR'!L11+'2-tab_aut_budg_AGR'!L24,-1),\"! Incohérence total Personnel CP avec Tab2 AGR\",\"\")","v":""},{"$f":"IF(ROUND(E28,-1)<>ROUND('2-tab_aut_budg_AGR'!K15+'2-tab_aut_budg_AGR'!K25,-1),\"! Incohérence total Fonctionnement AE avec Tab2 AGR\",\"\")","v":""},{"$f":"IF(ROUND(F28,-1)<>ROUND('2-tab_aut_budg_AGR'!L15+'2-tab_aut_budg_AGR'!L25,-1),\"! Incohérence total Fonctionnement CP avec Tab2 AGR\",\"\")","v":""},{"$f":"IF(ROUND(G28,-1)<>ROUND('2-tab_aut_budg_AGR'!K20+'2-tab_aut_budg_AGR'!K26,-1),\"! Incohérence total Investissement AE avec Tab2 AGR\",\"\")","v":""},{"$f":"IF(ROUND(H28,-1)<>ROUND('2-tab_aut_budg_AGR'!L20+'2-tab_aut_budg_AGR'!L26,-1),\"! Incohérence total Investissement CP avec Tab2 AGR\",\"\")","v":""},{"$f":"IF(ROUND(I28,-1)<>ROUND('2-tab_aut_budg_AGR'!K28,-1),\"! Incohérence Total dépenses AE avec Tab2 AGR\",\"\")","v":""},{"$f":"IF(ROUND(J28,-1)<>ROUND('2-tab_aut_budg_AGR'!L28,-1),\"! Incohérence Total dépenses CP avec Tab2 AGR\",\"\")","v":""}]
[null,"Tableau des recettes par origine (obligatoire)"]
[]
[null,"Budget","Recettes de l'organisme"]
[null,null,"Recettes globalisées",null,null,null,null,"Recettes fléchées",null,null,"Total"]
[null,null,"Subvention pour charges de service public","Autres financements de l'Etat","Fiscalité affectée","Autres financements publics","Recettes propres","Financements de l'Etat fléchés","Autres financements publics fléchés","Recettes propres fléchées"]
[null,"Subvention pour charges de service public",null,null,null,null,null,null,null,null,{"$f":"C37","v":0}]
[null,"Droits d'inscription",null,null,null,null,null,null,null,null,{"$f":"SUM(G38:J38)","v":0}]
[null,"Formation continue, diplômes propres et VAE",null,null,null,null,null,null,null,null,{"$f":"SUM(G39:J39)","v":0}]
[null,"Taxe d'apprentissage",null,null,null,null,null,null,null,null,0]
[null,"Contrats et prestations de recherche hors ANR",null,null,null,null,null,null,null,null,0]
[null,"Valorisation",null,null,null,null,null,null,null,null,0]
[null,"ANR investissements d'avenir",null,null,null,null,null,null,null,null,{"$f":"SUM(F43,H43:J43)","v":0}]
[null,"ANR hors investissements d'avenir",null,null,null,null,null,null,null,null,{"$f":"SUM(F44,H44:J44)","v":0}]
[null,"Subventions d'exploitation et financement des actifs - Région",null,null,null,null,null,null,null,null,0]
[null,"Subventions d'exploitation et financement des actifs - Union Européenne",null,null,null,null,null,null,null,null,0]
[null,"Subventions d'exploitation et financement des actifs - Autres",null,null,null,null,null,null,null,null,{"$f":"SUM(D47,F47:J47)","v":0}]
[null,"Fondations - fonds propres, réserves, dons et legs",null,null,null,null,null,null,null,null,{"$f":"SUM(D48,F48:J48)","v":0}]
[null,"Autres recettes",null,null,null,null,null,null,null,null,{"$f":"SUM(F49:J49)","v":0}]
[null,"Total",{"$f":"C37","v":0},{"$f":"SUM(D47:D48)","v":0},{"$f":"SUM(E47:E48)","v":0},{"$f":"SUM(F43:F49)","v":0},{"$f":"SUM(G38:G42,G47:G49)","v":0},{"$f":"SUM(H38:H49)","v":0},{"$f":"SUM(I38:I49)","v":0},0,{"$f":"SUM(K37:K49)","v":0}]
[]
[null,"La liste des destination est susceptible d'être modifiée par le ministre chargé de l'enseignement supérieur",null,null,null,null,null,null,"SOLDE BUDGETAIRE (déficit)",null,{"$f":"IF(J28>K50,J28-K50,0)","v":0},{"$f":"IF(ROUND(K52,-1)<>ROUND('2-tab_aut_budg_AGR'!R30,-1),\"! Incohérence solde budgétaire avec Tab2 AGR\",\"\")","v":""}]
[null,null,{"$f":"IF(ROUND(C50,-1)<>ROUND('2-tab_aut_budg_AGR'!R12,-1),\"! Incohérence total Subv charges serv public avec Tab2 AGR\",\"\")","v":""},{"$f":"IF(ROUND(D50,-1)<>ROUND('2-tab_aut_budg_AGR'!R13,-1),\"! Incohérence total Autres financements Etat avec Tab2 AGR\",\"\")","v":""},{"$f":"IF(ROUND(E50,-1)<>ROUND('2-tab_aut_budg_AGR'!R14,-1),\"! Incohérence total Fiscalité affectée avec Tab2 AGR\",\"\")","v":""},{"$f":"IF(ROUND(F50,-1)<>ROUND('2-tab_aut_budg_AGR'!R15,-1),\"! Incohérence total Autres financements publics avec Tab2 AGR\",\"\")","v":""},{"$f":"IF(ROUND(G50,-1)<>ROUND('2-tab_aut_budg_AGR'!R16,-1),\"! Incohérence total Recettes propres avec Tab2 AGR\",\"\")","v":""},{"$f":"IF(ROUND(H50,-1)<>ROUND('2-tab_aut_budg_AGR'!R19,-1),\"! Incohérence total Financements Etat fléchés avec Tab2 AGR\",\"\")","v":""},{"$f":"IF(ROUND(I50,-1)<>ROUND('2-tab_aut_budg_AGR'!R20,-1),\"! Incohérence total Autres financements fléchés avec Tab2 AGR\",\"\")","v":""},{"$f":"IF(ROUND(J50,-1)<>ROUND('2-tab_aut_budg_AGR'!R21,-1),\"! Incohérence total Recettes propres fléchées avec Tab2 AGR\",\"\")","v":""},{"$f":"IF(ROUND(K50,-1)<>ROUND('2-tab_aut_budg_AGR'!R28,-1),\"! Incohérence total avec Tab2 AGR\",\"\")","v":""}]
[null,null,null,null,null,null,null,{"$f":"IF(H50<>'8-tab recettes_fléchées_ETAB'!D13,\"! Incohérence Financements Etat fléchés avec Tab8 ETAB\",\"\")","v":""},{"$f":"IF(ROUND(I50,-1)<>ROUND('8-tab recettes_fléchées_AGR'!D14,-1),\"! Incohérence Autres financements fléchés avec Tab8 AGR\",\"\")","v":""},{"$f":"IF(ROUND(J50,-1)<>ROUND('8-tab recettes_fléchées_AGR'!D15,-1),\"! Incohérences Recettes propres fléchées avec Tab8 AGR \",\"\")","v":""}]

{"sheet":"4-tab_financier_ETAB","index":10,"n_rows":41,"n_cols":18,"rows_kept":41,"cut":false,"hidden":false,"merged":[[0,1,0,11],[1,1,1,11],[12,15,13,15],[8,1,8,6],[8,8,8,13],[4,1,4,13],[19,15,20,15],[23,15,23,17],[28,15,29,15],[25,17,29,17],[10,17,21,17]]}
[null,"Tableau 4 - Université de Bretagne Sud (0561718N) : Etablissement principal + Fondation "]
[null,{"$f":"\"Équilibre financier - Budget consolidé \"&Maquette!B4&\" \"&Maquette!B5&\" \"&Maquette!B3","v":"Équilibre financier - Budget consolidé initial  2023"}]
[]
[]
[null,"POUR VOTE DE L'ORGANE DÉLIBÉRANT"]
[]
[]
[]
[null,"Besoins (utilisation des financements)",null,null,null,null,null,null,"Financements (couverture des besoins)"]
[null,null,"Exécution N-1: BR1/2021","Budget initial\n(a)","Nouveau BR","Somme des BR\n(yc nouveau BR) (b)","TOTAL : dernier budget modifié\n(c) = (a) + (b)",null,"Exécution N-1: BR1/2021","Budget initial\n(d)","Nouveau BR","Somme des BR\n(yc nouveau BR) (e)","TOTAL : dernier budget modifié\n(f) = (d) + (e)"]
[null,"Solde budgétaire (déficit) * (D2)",787815.14000001736,{"$f":"'2-tab_aut_budg_ETAB'!O30","v":4308195.2899999917},null,null,{"$f":"IF(SUM(J11,L11)-SUM(D11,F11)<0,-(SUM(J11,L11)-SUM(D11,F11)),0)","v":4308195.2899999917},null,null,null,null,null,{"$f":"IF(SUM(J11,L11)-SUM(D11,F11)>=0,SUM(J11,L11)-SUM(D11,F11),0)","v":0},"Solde budgétaire (excédent) * (D1)",null,null,null,"Opérations ayant un impact sur la trésorerie"]
[null,"dont solde budgétaire budget principal",841431.02000001725,{"$f":"'2-tab_aut_budg_PRINC'!O30","v":4246953.2900000066},null,null,{"$f":"D12+F12","v":4246953.2900000066},null,null,null,null,null,{"$f":"IF(SUM(J12,L12)-SUM(D12,F12)>=0,SUM(J12,L12)-SUM(D12,F12),0)","v":0},"dont solde budgétaire budget principal"]
[null,"dont solde budgétaire budget du SAIC",null,null,null,null,0,null,null,null,null,null,0,"dont solde budgétaire budget du SAIC",null,"Opérations budgétaires"]
[null,"dont solde budgétaire FU",null,{"$f":"'2-tab_aut_budg_FU'!O30","v":61242},null,null,61242,null,null,null,null,null,0,"dont solde budgétaire FU"]
[null,"dont solde budgétaire BAI",null,null,null,null,0,null,null,null,null,null,0,"dont solde budgétaire BAI"]
[null,"dont solde budgétaire SIE",null,null,null,null,0,null,null,null,null,null,0,"dont solde budgétaire SIE"]
[null,null,null,null,null,null,0,null,null,null,null,null,{"$f":"J17+L17","v":0}]
[null,"Remboursements d'emprunts (capital) ;\nNouveaux prêts (capital) ;\nDépôts et cautionnements (b1)",null,null,null,null,0,null,null,null,null,null,0,"Nouveaux emprunts (capital) ;\nRemboursements de prêts (capital) ;\nDépôts et cautionnements (b2)"]
[null,null,null,null,null,null,0,null,null,null,null,null,0]
[null,"Opérations au nom et pour le compte de tiers **\n(décaissements de l’exercice) (c1)",1807052,{"$f":"'5-tab compte de tiers_ETAB'!E20","v":2364470},null,null,2364470,null,1976404,{"$f":"'5-tab compte de tiers_ETAB'!F20","v":1988550},null,null,1988550,"Opérations au nom et pour le compte de tiers **\n(encaissements de l’exercice) (c2)",null,"Opérations non budgétaires",{"$f":"J20-D20","v":-375920}]
[null,null,null,null,null,null,0,null,null,null,null,null,0]
[null,"Autres décaissements sur comptes de tiers\n(non budgétaires) (e1)",null,0,null,null,0,null,null,0,null,null,0,"Autres encaissements sur comptes de tiers\n(non budgétaires) (e2)"]
[null,null,null,null,null,null,0,null,null,null,null,null,0]
[null,"Sous-total des opérations ayant un impact négatif sur la trésorerie de l'organisme (1= D2+b1+c1+e1)",{"$f":"C11+C18+C20+C22","v":2594867.1400000174},{"$f":"D11+D18+D20+D22","v":6672665.2899999917},{"$f":"E11+E18+E20+E22","v":0},{"$f":"F11+F18+F20+F22","v":0},{"$f":"G11+G18+G20+G22","v":6672665.2899999917},"et",{"$f":"I11+I18+I20+I22","v":1976404},{"$f":"J11+J18+J20+J22","v":1988550},{"$f":"K11+K18+K20+K22","v":0},{"$f":"L11+L18+L20+L22","v":0},{"$f":"M11+M18+M20+M22","v":1988550},"Sous-total des opérations ayant un impact positif sur la trésorerie de l'organisme (2=D1+b2+c2+e2)",null,"La variation de trésorerie :\n- se détermine par différence entre (1) et (2),\n- se décompose en (a) et (d),\n- s'explique par D, (b), (c), (e)."]
[null,"Variation de trésorerie (I)",{"$f":"IF(I24-C24>0,I24-C24,)","v":0},{"$f":"IF(J24-D24>0,J24-D24,)","v":0},{"$f":"IF(K24-E24>0,K24-E24,)","v":0},{"$f":"IF(L24-F24>0,L24-F24,)","v":0},{"$f":"IF(M24-G24>0,M24-G24,)","v":0},"ou",{"$f":"IF(C24-I24>0,C24-I24,0)","v":618463.14000001736},{"$f":"IF(D24-J24>0,D24-J24,0)","v":4684115.2899999917},{"$f":"IF(E24-K24>0,E24-K24,0)","v":0},{"$f":"IF(F24-L24>0,F24-L24,0)","v":0},{"$f":"IF(G24-M24>0,G24-M24,0)","v":4684115.2899999917},"Variation de trésorerie (II)"]
[null,null,null,null,null,null,{"$f":"D26+F26","v":0},null,null,null,null,null,{"$f":"J26+L26","v":0},null,null,null,null,"Décomposition de la variation de trésorerie"]
[null,"dont Abondement de la trésorerie fléchée *** (a1)",1929527,null,null,null,0,"ou",null,774736,null,null,774736,"dont Prélèvement sur la trésorerie fléchée *** (a2)"]
[null,null,null,null,null,null,0,null,null,null,null,null,0]
[null,"dont Abondement sur la trésorerie non fléchée (d1)",{"$f":"C25","v":0},null,null,null,0,"ou",2547990.1400000174,{"$f":"J25-J27","v":3909379.2899999917},null,null,3909379.2899999917,"dont Prélèvement sur la trésorerie non fléchée (d2)",null,"= différence entre variation de trésorerie (I ou II) et (a)"]
[null,null,null,null,null,null,0,null,null,null,null,null,0]
[null,"TOTAL DES BESOINS (1 + I)",{"$f":"C25+C24","v":2594867.1400000174},{"$f":"D25+D24","v":6672665.2899999917},0,{"$f":"F25+F24","v":0},{"$f":"G25+G24","v":6672665.2899999917},"et",{"$f":"I25+I24","v":2594867.1400000174},{"$f":"J25+J24","v":6672665.2899999917},0,0,6672665.2899999917,"TOTAL DES FINANCEMENTS (2 + II)"]
[]
[null,"* solde budgétaire à détailler pour chaque composante du budget de l'établissement",null,null,null,null,null,null,null,null,{"$f":"IF(ROUND(K11,-1)<>ROUND('2-tab_aut_budg_ETAB'!H30,-1),\"! Incohérence solde budgétaire BR avec Tab2 ETAB\",\"\")","v":""},{"$f":"IF(ROUND(L11,-1)<>ROUND('2-tab_aut_budg_ETAB'!J30,-1),\"! Incohérence solde budgétaire BR tot avec Tab2 ETAB\",\"\")","v":""},{"$f":"IF(ROUND(M11,-1)<>ROUND('2-tab_aut_budg_ETAB'!L30,-1),\"! Incohérence solde budgétaire Total avec Tab2 ETAB\",\"\")","v":""}]
[null,"Montant issu du tableau \"Autorisations budgétaires\" (tableau 2)",null,null,null,null,null,null,null,null,null,{"$f":"IF(ROUND(M11,-1)<>ROUND('3-tab_destination_origine_ETAB'!J30,-1),\"! Incohérence solde budgétaire avec Tab3 ETAB\",\"\")","v":""},{"$f":"IF(ROUND(M20,-1)<>ROUND('5-tab compte de tiers_ETAB'!F20,-1),\"! Incohérence encaissements tiers avec Tab5\",\"\")","v":""}]
[null,"** Montants issus du tableau \"Opérations pour compte de tiers\" (tableau 5)",null,null,null,null,null,null,null,null,null,{"$f":"IF(ROUND(M18,-1)<>ROUND('7-tab Plan_tréso_ETAB'!O19,-1),\"! Incohérence recettes emprunts avec Tab7\",\"\")","v":""},{"$f":"IF(ROUND(M20+M22,-1)<>ROUND('7-tab Plan_tréso_ETAB'!O23,-1),\"! Incohérence encaissements tiers avec Tab7\",\"\")","v":""}]
[null,"*** Montant issu du tableau \"Opérations sur recettes fléchées\" (tableau 8)",null,null,null,null,null,null,null,null,null,null,{"$f":"IF('7-tab Plan_tréso_ETAB'!O48<=0,IF(-ROUND('7-tab Plan_tréso_ETAB'!O48,-1)<>ROUND('4-tab_financier_ETAB'!M25,-1),\"! Incohérence variation de trésorerie Tab7\",\"\"),IF(ROUND('7-tab Plan_tréso_ETAB'!O48,-1)<>ROUND('4-tab_financier_ETAB'!G25,-1),\"! Incohérence variation trésorerie Tab7\",\"\"))","v":""}]
[null,null,null,null,null,null,{"$f":"IF('8-tab recettes_fléchées_ETAB'!D28>0,IF(ROUND(G27,-1)<>ROUND('8-tab recettes_fléchées_ETAB'!D28,-1),\"! Incohérence abond. trésorerie fléchée avec Tab8 ETAB\",\"\"),\"\")","v":""},null,null,null,null,null,{"$f":"IF('8-tab recettes_fléchées_ETAB'!D28<=0,IF(ROUND(M27,-1)<>-ROUND('8-tab recettes_fléchées_ETAB'!D28,-1),\"! Incohérence prélèv. trésorerie fléchée avec Tab8 ETAB\",\"\"),\"\")","v":""}]
[null,"SAIC : service d'activités industrielles et commerciales"]
[null,"FU : fondation universitaire"]
[null,"BAI : budget annexe immobilier"]
[null,"SIE : service inter-établissements"]

{"sheet":"5-tab compte de tiers_ETAB","index":11,"n_rows":25,"n_cols":6,"rows_kept":25,"cut":false,"hidden":false,"merged":[[0,1,0,5],[1,1,1,5],[6,1,6,5],[19,1,19,3],[22,1,22,5]]}
[null,"Tableau 5 - Université de Bretagne Sud (0561718N) : Etablissement principal + Fondation "]
[null,{"$f":"\"Opérations pour le compte de tiers - Budget consolidé \"&Maquette!B4&\" \"&Maquette!B5&\" \"&Maquette!B3","v":"Opérations pour le compte de tiers - Budget consolidé initial  2023"}]
[]
[]
[null,"POUR INFORMATION DE L'ORGANE DÉLIBÉRANT"]
[]
[]
[]
[null,"Opérations ou regroupement d'opérations de même nature","Comptes","Libellé","Prévisions de décaissements","Prévisions d'encaissements"]
[null,"Opération 1","C  46711","Bourse Mobilité Internationale",79400,162000]
[null,null,"C  4…"]
[null,"Opération  2","C  44571 et C 44551","TVA",720000,410000]
[null,null,"C  4..."]
[null,"Opération  3","C  4731","Projet Flower (Interreg)",308000,308000]
[null,null,"C  4..."]
[null,"Opération 4","C  4731","Projet Indigo (Interreg)",1108550,1108550]
[null,null,"C  4..."]
[null,"Opération 5","C  467611","Projet Cyberus ",148520,0]
[null,null,"C  4..."]
[null,"TOTAL",null,null,{"$f":"SUM(E10:E19)","v":2364470},{"$f":"SUM(F10:F19)","v":1988550}]
[null,null,null,null,"(c1)","(c2)"]
[null,null,null,"(c1) et (c2) étant repris au tableau \"Équilibre financier\" (tableau 4)"]
[null,"N.B. : Dans l'hypothèse d'un écart entre les crédits et les débits d'un même compte, l'opération concernée devra faire l'objet d'une explication spécifique."]
[]
[null,null,null,null,{"$f":"IF(ROUND(E20,-1)<>ROUND('4-tab_financier_ETAB'!G20,-1),\"! Incohérence total décaissements tiers avec Tab4\",\"\")","v":""},{"$f":"IF(ROUND(F20,-1)<>ROUND('4-tab_financier_ETAB'!M20,-1),\"! Incohérence total encaissements tiers avec Tab4\",\"\")","v":""}]

{"sheet":"6-tab CR_TF_ETAB","index":12,"n_rows":53,"n_cols":12,"rows_kept":53,"cut":false,"hidden":false,"merged":[[47,13,47,14],[50,13,50,14],[35,0,37,0],[35,1,37,1],[35,2,37,2],[35,3,37,3],[35,5,37,5],[35,4,37,4],[45,13,45,14],[18,1,18,2],[31,3,31,4],[50,0,50,6],[44,0,44,6],[45,0,45,6],[46,0,46,6],[47,0,47,6],[48,0,48,6],[49,0,49,6],[0,0,0,7],[1,0,1,7],[10,0,11,0],[10,1,11,1],[10,2,11,2],[10,3,11,3],[3,0,3,11],[10,4,11,4],[10,5,11,5],[5,1,5,2],[5,6,5,7]]}
["Tableau 6 - Université de Bretagne Sud (0561718N) : Etablissement principal + Fondation "]
[{"$f":"\"Situation patrimoniale - Budget consolidé \"&Maquette!B4&\" \"&Maquette!B5&\" \"&Maquette!B3","v":"Situation patrimoniale - Budget consolidé initial  2023"}]
[]
["POUR VOTE DE L'ORGANE DÉLIBÉRANT"]
[]
["Compte de résultat prévisionnel"]
[]
["CHARGES","Exécution N-1: BR2/2022","Budget initial\n(a)","Nouveau BR","Somme des BR\n(yc nouveau BR) (b)","TOTAL : dernier budget modifié\n(c) = (a) + (b)","PRODUITS","Exécution N-1: BR2/2022","Budget initial\n(d)","Nouveau BR","Somme des BR\n(yc nouveau BR) (e)","TOTAL : dernier budget modifié\n(f) = (d) + (e)"]
["Personnel",{"$f":"'6-tab CR_TF_AGR'!B9+'6-tab CR_TF_SIE'!B9","v":74930748.769999996},{"$f":"'6-tab CR_TF_PRINC'!C9+'6-tab CR_TF_FU'!C9","v":79122687},{"$f":"'6-tab CR_TF_AGR'!D9+'6-tab CR_TF_SIE'!D9","v":0},{"$f":"'6-tab CR_TF_AGR'!E9+'6-tab CR_TF_SIE'!E9","v":0},{"$f":"C9+E9","v":79122687},"Subventions de l'Etat",{"$f":"'6-tab CR_TF_AGR'!H9+'6-tab CR_TF_SIE'!H9","v":71034662.689999998},{"$f":"'6-tab CR_TF_PRINC'!I9+'6-tab CR_TF_FU'!I9","v":73523261},{"$f":"'6-tab CR_TF_AGR'!J9+'6-tab CR_TF_SIE'!J9","v":0},{"$f":"'6-tab CR_TF_AGR'!K9+'6-tab CR_TF_SIE'!K9","v":0},{"$f":"I9+K9","v":73523261}]
["dont charges de pensions civiles*",{"$f":"'6-tab CR_TF_AGR'!B10+'6-tab CR_TF_SIE'!B10","v":19827314},{"$f":"'6-tab CR_TF_PRINC'!C10+'6-tab CR_TF_FU'!C10","v":0},{"$f":"'6-tab CR_TF_AGR'!D10+'6-tab CR_TF_SIE'!D10","v":0},{"$f":"'6-tab CR_TF_AGR'!E10+'6-tab CR_TF_SIE'!E10","v":0},{"$f":"C10+E10","v":0},"Fiscalité affectée",{"$f":"'6-tab CR_TF_AGR'!H10+'6-tab CR_TF_SIE'!H10","v":600000},{"$f":"'6-tab CR_TF_PRINC'!I10+'6-tab CR_TF_FU'!I10","v":626184},{"$f":"'6-tab CR_TF_AGR'!J10+'6-tab CR_TF_SIE'!J10","v":0},{"$f":"'6-tab CR_TF_AGR'!K10+'6-tab CR_TF_SIE'!K10","v":0},{"$f":"I10+K10","v":626184}]
["Fonctionnement (autre que les charges de personnel) et intervention",{"$f":"'6-tab CR_TF_AGR'!B11:B12+'6-tab CR_TF_SIE'!B11:B12","v":21008402.649999999},{"$f":"'6-tab CR_TF_PRINC'!C11:C12+'6-tab CR_TF_FU'!C11:C12","v":24003901},{"$f":"'6-tab CR_TF_AGR'!D11:D12+'6-tab CR_TF_SIE'!D11:D12","v":0},{"$f":"'6-tab CR_TF_AGR'!E11:E12+'6-tab CR_TF_SIE'!E11:E12","v":0},{"$f":"C11+E11","v":24003901},"Autres subventions",{"$f":"'6-tab CR_TF_AGR'!H11+'6-tab CR_TF_SIE'!H11","v":5536440.6100000003},{"$f":"'6-tab CR_TF_PRINC'!I11+'6-tab CR_TF_FU'!I11","v":6699752},{"$f":"'6-tab CR_TF_AGR'!J11+'6-tab CR_TF_SIE'!J11","v":0},{"$f":"'6-tab CR_TF_AGR'!K11+'6-tab CR_TF_SIE'!K11","v":0},6699752]
[null,null,null,null,null,null,"Autres produits",{"$f":"'6-tab CR_TF_AGR'!H12+'6-tab CR_TF_SIE'!H12","v":19336263.350000001},{"$f":"'6-tab CR_TF_PRINC'!I12+'6-tab CR_TF_FU'!I12","v":21217304},{"$f":"'6-tab CR_TF_AGR'!J12+'6-tab CR_TF_SIE'!J12","v":0},{"$f":"'6-tab CR_TF_AGR'!K12+'6-tab CR_TF_SIE'!K12","v":0},21217304]
["TOTAL DES CHARGES (1)",{"$f":"B9+B11","v":95939151.419999987},{"$f":"C9+C11","v":103126588},{"$f":"D9+D11","v":0},{"$f":"E9+E11","v":0},{"$f":"F9+F11","v":103126588},"TOTAL DES PRODUITS (2)",{"$f":"SUM(H9:H12)","v":96507366.650000006},{"$f":"SUM(I9:I12)","v":102066501},0,0,{"$f":"SUM(L9:L12)","v":102066501}]
["Résultat prévisionnel : bénéfice   (3) = (2) - (1)",{"$f":"IF(H13-B13>0,H13-B13,0)","v":568215.23000001907},{"$f":"IF(I13-C13>0,I13-C13,0)","v":0},{"$f":"IF(J13-D13>0,J13-D13,0)","v":0},{"$f":"IF(K13-E13>0,K13-E13,0)","v":0},{"$f":"IF(L13-F13>0,L13-F13,0)","v":0},"Résultat prévisionnel : perte  (4) = (1) - (2)",{"$f":"IF(B13-H13>0,B13-H13,0)","v":0},{"$f":"IF(C13-I13>0,C13-I13,0)","v":1060087},{"$f":"IF(D13-J13>0,D13-J13,0)","v":0},{"$f":"IF(E13-K13>0,E13-K13,0)","v":0},{"$f":"IF(F13-L13>0,F13-L13,0)","v":1060087}]
["TOTAL EQUILIBRE du compte de résultat prévisionnel (1) + (3) = (2) + (4)",{"$f":"B13+B14","v":96507366.650000006},{"$f":"C13+C14","v":103126588},{"$f":"D13+D14","v":0},{"$f":"E13+E14","v":0},{"$f":"F13+F14","v":103126588},"TOTAL EQUILIBRE du compte de résultat prévisionnel (1) + (3)  = (2) + (4)",{"$f":"H13+H14","v":96507366.650000006},{"$f":"I13+I14","v":103126588},{"$f":"J13+J14","v":0},0,{"$f":"L13+L14","v":103126588}]
["* Il s'agit des sous catégories de comptes présentant les contributions employeur au CAS Pensions.",null,null,{"$f":"\"Nouveau BR : Différence charges de personnel entre tableau 2 et tableau 6 est de : \"&(ROUND(D9,0)-ROUND('2-tab_aut_budg_ETAB'!H11+'2-tab_aut_budg_ETAB'!H24,0))","v":"Nouveau BR : Différence charges de personnel entre tableau 2 et tableau 6 est de : 0"},{"$f":"\"Somme des BR : Différence charges de personnel entre tableau 2 et tableau 6 est de : \"&(ROUND(E9,0)-ROUND('2-tab_aut_budg_ETAB'!J11+'2-tab_aut_budg_ETAB'!J24,0))","v":"Somme des BR : Différence charges de personnel entre tableau 2 et tableau 6 est de : 0"},{"$f":"\"Budget BI+BR : Différence charges de personnel entre tableau 2 et tableau 6 est de : \"&(ROUND(F9,0)-ROUND('2-tab_aut_budg_ETAB'!L11+'2-tab_aut_budg_ETAB'!L24,0))","v":"Budget BI+BR : Différence charges de personnel entre tableau 2 et tableau 6 est de : -839581"}]
[null,null,null,{"$f":"IF('2-tab_aut_budg_ETAB'!L24=\"\",IF(ROUND(D10,-1)<>ROUND('2-tab_aut_budg_ETAB'!H12,-1),\"! Incohérence charges PC Tab2 ETAB\",\"\"),\"\")","v":""},{"$f":"IF('2-tab_aut_budg_ETAB'!L24=\"\",IF(ROUND(E10,-1)<>ROUND('2-tab_aut_budg_ETAB'!J12,-1),\"! Incohérence charges PC Tab2 ETAB\",\"\"),\"\")","v":""},{"$f":"IF('2-tab_aut_budg_ETAB'!L24=\"\",IF(ROUND(F10,-1)<>ROUND('2-tab_aut_budg_ETAB'!L12,-1),\"! Incohérence charges PCl Tab2 ETAB\",\"\"),\"\")","v":""}]
[]
["Calcul de la capacité d'autofinancement (CAF)"]
[]
[null,"Exécution N-1: BR2/2022","Budget initial\n(g)","Nouveau BR","Somme des BR\n(yc nouveau BR) (h)","TOTAL : dernier budget modifié\n(i) = (g) + (h)"]
["Résultat prévisionnel de l'exercice \n(bénéfice (3) ou perte (-4)",{"$f":"IF(B14>0,B14,-H14)","v":568215.23000001907},{"$f":"IF(C14>0,C14,-I14)","v":-1060087},{"$f":"IF(D14>0,D14,-J14)","v":0},{"$f":"IF(E14>0,E14,-K14)","v":0},{"$f":"IF(F14>0,F14,-L14)","v":-1060087}]
["+  dotations aux amortissements, dépréciations et provisions",{"$f":"'6-tab CR_TF_AGR'!B23+'6-tab CR_TF_SIE'!B23","v":7091877},{"$f":"'6-tab CR_TF_PRINC'!C23+'6-tab CR_TF_FU'!C23","v":7711709},{"$f":"'6-tab CR_TF_AGR'!D23+'6-tab CR_TF_SIE'!D23","v":0},{"$f":"'6-tab CR_TF_AGR'!E23+'6-tab CR_TF_SIE'!E23","v":0},{"$f":"C23+E23","v":7711709}]
["-  reprises sur amortissements, dépréciations et provisions",{"$f":"'6-tab CR_TF_AGR'!B24+'6-tab CR_TF_SIE'!B24","v":0},{"$f":"'6-tab CR_TF_PRINC'!C24+'6-tab CR_TF_FU'!C24","v":0},{"$f":"'6-tab CR_TF_AGR'!D24+'6-tab CR_TF_SIE'!D24","v":0},{"$f":"'6-tab CR_TF_AGR'!E24+'6-tab CR_TF_SIE'!E24","v":0},{"$f":"C24+E24","v":0}]
["+ valeur nette comptable des éléments d'actifs cédés",{"$f":"'6-tab CR_TF_AGR'!B25+'6-tab CR_TF_SIE'!B25","v":0},{"$f":"'6-tab CR_TF_PRINC'!C25+'6-tab CR_TF_FU'!C25","v":0},{"$f":"'6-tab CR_TF_AGR'!D25+'6-tab CR_TF_SIE'!D25","v":0},{"$f":"'6-tab CR_TF_AGR'!E25+'6-tab CR_TF_SIE'!E25","v":0},{"$f":"C25+E25","v":0}]
["- produits de cession d'éléments d'actifs",{"$f":"'6-tab CR_TF_AGR'!B26+'6-tab CR_TF_SIE'!B26","v":0},{"$f":"'6-tab CR_TF_PRINC'!C26+'6-tab CR_TF_FU'!C26","v":0},{"$f":"'6-tab CR_TF_AGR'!D26+'6-tab CR_TF_SIE'!D26","v":0},{"$f":"'6-tab CR_TF_AGR'!E26+'6-tab CR_TF_SIE'!E26","v":0},{"$f":"C26+E26","v":0}]
["- quote-part des subventions d’investissement virée au résultat de l’exercice",{"$f":"'6-tab CR_TF_AGR'!B27+'6-tab CR_TF_SIE'!B27","v":-4749988},{"$f":"'6-tab CR_TF_PRINC'!C27+'6-tab CR_TF_FU'!C27","v":-5202367},{"$f":"'6-tab CR_TF_AGR'!D27+'6-tab CR_TF_SIE'!D27","v":0},{"$f":"'6-tab CR_TF_AGR'!E27+'6-tab CR_TF_SIE'!E27","v":0},{"$f":"C27+E27","v":-5202367}]
["= CAF ou IAF*",{"$f":"SUM(B22:B27)","v":2910104.2300000191},{"$f":"SUM(C22:C27)","v":1449255},0,0,{"$f":"SUM(F22:F27)","v":1449255}]
["* capacité d'autofinancement ou insuffisance d'autofinancement"]
[]
[]
["État prévisionnel de l'évolution de la situation patrimoniale en droits constatés",null,null,{"$f":"IF(ROUND(F41,-1)=ROUND('6-tab CR_TF_AGR'!F41+'6-tab CR_TF_SIE'!F41,-1),\"\",\"! Pb agrégat apport FDR\")","v":""}]
[]
["EMPLOIS","Exécution N-1: BR2/2022","Budget initial\n(j)","Nouveau BR","Somme des BR\n(yc nouveau BR) (k)","TOTAL : dernier budget modifié\n(l) = (j) + (k)","RESSOURCES","Exécution N-1: BR2/2022","Budget initial\n(m)","Nouveau BR","Somme des BR\n(yc nouveau BR) (n)","TOTAL : dernier budget modifié\n(o) = (m) + (n)"]
["Insuffisance d'autofinancement*",{"$f":"IF(B28<0,-B28,0)","v":0},{"$f":"IF(C28<0,-C28,0)","v":0},{"$f":"IF(D28<0,-D28,0)","v":0},{"$f":"IF(E28<0,-E28,0)","v":0},{"$f":"IF(F28<0,-F28,0)","v":0},"Capacité d'autofinancement*",{"$f":"IF(B28>0,B28,0)","v":2910104.2300000191},{"$f":"IF(C28>0,C28,0)","v":1449255},{"$f":"IF(D28>0,D28,0)","v":0},{"$f":"IF(E28>0,E28,0)","v":0},{"$f":"IF(F28>0,F28,0)","v":1449255}]
["Investissements",{"$f":"'6-tab CR_TF_AGR'!B36+'6-tab CR_TF_SIE'!B36","v":8344355.4199999999},{"$f":"'6-tab CR_TF_AGR'!C36+'6-tab CR_TF_SIE'!C36","v":8080912},{"$f":"'6-tab CR_TF_AGR'!D36+'6-tab CR_TF_SIE'!D36","v":0},{"$f":"'6-tab CR_TF_AGR'!E36+'6-tab CR_TF_SIE'!E36","v":0},{"$f":"C36+E36","v":8080912},"Financement de l'actif par l'État",{"$f":"'6-tab CR_TF_AGR'!H36+'6-tab CR_TF_SIE'!H36","v":1217182.02},{"$f":"'6-tab CR_TF_AGR'!I36+'6-tab CR_TF_SIE'!I36","v":100000},{"$f":"'6-tab CR_TF_AGR'!J36+'6-tab CR_TF_SIE'!J36","v":0},{"$f":"'6-tab CR_TF_AGR'!K36+'6-tab CR_TF_SIE'!K36","v":0},{"$f":"I36+K36","v":100000}]
[null,{"$f":"'6-tab CR_TF_AGR'!B37+'6-tab CR_TF_SIE'!B37","v":0},{"$f":"'6-tab CR_TF_AGR'!C37+'6-tab CR_TF_SIE'!C37","v":0},{"$f":"'6-tab CR_TF_AGR'!D37+'6-tab CR_TF_SIE'!D37","v":0},{"$f":"'6-tab CR_TF_AGR'!E37+'6-tab CR_TF_SIE'!E37","v":0},null,"Financement de l'actif par des tiers autres que l'Etat",{"$f":"'6-tab CR_TF_AGR'!H37+'6-tab CR_TF_SIE'!H37","v":2201214.04},{"$f":"'6-tab CR_TF_AGR'!I37+'6-tab CR_TF_SIE'!I37","v":1047661},{"$f":"'6-tab CR_TF_AGR'!J37+'6-tab CR_TF_SIE'!J37","v":0},{"$f":"'6-tab CR_TF_AGR'!K37+'6-tab CR_TF_SIE'!K37","v":0},{"$f":"I37+K37","v":1047661}]
[null,{"$f":"'6-tab CR_TF_AGR'!B38+'6-tab CR_TF_SIE'!B38","v":0},{"$f":"'6-tab CR_TF_AGR'!C38+'6-tab CR_TF_SIE'!C38","v":0},{"$f":"'6-tab CR_TF_AGR'!D38+'6-tab CR_TF_SIE'!D38","v":0},{"$f":"'6-tab CR_TF_AGR'!E38+'6-tab CR_TF_SIE'!E38","v":0},null,"Autres ressources",{"$f":"'6-tab CR_TF_AGR'!H38+'6-tab CR_TF_SIE'!H38","v":458086},{"$f":"'6-tab CR_TF_AGR'!I38+'6-tab CR_TF_SIE'!I38","v":1867859},{"$f":"'6-tab CR_TF_AGR'!J38+'6-tab CR_TF_SIE'!J38","v":0},{"$f":"'6-tab CR_TF_AGR'!K38+'6-tab CR_TF_SIE'!K38","v":0},1867859]
["Remboursement des dettes financières",{"$f":"'6-tab CR_TF_AGR'!B39+'6-tab CR_TF_SIE'!B39","v":0},{"$f":"'6-tab CR_TF_AGR'!C39+'6-tab CR_TF_SIE'!C39","v":0},{"$f":"'6-tab CR_TF_AGR'!D39+'6-tab CR_TF_SIE'!D39","v":0},{"$f":"'6-tab CR_TF_AGR'!E39+'6-tab CR_TF_SIE'!E39","v":0},{"$f":"C39+E39","v":0},"Augmentation des dettes financières",{"$f":"'6-tab CR_TF_AGR'!H39+'6-tab CR_TF_SIE'!H39","v":0},{"$f":"'6-tab CR_TF_AGR'!I39+'6-tab CR_TF_SIE'!I39","v":0},{"$f":"'6-tab CR_TF_AGR'!J39+'6-tab CR_TF_SIE'!J39","v":0},{"$f":"'6-tab CR_TF_AGR'!K39+'6-tab CR_TF_SIE'!K39","v":0},0]
["TOTAL DES EMPLOIS (5)",{"$f":"SUM(B35:B39)","v":8344355.4199999999},8080912,0,{"$f":"SUM(E35:E39)","v":0},{"$f":"SUM(F35:F39)","v":8080912},"TOTAL DES RESSOURCES (6)",{"$f":"SUM(H35:H39)","v":6786586.2900000196},4464775,0,{"$f":"SUM(K35:K39)","v":0},{"$f":"SUM(L35:L39)","v":4464775}]
["APPORT au FONDS DE ROULEMENT (7) = (6)-(5)",{"$f":"IF(H40-B40>0,H40-B40,0)","v":0},{"$f":"IF(I40-C40>0,I40-C40,0)","v":0},{"$f":"IF(J40-D40>0,J40-D40,0)","v":0},{"$f":"IF(K40-E40>0,K40-E40,0)","v":0},{"$f":"IF(L40-F40>0,L40-F40,0)","v":0},"PRELEVEMENT sur FONDS DE ROULEMENT (8) = (5)-(6)",{"$f":"IF(B40-H40>0,B40-H40,0)","v":1557769.1299999803},{"$f":"IF(C40-I40>0,C40-I40,0)","v":3616137},{"$f":"IF(D40-J40>0,D40-J40,0)","v":0},{"$f":"IF(E40-K40>0,E40-K40,0)","v":0},{"$f":"IF(F40-L40>0,F40-L40,0)","v":3616137}]
[]
["POUR INFORMATION DE L'ORGANE DÉLIBÉRANT"]
[]
[null,null,null,null,null,null,null,"Exécution N-1: BR2/2022","Budget initial\n(q)","Nouveau BR","Somme des BR\n(yc nouveau BR) (r)","TOTAL : dernier budget modifié\nVariation (s) = (q) + (r)\nNiveau = (p) + (s)"]
["VARIATION DU FONDS DE ROULEMENT : APPORT (7) ou PRELEVEMENT (8)",null,null,null,null,null,null,{"$f":"IF(B41>0,B41,-H41)","v":-1557769.1299999803},{"$f":"IF(C41>0,C41,-I41)","v":-3616137},{"$f":"IF(D41>0,D41,-J41)","v":0},{"$f":"IF(E41>0,E41,-K41)","v":0},{"$f":"I46+K46","v":-3616137}]
["Variation du BESOIN en FONDS DE ROULEMENT",null,null,null,null,null,null,{"$f":"'6-tab CR_TF_AGR'!H47+'6-tab CR_TF_SIE'!H47","v":-939306.16},{"$f":"'6-tab CR_TF_AGR'!I47+'6-tab CR_TF_SIE'!I47","v":1067978.29},{"$f":"'6-tab CR_TF_AGR'!J47+'6-tab CR_TF_SIE'!J47","v":0},{"$f":"'6-tab CR_TF_AGR'!K47+'6-tab CR_TF_SIE'!K47","v":0},{"$f":"I47+K47","v":1067978.29}]
["Variation de la TRESORERIE : ABONDEMENT (I) ou PRELEVEMENT (II) *",null,null,null,null,null,null,{"$f":"'6-tab CR_TF_AGR'!H48+'6-tab CR_TF_SIE'!H48","v":-618462.97000000055},{"$f":"'6-tab CR_TF_AGR'!I48+'6-tab CR_TF_SIE'!I48","v":-4684115.29},{"$f":"'6-tab CR_TF_AGR'!J48+'6-tab CR_TF_SIE'!J48","v":0},{"$f":"'6-tab CR_TF_AGR'!K48+'6-tab CR_TF_SIE'!K48","v":0},-4684115.29]
["Niveau du FONDS DE ROULEMENT",null,null,null,null,null,null,{"$f":"'6-tab CR_TF_AGR'!H49+'6-tab CR_TF_SIE'!H49","v":12189108.680000009},{"$f":"'6-tab CR_TF_AGR'!I49+'6-tab CR_TF_SIE'!I49","v":8572971.680000009},{"$f":"'6-tab CR_TF_AGR'!J49+'6-tab CR_TF_SIE'!J49","v":0},{"$f":"'6-tab CR_TF_AGR'!K49+'6-tab CR_TF_SIE'!K49","v":0},{"$f":"H49+L46","v":8572971.680000009}]
["Niveau du BESOIN EN FONDS DE ROULEMENT",null,null,null,null,null,null,{"$f":"'6-tab CR_TF_AGR'!H50+'6-tab CR_TF_SIE'!H50","v":-776867.5499999919},{"$f":"'6-tab CR_TF_AGR'!I50+'6-tab CR_TF_SIE'!I50","v":291110.74000000808},{"$f":"'6-tab CR_TF_AGR'!J50+'6-tab CR_TF_SIE'!J50","v":0},{"$f":"'6-tab CR_TF_AGR'!K50+'6-tab CR_TF_SIE'!K50","v":0},{"$f":"H50+L47","v":291110.74000000814}]
["Niveau de la TRESORERIE",null,null,null,null,null,null,{"$f":"'6-tab CR_TF_AGR'!H51+'6-tab CR_TF_SIE'!H51","v":12965976.23},{"$f":"'6-tab CR_TF_AGR'!I51+'6-tab CR_TF_SIE'!I51","v":8281860.9400000013},{"$f":"'6-tab CR_TF_AGR'!J51+'6-tab CR_TF_SIE'!J51","v":0},{"$f":"'6-tab CR_TF_AGR'!K51+'6-tab CR_TF_SIE'!K51","v":0},8281860.9400000004]
[]
["* : montant issu du tableau \"équilibre financier\""]

{"sheet":"6-tab CR_TF_PRINC","index":13,"n_rows":53,"n_cols":12,"rows_kept":53,"cut":false,"hidden":false,"merged":[[0,0,0,7],[1,0,1,7],[3,0,3,11],[4,6,5,6],[10,0,11,0],[10,1,11,1],[10,2,11,2],[10,3,11,3],[10,4,11,4],[10,5,11,5],[18,0,18,7],[35,0,37,0],[35,1,37,1],[35,2,37,2],[35,3,37,3],[35,4,37,4],[35,5,37,5],[45,13,45,15],[50,0,50,6],[44,0,44,6],[45,0,45,6],[46,0,46,6],[47,0,47,6],[48,0,48,6],[49,0,49,6]]}
["Tableau 6 - Université de Bretagne Sud (0561718N) : Etablissement principal"]
[{"$f":"\"Situation patrimoniale - Budget \"&Maquette!B4&\" \"&Maquette!B5&\" \"&Maquette!B3","v":"Situation patrimoniale - Budget initial  2023"}]
[]
["POUR VOTE DE L'ORGANE DÉLIBÉRANT"]
[]
["Compte de résultat prévisionnel"]
[]
["CHARGES","Exécution N-1: BR2/2022","Budget initial\n(a)","Nouveau BR","Somme des BR\n(yc nouveau BR) (b)","TOTAL : dernier budget modifié\n(c) = (a) + (b)","PRODUITS","Exécution N-1: BR2/2022","Budget initial\n(d)","Nouveau BR","Somme des BR\n(yc nouveau BR) (e)","TOTAL : dernier budget modifié\n(f) = (d) + (e)"]
["Personnel",74820165.530000001,78892506,null,null,{"$f":"C9+E9","v":78892506},"Subventions de l'Etat",70981184.689999998,73457261,null,null,{"$f":"I9+K9","v":73457261}]
["dont charges de pensions civiles*",19827314,null,null,null,{"$f":"C10+E10","v":0},"Fiscalité affectée",600000,626184,null,null,{"$f":"I10+K10","v":626184}]
["Fonctionnement (autre que les charges de personnel) et intervention",20832121.649999999,23751110,null,null,{"$f":"C11+E11","v":23751110},"Autres subventions",5477440.6100000003,6640752,null,null,6640752]
[null,null,null,null,null,null,"Autres produits",19158171.350000001,20832866,null,null,20832866]
["TOTAL DES CHARGES (1)",{"$f":"B9+B11","v":95652287.180000007},{"$f":"C9+C11","v":102643616},{"$f":"D9+D11","v":0},0,{"$f":"F9+F11","v":102643616},"TOTAL DES PRODUITS (2)",{"$f":"SUM(H9:H12)","v":96216796.650000006},{"$f":"SUM(I9:I12)","v":101557063},0,0,{"$f":"SUM(L9:L12)","v":101557063}]
["Résultat prévisionnel : bénéfice   (3) = (2) - (1)",{"$f":"IF(H13-B13>0,H13-B13,0)","v":564509.46999999881},{"$f":"IF(I13-C13>0,I13-C13,0)","v":0},{"$f":"IF(J13-D13>0,J13-D13,0)","v":0},{"$f":"IF(K13-E13>0,K13-E13,0)","v":0},{"$f":"IF(L13-F13>0,L13-F13,0)","v":0},"Résultat prévisionnel : perte  (4) = (1) - (2)",{"$f":"IF(B13-H13>0,B13-H13,0)","v":0},{"$f":"IF(C13-I13>0,C13-I13,0)","v":1086553},{"$f":"IF(D13-J13>0,D13-J13,0)","v":0},{"$f":"IF(E13-K13>0,E13-K13,0)","v":0},{"$f":"IF(F13-L13>0,F13-L13,0)","v":1086553}]
["TOTAL EQUILIBRE du compte de résultat prévisionnel (1) + (3) = (2) + (4)",{"$f":"B13+B14","v":96216796.650000006},{"$f":"C13+C14","v":102643616},{"$f":"D13+D14","v":0},0,{"$f":"F13+F14","v":102643616},"TOTAL EQUILIBRE du compte de résultat prévisionnel (1) + (3)  = (2) + (4)",{"$f":"H13+H14","v":96216796.650000006},{"$f":"I13+I14","v":102643616},0,0,{"$f":"L13+L14","v":102643616}]
["* Il s'agit des sous catégories de comptes présentant les contributions employeur au CAS Pensions.",null,null,{"$f":"\"Nouveau BR : Différence charges de personnel entre tableau 2 et tableau 6 est de : \"&(ROUND(D9,0)-ROUND('2-tab_aut_budg_PRINC'!H11+'2-tab_aut_budg_PRINC'!H24,0))","v":"Nouveau BR : Différence charges de personnel entre tableau 2 et tableau 6 est de : 0"},{"$f":"\"Somme des BR : Différence charges de personnel entre tableau 2 et tableau 6 est de : \"&(ROUND(E9,0)-ROUND('2-tab_aut_budg_PRINC'!J11+'2-tab_aut_budg_PRINC'!J24,0))","v":"Somme des BR : Différence charges de personnel entre tableau 2 et tableau 6 est de : 0"},{"$f":"\"Budget BI+BR : Différence charges de personnel entre tableau 2 et tableau 6 est de : \"&(ROUND(F9,0)-ROUND('2-tab_aut_budg_PRINC'!L11+'2-tab_aut_budg_PRINC'!L24,0))","v":"Budget BI+BR : Différence charges de personnel entre tableau 2 et tableau 6 est de : -837162"}]
[null,null,null,{"$f":"IF('2-tab_aut_budg_PRINC'!L24=\"\",IF(ROUND(D10,-1)<>ROUND('2-tab_aut_budg_PRINC'!H12,-1),\"! Incohérence charges PC Tab2 PRINC\",\"\"),\"\")","v":""},{"$f":"IF('2-tab_aut_budg_PRINC'!L24=\"\",IF(ROUND(E10,-1)<>ROUND('2-tab_aut_budg_PRINC'!J12,-1),\"! Incohérence charges PC Tab2 PRINC\",\"\"),\"\")","v":""},{"$f":"IF('2-tab_aut_budg_PRINC'!L24=\"\",IF(ROUND(F10,-1)<>ROUND('2-tab_aut_budg_PRINC'!L12,-1),\"! Incohérence charges PCl Tab2 PRINC\",\"\"),\"\")","v":""}]
[]
["Calcul de la capacité d'autofinancement (CAF)"]
[]
[null,"Exécution N-1: BR2/2022","Budget initial\n(g)","Nouveau BR","Somme des BR\n(yc nouveau BR) (h)","TOTAL : dernier budget modifié\n(i) = (g) + (h)"]
["Résultat prévisionnel de l'exercice \n(bénéfice (3) ou perte (-4)",{"$f":"IF(B14>0,B14,-H14)","v":564509.46999999881},{"$f":"IF(C14>0,C14,-I14)","v":-1086553},{"$f":"IF(D14>0,D14,-J14)","v":0},{"$f":"IF(E14>0,E14,-K14)","v":0},{"$f":"IF(F14>0,F14,-L14)","v":-1086553}]
["+  dotations aux amortissements, dépréciations et provisions",7061588,7681337,null,null,{"$f":"C23+E23","v":7681337}]
["-  reprises sur amortissements, dépréciations et provisions",0,null,null,null,{"$f":"C24+E24","v":0}]
["+ valeur nette comptable des éléments d'actifs cédés",0,null,null,null,{"$f":"C25+E25","v":0}]
["- produits de cession d'éléments d'actifs",0,null,null,null,{"$f":"C26+E26","v":0}]
["- quote-part des subventions d’investissement virée au résultat de l’exercice",-4743688,-5190287,null,null,{"$f":"C27+E27","v":-5190287}]
["= CAF ou IAF*",{"$f":"SUM(B22:B27)","v":2882409.4699999988},{"$f":"SUM(C22:C27)","v":1404497},0,0,{"$f":"SUM(F22:F27)","v":1404497}]
["* capacité d'autofinancement ou insuffisance d'autofinancement"]
[]
[]
["État prévisionnel de l'évolution de la situation patrimoniale en droits constatés"]
[]
["EMPLOIS","Exécution N-1: BR2/2022","Budget initial\n(j)","Nouveau BR","Somme des BR\n(yc nouveau BR) (k)","TOTAL : dernier budget modifié\n(l) = (j) + (k)","RESSOURCES","Exécution N-1: BR2/2022","Budget initial\n(m)","Nouveau BR","Somme des BR\n(yc nouveau BR) (n)","TOTAL : dernier budget modifié\n(o) = (m) + (n)"]
["Insuffisance d'autofinancement*",{"$f":"IF(B28<0,-B28,0)","v":0},{"$f":"IF(C28<0,-C28,0)","v":0},{"$f":"IF(D28<0,-D28,0)","v":0},{"$f":"IF(E28<0,-E28,0)","v":0},{"$f":"IF(F28<0,-F28,0)","v":0},"Capacité d'autofinancement*",{"$f":"IF(B28>0,B28,0)","v":2882409.4699999988},{"$f":"IF(C28>0,C28,0)","v":1404497},{"$f":"IF(D28>0,D28,0)","v":0},{"$f":"IF(E28>0,E28,0)","v":0},{"$f":"IF(F28>0,F28,0)","v":1404497}]
["Investissements",8342355.4199999999,8040912,null,null,{"$f":"C36+E36","v":8040912},"Financement de l'actif par l'État",1217182.02,100000,null,null,{"$f":"I36+K36","v":100000}]
[null,null,null,null,null,null,"Financement de l'actif par des tiers autres que l'Etat",2201214.04,1047661,null,null,{"$f":"I37+K37","v":1047661}]
[null,null,null,null,null,null,"Autres ressources",330878,1891859,null,null,1891859]
["Remboursement des dettes financières",null,null,null,null,{"$f":"C39+E39","v":0},"Augmentation des dettes financières",null,null,null,null,0]
["TOTAL DES EMPLOIS (5)",{"$f":"SUM(B35:B39)","v":8342355.4199999999},8040912,0,{"$f":"SUM(E35:E39)","v":0},{"$f":"SUM(F35:F39)","v":8040912},"TOTAL DES RESSOURCES (6)",{"$f":"SUM(H35:H39)","v":6631683.5299999993},4444017,0,0,{"$f":"SUM(L35:L39)","v":4444017}]
["APPORT au FONDS DE ROULEMENT (7) = (6)-(5)",{"$f":"IF(H40-B40>0,H40-B40,0)","v":0},{"$f":"IF(I40-C40>0,I40-C40,0)","v":0},{"$f":"IF(J40-D40>0,J40-D40,0)","v":0},{"$f":"IF(K40-E40>0,K40-E40,0)","v":0},{"$f":"IF(L40-F40>0,L40-F40,0)","v":0},"PRELEVEMENT sur FONDS DE ROULEMENT (8) = (5)-(6)",{"$f":"IF(B40-H40>0,B40-H40,0)","v":1710671.8900000006},{"$f":"IF(C40-I40>0,C40-I40,0)","v":3596895},{"$f":"IF(D40-J40>0,D40-J40,0)","v":0},{"$f":"IF(E40-K40>0,E40-K40,0)","v":0},{"$f":"IF(F40-L40>0,F40-L40,0)","v":3596895}]
[]
["POUR INFORMATION DE L'ORGANE DÉLIBÉRANT"]
[]
[null,null,null,null,null,null,null,"Exécution N-1: BR2/2022","Budget initial\n(q)","Nouveau BR","Somme des BR\n(yc nouveau BR) (r)","TOTAL : dernier budget modifié\nVariation (s) = (q) + (r)\nNiveau = (p) + (s)"]
["VARIATION DU FONDS DE ROULEMENT : APPORT (7) ou PRELEVEMENT (8)",null,null,null,null,null,null,{"$f":"IF(B41>0,B41,-H41)","v":-1710671.8900000006},{"$f":"IF(C41>0,C41,-I41)","v":-3596895},{"$f":"IF(D41>0,D41,-J41)","v":0},{"$f":"IF(E41>0,E41,-K41)","v":0},{"$f":"I46+K46","v":-3596895}]
["Variation du BESOIN en FONDS DE ROULEMENT",null,null,null,null,null,null,{"$f":"H46-H48","v":-1038593.04},{"$f":"I46-I48","v":1025978.29},null,null,{"$f":"I47+K47","v":1025978.29}]
["Variation de la TRESORERIE : ABONDEMENT (I) ou PRELEVEMENT (II) *",null,null,null,null,null,null,-672078.85000000056,{"$f":"-4622873.29","v":-4622873.29},null,null,-4622873.29]
["Niveau du FONDS DE ROULEMENT",null,null,null,null,null,null,11862976.930000009,{"$f":"H49+I46","v":8266081.930000009},null,null,{"$f":"H49+L46","v":8266081.930000009}]
["Niveau du BESOIN EN FONDS DE ROULEMENT",null,null,null,null,null,null,{"$f":"H49-H51","v":-875363.43999999203},{"$f":"I49-I51","v":150614.85000000801},0,0,{"$f":"H50+L47","v":150614.85000000801}]
["Niveau de la TRESORERIE",null,null,null,null,null,null,12738340.370000001,{"$f":"H51+I48","v":8115467.080000001},null,null,8115467.080000001]
[]
["* : montant issu du tableau \"équilibre financier\""]

{"sheet":"6-tab CR_TF_FU","index":14,"n_rows":53,"n_cols":12,"rows_kept":53,"cut":false,"hidden":false,"merged":[[0,0,0,7],[1,0,1,7],[3,0,3,11],[4,6,5,6],[10,0,11,0],[10,1,11,1],[10,2,11,2],[10,3,11,3],[10,4,11,4],[10,5,11,5],[18,0,18,7],[35,0,37,0],[35,1,37,1],[35,2,37,2],[35,3,37,3],[35,4,37,4],[35,5,37,5],[50,0,50,6],[45,13,45,15],[44,0,44,6],[45,0,45,6],[46,0,46,6],[47,0,47,6],[48,0,48,6],[49,0,49,6]]}
["Tableau 6 - Université de Bretagne Sud (0561718N) : Fondation"]
[{"$f":"\"Situation patrimoniale - Budget \"&Maquette!B4&\" \"&Maquette!B5&\" \"&Maquette!B3","v":"Situation patrimoniale - Budget initial  2023"}]
[]
["POUR VOTE DE L'ORGANE DÉLIBÉRANT"]
[]
["Compte de résultat prévisionnel"]
[]
["CHARGES","Exécution N-1: BR2/2022","Budget initial\n(a)","Nouveau BR","Somme des BR\n(yc nouveau BR) (b)","TOTAL : dernier budget modifié\n(c) = (a) + (b)","PRODUITS","Exécution N-1: BR2/2022","Budget initial\n(d)","Nouveau BR","Somme des BR\n(yc nouveau BR) (e)","TOTAL : dernier budget modifié\n(f) = (d) + (e)"]
["Personnel",110583.24,230181,null,null,{"$f":"C9+E9","v":230181},"Subventions de l'Etat",53478,66000,null,null,{"$f":"I9+K9","v":66000}]
["dont charges de pensions civiles*",null,null,null,null,{"$f":"C10+E10","v":0},"Fiscalité affectée",0,null,null,null,{"$f":"I10+K10","v":0}]
["Fonctionnement (autre que les charges de personnel) et intervention",176281,252791,null,null,{"$f":"C11+E11","v":252791},"Autres subventions",59000,59000,null,null,59000]
[null,null,null,null,null,null,"Autres produits",178092,384438,null,null,384438]
["TOTAL DES CHARGES (1)",{"$f":"B9+B11","v":286864.24},{"$f":"C9+C11","v":482972},{"$f":"D9+D11","v":0},0,{"$f":"F9+F11","v":482972},"TOTAL DES PRODUITS (2)",{"$f":"SUM(H9:H12)","v":290570},{"$f":"SUM(I9:I12)","v":509438},0,0,{"$f":"SUM(L9:L12)","v":509438}]
["Résultat prévisionnel : bénéfice   (3) = (2) - (1)",{"$f":"IF(H13-B13>0,H13-B13,0)","v":3705.7600000000093},{"$f":"IF(I13-C13>0,I13-C13,0)","v":26466},{"$f":"IF(J13-D13>0,J13-D13,0)","v":0},{"$f":"IF(K13-E13>0,K13-E13,0)","v":0},{"$f":"IF(L13-F13>0,L13-F13,0)","v":26466},"Résultat prévisionnel : perte  (4) = (1) - (2)",{"$f":"IF(B13-H13>0,B13-H13,0)","v":0},{"$f":"IF(C13-I13>0,C13-I13,0)","v":0},{"$f":"IF(D13-J13>0,D13-J13,0)","v":0},{"$f":"IF(E13-K13>0,E13-K13,0)","v":0},{"$f":"IF(F13-L13>0,F13-L13,0)","v":0}]
["TOTAL EQUILIBRE du compte de résultat prévisionnel (1) + (3) = (2) + (4)",{"$f":"B13+B14","v":290570},{"$f":"C13+C14","v":509438},{"$f":"D13+D14","v":0},0,{"$f":"F13+F14","v":509438},"TOTAL EQUILIBRE du compte de résultat prévisionnel (1) + (3)  = (2) + (4)",{"$f":"H13+H14","v":290570},{"$f":"I13+I14","v":509438},0,0,{"$f":"L13+L14","v":509438}]
["* Il s'agit des sous catégories de comptes présentant les contributions employeur au CAS Pensions.",null,null,{"$f":"\"Nouveau BR : Différence charges de personnel entre tableau 2 et tableau 6 est de : \"&(ROUND(D9,0)-ROUND('2-tab_aut_budg_FU'!H11+'2-tab_aut_budg_FU'!H24,0))","v":"Nouveau BR : Différence charges de personnel entre tableau 2 et tableau 6 est de : 0"},{"$f":"\"Somme des BR : Différence charges de personnel entre tableau 2 et tableau 6 est de : \"&(ROUND(E9,0)-ROUND('2-tab_aut_budg_FU'!J11+'2-tab_aut_budg_FU'!J24,0))","v":"Somme des BR : Différence charges de personnel entre tableau 2 et tableau 6 est de : 0"},{"$f":"\"Budget BI+BR : Différence charges de personnel entre tableau 2 et tableau 6 est de : \"&(ROUND(F9,0)-ROUND('2-tab_aut_budg_FU'!L11+'2-tab_aut_budg_FU'!L24,0))","v":"Budget BI+BR : Différence charges de personnel entre tableau 2 et tableau 6 est de : -2419"}]
[null,null,null,{"$f":"IF('2-tab_aut_budg_FU'!L24=\"\",IF(ROUND(D10,-1)<>ROUND('2-tab_aut_budg_FU'!H12,-1),\"! Incohérence charges PC Tab2 FU\",\"\"),\"\")","v":""},{"$f":"IF('2-tab_aut_budg_FU'!L24=\"\",IF(ROUND(E10,-1)<>ROUND('2-tab_aut_budg_FU'!J12,-1),\"! Incohérence charges PC Tab2 FU\",\"\"),\"\")","v":""},{"$f":"IF('2-tab_aut_budg_FU'!L24=\"\",IF(ROUND(F10,-1)<>ROUND('2-tab_aut_budg_FU'!L12,-1),\"! Incohérence charges PCl Tab2 FU\",\"\"),\"\")","v":""}]
[]
["Calcul de la capacité d'autofinancement (CAF)"]
[]
[null,"Exécution N-1: BR2/2022","Budget initial\n(g)","Nouveau BR","Somme des BR\n(yc nouveau BR) (h)","TOTAL : dernier budget modifié\n(i) = (g) + (h)"]
["Résultat prévisionnel de l'exercice \n(bénéfice (3) ou perte (-4)",{"$f":"IF(B14>0,B14,-H14)","v":3705.7600000000093},{"$f":"IF(C14>0,C14,-I14)","v":26466},{"$f":"IF(D14>0,D14,-J14)","v":0},{"$f":"IF(E14>0,E14,-K14)","v":0},{"$f":"IF(F14>0,F14,-L14)","v":26466}]
["+  dotations aux amortissements, dépréciations et provisions",30289,30372,null,null,{"$f":"C23+E23","v":30372}]
["-  reprises sur amortissements, dépréciations et provisions",0,null,null,null,{"$f":"C24+E24","v":0}]
["+ valeur nette comptable des éléments d'actifs cédés",0,null,null,null,{"$f":"C25+E25","v":0}]
["- produits de cession d'éléments d'actifs",0,null,null,null,{"$f":"C26+E26","v":0}]
["- quote-part des subventions d’investissement virée au résultat de l’exercice",-6300,-12080,null,null,{"$f":"C27+E27","v":-12080}]
["= CAF ou IAF*",{"$f":"SUM(B22:B27)","v":27694.760000000009},{"$f":"SUM(C22:C27)","v":44758},0,0,{"$f":"SUM(F22:F27)","v":44758}]
["* capacité d'autofinancement ou insuffisance d'autofinancement"]
[]
[]
["État prévisionnel de l'évolution de la situation patrimoniale en droits constatés"]
[]
["EMPLOIS","Exécution N-1: BR2/2022","Budget initial\n(j)","Nouveau BR","Somme des BR\n(yc nouveau BR) (k)","TOTAL : dernier budget modifié\n(l) = (j) + (k)","RESSOURCES","Exécution N-1: BR2/2022","Budget initial\n(m)","Nouveau BR","Somme des BR\n(yc nouveau BR) (n)","TOTAL : dernier budget modifié\n(o) = (m) + (n)"]
["Insuffisance d'autofinancement*",{"$f":"IF(B28<0,-B28,0)","v":0},{"$f":"IF(C28<0,-C28,0)","v":0},{"$f":"IF(D28<0,-D28,0)","v":0},{"$f":"IF(E28<0,-E28,0)","v":0},{"$f":"IF(F28<0,-F28,0)","v":0},"Capacité d'autofinancement*",{"$f":"IF(B28>0,B28,0)","v":27694.760000000009},{"$f":"IF(C28>0,C28,0)","v":44758},{"$f":"IF(D28>0,D28,0)","v":0},{"$f":"IF(E28>0,E28,0)","v":0},{"$f":"IF(F28>0,F28,0)","v":44758}]
["Investissements",2000,40000,null,null,{"$f":"C36+E36","v":40000},"Financement de l'actif par l'État",null,null,null,null,{"$f":"I36+K36","v":0}]
[null,null,null,null,null,null,"Financement de l'actif par des tiers autres que l'Etat",null,null,null,null,{"$f":"I37+K37","v":0}]
[null,null,null,null,null,null,"Autres ressources",127208,-24000,null,null,-24000]
["Remboursement des dettes financières",null,null,null,null,{"$f":"C39+E39","v":0},"Augmentation des dettes financières",null,null,null,null,0]
["TOTAL DES EMPLOIS (5)",{"$f":"SUM(B35:B39)","v":2000},40000,0,{"$f":"SUM(E35:E39)","v":0},{"$f":"SUM(F35:F39)","v":40000},"TOTAL DES RESSOURCES (6)",{"$f":"SUM(H35:H39)","v":154902.76},20758,0,0,{"$f":"SUM(L35:L39)","v":20758}]
["APPORT au FONDS DE ROULEMENT (7) = (6)-(5)",{"$f":"IF(H40-B40>0,H40-B40,0)","v":152902.76},{"$f":"IF(I40-C40>0,I40-C40,0)","v":0},{"$f":"IF(J40-D40>0,J40-D40,0)","v":0},{"$f":"IF(K40-E40>0,K40-E40,0)","v":0},{"$f":"IF(L40-F40>0,L40-F40,0)","v":0},"PRELEVEMENT sur FONDS DE ROULEMENT (8) = (5)-(6)",{"$f":"IF(B40-H40>0,B40-H40,0)","v":0},{"$f":"IF(C40-I40>0,C40-I40,0)","v":19242},{"$f":"IF(D40-J40>0,D40-J40,0)","v":0},{"$f":"IF(E40-K40>0,E40-K40,0)","v":0},{"$f":"IF(F40-L40>0,F40-L40,0)","v":19242}]
[]
["POUR INFORMATION DE L'ORGANE DÉLIBÉRANT"]
[]
[null,null,null,null,null,null,null,"Exécution N-1: BR2/2022","Budget initial\n(q)","Nouveau BR","Somme des BR\n(yc nouveau BR) (r)","TOTAL : dernier budget modifié\nVariation (s) = (q) + (r)\nNiveau = (p) + (s)"]
["VARIATION DU FONDS DE ROULEMENT : APPORT (7) ou PRELEVEMENT (8)",null,null,null,null,null,null,{"$f":"IF(B41>0,B41,-H41)","v":152902.76},{"$f":"IF(C41>0,C41,-I41)","v":-19242},{"$f":"IF(D41>0,D41,-J41)","v":0},{"$f":"IF(E41>0,E41,-K41)","v":0},{"$f":"I46+K46","v":-19242}]
["Variation du BESOIN en FONDS DE ROULEMENT",null,null,null,null,null,null,{"$f":"H46-H48","v":99286.88},{"$f":"I46-I48","v":42000},null,null,{"$f":"I47+K47","v":42000}]
["Variation de la TRESORERIE : ABONDEMENT (I) ou PRELEVEMENT (II) *",null,null,null,null,null,null,53615.880000000005,{"$f":"-'2-tab_aut_budg_FU'!O30","v":-61242},null,null,-61242]
["Niveau du FONDS DE ROULEMENT",null,null,null,null,null,null,326131.75000000006,{"$f":"H49+I46","v":306889.75000000006},null,null,{"$f":"H49+L46","v":306889.75000000006}]
["Niveau du BESOIN EN FONDS DE ROULEMENT",null,null,null,null,null,null,{"$f":"H49-H51","v":98495.890000000072},{"$f":"I49-I51","v":140495.89000000007},0,0,{"$f":"H50+L47","v":140495.89000000007}]
["Niveau de la TRESORERIE",null,null,null,null,null,null,227635.86,{"$f":"H51+I48","v":166393.85999999999},null,null,166393.85999999999]
[]
["* : montant issu du tableau \"équilibre financier\""]

{"sheet":"6-tab CR_TF_AGR","index":15,"n_rows":53,"n_cols":14,"rows_kept":53,"cut":false,"hidden":true,"merged":[[0,0,0,7],[1,0,1,7],[3,0,3,11],[5,1,5,2],[5,6,5,7],[10,5,11,5],[18,1,18,2],[31,3,31,4],[35,0,37,0],[35,1,37,1],[35,2,37,2],[35,3,37,3],[35,4,37,4],[35,5,37,5],[10,0,11,0],[10,1,11,1],[10,2,11,2],[10,3,11,3],[10,4,11,4],[44,0,44,6],[45,0,45,6],[46,0,46,6],[47,0,47,6],[47,13,47,14],[48,0,48,6],[49,0,49,6],[50,0,50,6],[50,13,50,14],[45,13,45,15]]}
["Tableau 6 - Université de Bretagne Sud (0561718N) : Etablissement principal + Fondation"]
[{"$f":"\"Situation patrimoniale - Budget agrégé \"&Maquette!B4&\" \"&Maquette!B5&\" \"&Maquette!B3","v":"Situation patrimoniale - Budget agrégé initial  2023"}]
[]
["POUR VOTE DE L'ORGANE DÉLIBÉRANT"]
[]
["Compte de résultat prévisionnel",{"$f":"IF(ROUND(F13,-1)=ROUND('6-tab CR_TF_PRINC'!F13+'6-tab CR_TF_FU'!F13,-1),\"\",\"! Pb agrégat charges\")","v":""},null,null,null,null,{"$f":"IF(ROUND(L13,-1)=ROUND('6-tab CR_TF_PRINC'!L13+'6-tab CR_TF_FU'!L13,-1),\"\",\"! Pb agrégat produits\")","v":""}]
[]
["CHARGES","Exécution N-1","Budget initial\n(a)","Nouveau BR","Somme des BR\n(yc nouveau BR) (b)","TOTAL : dernier budget modifié\n(c) = (a) + (b)","PRODUITS","Exécution N-1","Budget initial\n(d)","Nouveau BR","Somme des BR\n(yc nouveau BR) (e)","TOTAL : dernier budget modifié\n(f) = (d) + (e)"]
["Personnel",{"$f":"'6-tab CR_TF_PRINC'!B9+'6-tab CR_TF_FU'!B9","v":74930748.769999996},{"$f":"'6-tab CR_TF_PRINC'!C9+'6-tab CR_TF_FU'!C9","v":79122687},{"$f":"'6-tab CR_TF_PRINC'!D9+'6-tab CR_TF_FU'!D9","v":0},{"$f":"'6-tab CR_TF_PRINC'!E9+'6-tab CR_TF_FU'!E9","v":0},{"$f":"C9+E9","v":79122687},"Subventions de l'Etat",{"$f":"'6-tab CR_TF_PRINC'!H9+'6-tab CR_TF_FU'!H9","v":71034662.689999998},{"$f":"'6-tab CR_TF_PRINC'!I9+'6-tab CR_TF_FU'!I9","v":73523261},{"$f":"'6-tab CR_TF_PRINC'!J9+'6-tab CR_TF_FU'!J9","v":0},{"$f":"'6-tab CR_TF_PRINC'!K9+'6-tab CR_TF_FU'!K9","v":0},{"$f":"I9+K9","v":73523261}]
["dont charges de pensions civiles*",{"$f":"'6-tab CR_TF_PRINC'!B10+'6-tab CR_TF_FU'!B10","v":19827314},{"$f":"'6-tab CR_TF_PRINC'!C10+'6-tab CR_TF_FU'!C10","v":0},{"$f":"'6-tab CR_TF_PRINC'!D10+'6-tab CR_TF_FU'!D10","v":0},{"$f":"'6-tab CR_TF_PRINC'!E10+'6-tab CR_TF_FU'!E10","v":0},{"$f":"C10+E10","v":0},"Fiscalité affectée",{"$f":"'6-tab CR_TF_PRINC'!H10+'6-tab CR_TF_FU'!H10","v":600000},{"$f":"'6-tab CR_TF_PRINC'!I10+'6-tab CR_TF_FU'!I10","v":626184},{"$f":"'6-tab CR_TF_PRINC'!J10+'6-tab CR_TF_FU'!J10","v":0},{"$f":"'6-tab CR_TF_PRINC'!K10+'6-tab CR_TF_FU'!K10","v":0},{"$f":"I10+K10","v":626184}]
["Fonctionnement (autre que les charges de personnel) et intervention",{"$f":"'6-tab CR_TF_PRINC'!B11+'6-tab CR_TF_FU'!B11","v":21008402.649999999},{"$f":"'6-tab CR_TF_PRINC'!C11+'6-tab CR_TF_FU'!C11","v":24003901},{"$f":"'6-tab CR_TF_PRINC'!D11+'6-tab CR_TF_FU'!D11","v":0},{"$f":"'6-tab CR_TF_PRINC'!E11+'6-tab CR_TF_FU'!E11","v":0},{"$f":"C11+E11","v":24003901},"Autres subventions",{"$f":"'6-tab CR_TF_PRINC'!H11+'6-tab CR_TF_FU'!H11","v":5536440.6100000003},{"$f":"'6-tab CR_TF_PRINC'!I11+'6-tab CR_TF_FU'!I11","v":6699752},{"$f":"'6-tab CR_TF_PRINC'!J11+'6-tab CR_TF_FU'!J11","v":0},{"$f":"'6-tab CR_TF_PRINC'!K11+'6-tab CR_TF_FU'!K11","v":0},6699752]
[null,{"$f":"'6-tab CR_TF_PRINC'!B12+'6-tab CR_TF_FU'!B12","v":0},{"$f":"'6-tab CR_TF_PRINC'!C12+'6-tab CR_TF_FU'!C12","v":0},{"$f":"'6-tab CR_TF_PRINC'!D12+'6-tab CR_TF_FU'!D12","v":0},{"$f":"'6-tab CR_TF_PRINC'!E12+'6-tab CR_TF_FU'!E12","v":0},null,"Autres produits",{"$f":"'6-tab CR_TF_PRINC'!H12+'6-tab CR_TF_FU'!H12","v":19336263.350000001},{"$f":"'6-tab CR_TF_PRINC'!I12+'6-tab CR_TF_FU'!I12","v":21217304},{"$f":"'6-tab CR_TF_PRINC'!J12+'6-tab CR_TF_FU'!J12","v":0},{"$f":"'6-tab CR_TF_PRINC'!K12+'6-tab CR_TF_FU'!K12","v":0},21217304]
["TOTAL DES CHARGES (1)",{"$f":"B9+B11","v":95939151.419999987},{"$f":"C9+C11","v":103126588},{"$f":"D9+D11","v":0},0,{"$f":"F9+F11","v":103126588},"TOTAL DES PRODUITS (2)",{"$f":"SUM(H9:H12)","v":96507366.650000006},{"$f":"SUM(I9:I12)","v":102066501},0,0,{"$f":"SUM(L9:L12)","v":102066501}]
["Résultat prévisionnel : bénéfice   (3) = (2) - (1)",{"$f":"IF(H13-B13>0,H13-B13,0)","v":568215.23000001907},{"$f":"IF(I13-C13>0,I13-C13,0)","v":0},{"$f":"IF(J13-D13>0,J13-D13,0)","v":0},{"$f":"IF(K13-E13>0,K13-E13,0)","v":0},{"$f":"IF(L13-F13>0,L13-F13,0)","v":0},"Résultat prévisionnel : perte  (4) = (1) - (2)",{"$f":"IF(B13-H13>0,B13-H13,0)","v":0},{"$f":"IF(C13-I13>0,C13-I13,0)","v":1060087},{"$f":"IF(D13-J13>0,D13-J13,0)","v":0},{"$f":"IF(E13-K13>0,E13-K13,0)","v":0},{"$f":"IF(F13-L13>0,F13-L13,0)","v":1060087}]
["TOTAL EQUILIBRE du compte de résultat prévisionnel (1) + (3) = (2) + (4)",{"$f":"B13+B14","v":96507366.650000006},{"$f":"C13+C14","v":103126588},{"$f":"D13+D14","v":0},0,{"$f":"F13+F14","v":103126588},"TOTAL EQUILIBRE du compte de résultat prévisionnel (1) + (3)  = (2) + (4)",{"$f":"H13+H14","v":96507366.650000006},{"$f":"I13+I14","v":103126588},0,0,{"$f":"L13+L14","v":103126588}]
["* Il s'agit des sous catégories de comptes présentant les contributions employeur au CAS Pensions.",{"$f":"\"Exécution N-1 : Différence charges de personnel entre tableau 2 et tableau 6 est de : \"&(ROUND(B9,0)-ROUND('2-tab_aut_budg_AGR'!D11+'2-tab_aut_budg_AGR'!D24,0))","v":"Exécution N-1 : Différence charges de personnel entre tableau 2 et tableau 6 est de : 74930749"},{"$f":"\"BI : Différence charges de personnel entre tableau 2 et tableau 6 est de : \"&(ROUND(C9,0)-ROUND('2-tab_aut_budg_AGR'!F11+'2-tab_aut_budg_AGR'!F24,0))","v":"BI : Différence charges de personnel entre tableau 2 et tableau 6 est de : 79122687"},{"$f":"\"Nouveau BR : Différence charges de personnel entre tableau 2 et tableau 6 est de : \"&(ROUND(D9,0)-ROUND('2-tab_aut_budg_AGR'!H11+'2-tab_aut_budg_AGR'!H24,0))","v":"Nouveau BR : Différence charges de personnel entre tableau 2 et tableau 6 est de : 0"},{"$f":"\"Somme des BR : Différence charges de personnel entre tableau 2 et tableau 6 est de : \"&(ROUND(E9,0)-ROUND('2-tab_aut_budg_AGR'!J11+'2-tab_aut_budg_AGR'!J24,0))","v":"Somme des BR : Différence charges de personnel entre tableau 2 et tableau 6 est de : 0"},{"$f":"\"Budget BI+BR : Différence charges de personnel entre tableau 2 et tableau 6 est de : \"&(ROUND(F9,0)-ROUND('2-tab_aut_budg_AGR'!L11+'2-tab_aut_budg_AGR'!L24,0))","v":"Budget BI+BR : Différence charges de personnel entre tableau 2 et tableau 6 est de : 79122687"}]
[null,{"$f":"IF('2-tab_aut_budg_AGR'!L24=\"\",IF(ROUND(B10,-1)<>ROUND('2-tab_aut_budg_AGR'!D12,-1),\"! Incohérence charges PC Tab2 AGR\",\"\"),\"\")","v":""},{"$f":"IF('2-tab_aut_budg_AGR'!L24=\"\",IF(ROUND(C10,-1)<>ROUND('2-tab_aut_budg_AGR'!F12,-1),\"! Incohérence charges PC Tab2 AGR\",\"\"),\"\")","v":""},{"$f":"IF('2-tab_aut_budg_AGR'!L24=\"\",IF(ROUND(D10,-1)<>ROUND('2-tab_aut_budg_AGR'!H12,-1),\"! Incohérence charges PC Tab2 AGR\",\"\"),\"\")","v":""},{"$f":"IF('2-tab_aut_budg_AGR'!L24=\"\",IF(ROUND(E10,-1)<>ROUND('2-tab_aut_budg_AGR'!J12,-1),\"! Incohérence charges PC Tab2 AGR\",\"\"),\"\")","v":""},{"$f":"IF('2-tab_aut_budg_AGR'!L24=\"\",IF(ROUND(F10,-1)<>ROUND('2-tab_aut_budg_AGR'!L12,-1),\"! Incohérence charges PCl Tab2 AGR\",\"\"),\"\")","v":""}]
[]
["Calcul de la capacité d'autofinancement (CAF)",{"$f":"IF(ROUND(F28,-1)=ROUND('6-tab CR_TF_PRINC'!F28+'6-tab CR_TF_FU'!F28,-1),\"\",\"! Pb agrégat CAF/IAF\")","v":""}]
[]
[null,"Exécution N-1","Budget initial\n(g)","Nouveau BR","Somme des BR\n(yc nouveau BR) (h)","TOTAL : dernier budget modifié\n(i) = (g) + (h)"]
["Résultat prévisionnel de l'exercice \n(bénéfice (3) ou perte (-4)",{"$f":"IF(B14>0,B14,-H14)","v":568215.23000001907},{"$f":"IF(C14>0,C14,-I14)","v":-1060087},{"$f":"IF(D14>0,D14,-J14)","v":0},{"$f":"IF(E14>0,E14,-K14)","v":0},{"$f":"IF(F14>0,F14,-L14)","v":-1060087}]
["+  dotations aux amortissements, dépréciations et provisions",{"$f":"'6-tab CR_TF_PRINC'!B23+'6-tab CR_TF_FU'!B23","v":7091877},{"$f":"'6-tab CR_TF_PRINC'!C23+'6-tab CR_TF_FU'!C23","v":7711709},{"$f":"'6-tab CR_TF_PRINC'!D23+'6-tab CR_TF_FU'!D23","v":0},{"$f":"'6-tab CR_TF_PRINC'!E23+'6-tab CR_TF_FU'!E23","v":0},{"$f":"C23+E23","v":7711709}]
["-  reprises sur amortissements, dépréciations et provisions",{"$f":"'6-tab CR_TF_PRINC'!B24+'6-tab CR_TF_FU'!B24","v":0},{"$f":"'6-tab CR_TF_PRINC'!C24+'6-tab CR_TF_FU'!C24","v":0},{"$f":"'6-tab CR_TF_PRINC'!D24+'6-tab CR_TF_FU'!D24","v":0},{"$f":"'6-tab CR_TF_PRINC'!E24+'6-tab CR_TF_FU'!E24","v":0},{"$f":"C24+E24","v":0}]
["+ valeur nette comptable des éléments d'actifs cédés",{"$f":"'6-tab CR_TF_PRINC'!B25+'6-tab CR_TF_FU'!B25","v":0},{"$f":"'6-tab CR_TF_PRINC'!C25+'6-tab CR_TF_FU'!C25","v":0},{"$f":"'6-tab CR_TF_PRINC'!D25+'6-tab CR_TF_FU'!D25","v":0},{"$f":"'6-tab CR_TF_PRINC'!E25+'6-tab CR_TF_FU'!E25","v":0},{"$f":"C25+E25","v":0}]
["- produits de cession d'éléments d'actifs",{"$f":"'6-tab CR_TF_PRINC'!B26+'6-tab CR_TF_FU'!B26","v":0},{"$f":"'6-tab CR_TF_PRINC'!C26+'6-tab CR_TF_FU'!C26","v":0},{"$f":"'6-tab CR_TF_PRINC'!D26+'6-tab CR_TF_FU'!D26","v":0},{"$f":"'6-tab CR_TF_PRINC'!E26+'6-tab CR_TF_FU'!E26","v":0},{"$f":"C26+E26","v":0}]
["- quote-part des subventions d’investissement virée au résultat de l’exercice",{"$f":"'6-tab CR_TF_PRINC'!B27+'6-tab CR_TF_FU'!B27","v":-4749988},{"$f":"'6-tab CR_TF_PRINC'!C27+'6-tab CR_TF_FU'!C27","v":-5202367},{"$f":"'6-tab CR_TF_PRINC'!D27+'6-tab CR_TF_FU'!D27","v":0},{"$f":"'6-tab CR_TF_PRINC'!E27+'6-tab CR_TF_FU'!E27","v":0},{"$f":"C27+E27","v":-5202367}]
["= CAF ou IAF*",{"$f":"SUM(B22:B27)","v":2910104.2300000191},{"$f":"SUM(C22:C27)","v":1449255},0,0,{"$f":"SUM(F22:F27)","v":1449255}]
["* capacité d'autofinancement ou insuffisance d'autofinancement"]
[]
[]
["État prévisionnel de l'évolution de la situation patrimoniale en droits constatés",null,null,{"$f":"IF(ROUND(F41,-1)=ROUND('6-tab CR_TF_PRINC'!F41+'6-tab CR_TF_FU'!F41,-1),\"\",\"! Pb agrégat apport FDR\")","v":""},null,null,{"$f":"IF(ROUND(L41,-1)=ROUND('6-tab CR_TF_PRINC'!L41+'6-tab CR_TF_FU'!L41,-1),\"\",\"! Pb agrégat prélèvement FDR\")","v":""}]
[]
["EMPLOIS","Exécution N-1","Budget initial\n(j)","Nouveau BR","Somme des BR\n(yc nouveau BR) (k)","TOTAL : dernier budget modifié\n(l) = (j) + (k)","RESSOURCES","Exécution N-1","Budget initial\n(m)","Nouveau BR","Somme des BR\n(yc nouveau BR) (n)","TOTAL : dernier budget modifié\n(o) = (m) + (n)"]
["Insuffisance d'autofinancement*",{"$f":"IF(B28<0,-B28,0)","v":0},{"$f":"IF(C28<0,-C28,0)","v":0},{"$f":"IF(D28<0,-D28,0)","v":0},{"$f":"IF(E28<0,-E28,0)","v":0},{"$f":"IF(F28<0,-F28,0)","v":0},"Capacité d'autofinancement*",{"$f":"IF(B28>0,B28,0)","v":2910104.2300000191},{"$f":"IF(C28>0,C28,0)","v":1449255},{"$f":"IF(D28>0,D28,0)","v":0},{"$f":"IF(E28>0,E28,0)","v":0},{"$f":"IF(F28>0,F28,0)","v":1449255}]
["Investissements",{"$f":"'6-tab CR_TF_PRINC'!B36+'6-tab CR_TF_FU'!B36","v":8344355.4199999999},{"$f":"'6-tab CR_TF_PRINC'!C36+'6-tab CR_TF_FU'!C36","v":8080912},{"$f":"'6-tab CR_TF_PRINC'!D36+'6-tab CR_TF_FU'!D36","v":0},{"$f":"'6-tab CR_TF_PRINC'!E36+'6-tab CR_TF_FU'!E36","v":0},{"$f":"C36+E36","v":8080912},"Financement de l'actif par l'État",{"$f":"'6-tab CR_TF_PRINC'!H36+'6-tab CR_TF_FU'!H36","v":1217182.02},{"$f":"'6-tab CR_TF_PRINC'!I36+'6-tab CR_TF_FU'!I36","v":100000},{"$f":"'6-tab CR_TF_PRINC'!J36+'6-tab CR_TF_FU'!J36","v":0},{"$f":"'6-tab CR_TF_PRINC'!K36+'6-tab CR_TF_FU'!K36","v":0},{"$f":"I36+K36","v":100000}]
[null,{"$f":"'6-tab CR_TF_PRINC'!B37+'6-tab CR_TF_FU'!B37","v":0},{"$f":"'6-tab CR_TF_PRINC'!C37+'6-tab CR_TF_FU'!C37","v":0},{"$f":"'6-tab CR_TF_PRINC'!D37+'6-tab CR_TF_FU'!D37","v":0},{"$f":"'6-tab CR_TF_PRINC'!E37+'6-tab CR_TF_FU'!E37","v":0},null,"Financement de l'actif par des tiers autres que l'Etat",{"$f":"'6-tab CR_TF_PRINC'!H37+'6-tab CR_TF_FU'!H37","v":2201214.04},{"$f":"'6-tab CR_TF_PRINC'!I37+'6-tab CR_TF_FU'!I37","v":1047661},{"$f":"'6-tab CR_TF_PRINC'!J37+'6-tab CR_TF_FU'!J37","v":0},{"$f":"'6-tab CR_TF_PRINC'!K37+'6-tab CR_TF_FU'!K37","v":0},{"$f":"I37+K37","v":1047661}]
[null,{"$f":"'6-tab CR_TF_PRINC'!B38+'6-tab CR_TF_FU'!B38","v":0},{"$f":"'6-tab CR_TF_PRINC'!C38+'6-tab CR_TF_FU'!C38","v":0},{"$f":"'6-tab CR_TF_PRINC'!D38+'6-tab CR_TF_FU'!D38","v":0},{"$f":"'6-tab CR_TF_PRINC'!E38+'6-tab CR_TF_FU'!E38","v":0},null,"Autres ressources",{"$f":"'6-tab CR_TF_PRINC'!H38+'6-tab CR_TF_FU'!H38","v":458086},{"$f":"'6-tab CR_TF_PRINC'!I38+'6-tab CR_TF_FU'!I38","v":1867859},{"$f":"'6-tab CR_TF_PRINC'!J38+'6-tab CR_TF_FU'!J38","v":0},{"$f":"'6-tab CR_TF_PRINC'!K38+'6-tab CR_TF_FU'!K38","v":0},1867859]
["Remboursement des dettes financières",{"$f":"'6-tab CR_TF_PRINC'!B39+'6-tab CR_TF_FU'!B39","v":0},{"$f":"'6-tab CR_TF_PRINC'!C39+'6-tab CR_TF_FU'!C39","v":0},{"$f":"'6-tab CR_TF_PRINC'!D39+'6-tab CR_TF_FU'!D39","v":0},{"$f":"'6-tab CR_TF_PRINC'!E39+'6-tab CR_TF_FU'!E39","v":0},{"$f":"C39+E39","v":0},"Augmentation des dettes financières",{"$f":"'6-tab CR_TF_PRINC'!H39+'6-tab CR_TF_FU'!H39","v":0},{"$f":"'6-tab CR_TF_PRINC'!I39+'6-tab CR_TF_FU'!I39","v":0},{"$f":"'6-tab CR_TF_PRINC'!J39+'6-tab CR_TF_FU'!J39","v":0},{"$f":"'6-tab CR_TF_PRINC'!K39+'6-tab CR_TF_FU'!K39","v":0},0]
["TOTAL DES EMPLOIS (5)",{"$f":"SUM(B35:B39)","v":8344355.4199999999},8080912,0,{"$f":"SUM(E35:E39)","v":0},{"$f":"SUM(F35:F39)","v":8080912},"TOTAL DES RESSOURCES (6)",{"$f":"SUM(H35:H39)","v":6786586.2900000196},4464775,0,0,{"$f":"SUM(L35:L39)","v":4464775}]
["APPORT au FONDS DE ROULEMENT (7) = (6)-(5)",{"$f":"IF(H40-B40>0,H40-B40,0)","v":0},{"$f":"IF(I40-C40>0,I40-C40,0)","v":0},{"$f":"IF(J40-D40>0,J40-D40,0)","v":0},{"$f":"IF(K40-E40>0,K40-E40,0)","v":0},{"$f":"IF(L40-F40>0,L40-F40,0)","v":0},"PRELEVEMENT sur FONDS DE ROULEMENT (8) = (5)-(6)",{"$f":"IF(B40-H40>0,B40-H40,0)","v":1557769.1299999803},{"$f":"IF(C40-I40>0,C40-I40,0)","v":3616137},{"$f":"IF(D40-J40>0,D40-J40,0)","v":0},{"$f":"IF(E40-K40>0,E40-K40,0)","v":0},{"$f":"IF(F40-L40>0,F40-L40,0)","v":3616137}]
[]
["POUR INFORMATION DE L'ORGANE DÉLIBÉRANT"]
[]
[null,null,null,null,null,null,null,"Exécution N-1\n(p)","Budget initial\n(q)","Nouveau BR","Somme des BR\n(yc nouveau BR) (r)","TOTAL : dernier budget modifié\nVariation (s) = (q) + (r)\nNiveau = (p) + (s)"]
["VARIATION DU FONDS DE ROULEMENT : APPORT (7) ou PRELEVEMENT (8)",null,null,null,null,null,null,{"$f":"IF(B41>0,B41,-H41)","v":-1557769.1299999803},{"$f":"IF(C41>0,C41,-I41)","v":-3616137},{"$f":"IF(D41>0,D41,-J41)","v":0},{"$f":"IF(E41>0,E41,-K41)","v":0},{"$f":"I46+K46","v":-3616137},null,{"$f":"IF(L46<0,IF(ROUND(L46,-1)=-ROUND('2-tab_aut_budg_AGR'!R30,-1),\"! Impossibilité Var fonds de roulement = Solde budg Tab2 AGR\",\"\"),IF(L46>0,IF(ROUND(L46,-1)=ROUND('2-tab_aut_budg_AGR'!L30,-1),\"! Impossibilité Var fonds de roulement = Solde budg Tab2 AGR\",\"\"),\"\"))","v":""}]
["Variation du BESOIN en FONDS DE ROULEMENT",null,null,null,null,null,null,{"$f":"'6-tab CR_TF_PRINC'!H47+'6-tab CR_TF_FU'!H47","v":-939306.16},{"$f":"'6-tab CR_TF_PRINC'!I47+'6-tab CR_TF_FU'!I47","v":1067978.29},{"$f":"'6-tab CR_TF_PRINC'!J47+'6-tab CR_TF_FU'!J47","v":0},{"$f":"'6-tab CR_TF_PRINC'!K47+'6-tab CR_TF_FU'!K47","v":0},{"$f":"I47+K47","v":1067978.29}]
["Variation de la TRESORERIE : ABONDEMENT (I) ou PRELEVEMENT (II) *",null,null,null,null,null,null,{"$f":"'6-tab CR_TF_PRINC'!H48+'6-tab CR_TF_FU'!H48","v":-618462.97000000055},{"$f":"'6-tab CR_TF_PRINC'!I48+'6-tab CR_TF_FU'!I48","v":-4684115.29},{"$f":"'6-tab CR_TF_PRINC'!J48+'6-tab CR_TF_FU'!J48","v":0},{"$f":"'6-tab CR_TF_PRINC'!K48+'6-tab CR_TF_FU'!K48","v":0},-4684115.29,null,{"$f":"IF(ROUND(L48,-1)=ROUND('6-tab CR_TF_PRINC'!L48+'6-tab CR_TF_FU'!L48,-1),\"\",\"! Pb agrégat variation trésorerie\")","v":""}]
["Niveau du FONDS DE ROULEMENT",null,null,null,null,null,null,{"$f":"'6-tab CR_TF_PRINC'!H49+'6-tab CR_TF_FU'!H49","v":12189108.680000009},{"$f":"'6-tab CR_TF_PRINC'!I49+'6-tab CR_TF_FU'!I49","v":8572971.680000009},{"$f":"'6-tab CR_TF_PRINC'!J49+'6-tab CR_TF_FU'!J49","v":0},{"$f":"'6-tab CR_TF_PRINC'!K49+'6-tab CR_TF_FU'!K49","v":0},{"$f":"H49+L46","v":8572971.680000009}]
["Niveau du BESOIN EN FONDS DE ROULEMENT",null,null,null,null,null,null,{"$f":"'6-tab CR_TF_PRINC'!H50+'6-tab CR_TF_FU'!H50","v":-776867.5499999919},{"$f":"'6-tab CR_TF_PRINC'!I50+'6-tab CR_TF_FU'!I50","v":291110.74000000808},{"$f":"'6-tab CR_TF_PRINC'!J50+'6-tab CR_TF_FU'!J50","v":0},{"$f":"'6-tab CR_TF_PRINC'!K50+'6-tab CR_TF_FU'!K50","v":0},{"$f":"H50+L47","v":291110.74000000814}]
["Niveau de la TRESORERIE",null,null,null,null,null,null,{"$f":"'6-tab CR_TF_PRINC'!H51+'6-tab CR_TF_FU'!H51","v":12965976.23},{"$f":"'6-tab CR_TF_PRINC'!I51+'6-tab CR_TF_FU'!I51","v":8281860.9400000013},{"$f":"'6-tab CR_TF_PRINC'!J51+'6-tab CR_TF_FU'!J51","v":0},{"$f":"'6-tab CR_TF_PRINC'!K51+'6-tab CR_TF_FU'!K51","v":0},8281860.9400000004,null,{"$f":"IF(ROUND(L51,-1)=ROUND('6-tab CR_TF_PRINC'!L51+'6-tab CR_TF_FU'!L51,-1),\"\",\"! Pb agrégat niveau trésorerie\")","v":""}]
[]
["* : montant issu du tableau \"équilibre financier\""]

{"sheet":"6-tab CR_TF_SIE","index":16,"n_rows":53,"n_cols":14,"rows_kept":53,"cut":false,"hidden":true,"merged":[[0,0,0,7],[1,0,1,7],[3,0,3,11],[4,6,5,6],[10,0,11,0],[10,1,11,1],[10,2,11,2],[10,3,11,3],[10,4,11,4],[10,5,11,5],[18,0,18,7],[35,0,37,0],[35,1,37,1],[35,2,37,2],[35,3,37,3],[35,4,37,4],[35,5,37,5],[45,13,45,15],[50,0,50,6],[44,0,44,6],[45,0,45,6],[46,0,46,6],[47,0,47,6],[48,0,48,6],[49,0,49,6]]}
["Tableau 6 - Université de Bretagne Sud (0561718N) : CFA"]
[{"$f":"\"Situation patrimoniale - Budget \"&Maquette!B4&\" \"&Maquette!B5&\" \"&Maquette!B3","v":"Situation patrimoniale - Budget initial  2023"}]
[]
["POUR VOTE DE L'ORGANE DÉLIBÉRANT"]
[]
["Compte de résultat prévisionnel"]
[]
["CHARGES","Exécution N-1","Budget initial\n(a)","Nouveau BR","Somme des BR\n(yc nouveau BR) (b)","TOTAL : dernier budget modifié\n(c) = (a) + (b)","PRODUITS","Exécution N-1","Budget initial\n(d)","Nouveau BR","Somme des BR\n(yc nouveau BR) (e)","TOTAL : dernier budget modifié\n(f) = (d) + (e)"]
["Personnel",null,null,null,null,{"$f":"C9+E9","v":0},"Subventions de l'Etat",null,null,null,null,{"$f":"I9+K9","v":0}]
["dont charges de pensions civiles*",null,null,null,null,{"$f":"C10+E10","v":0},"Fiscalité affectée",null,null,null,null,{"$f":"I10+K10","v":0}]
["Fonctionnement (autre que les charges de personnel) et intervention",null,null,null,null,{"$f":"C11+E11","v":0},"Autres subventions",null,null,null,null,0]
[null,null,null,null,null,null,"Autres produits",null,null,null,null,0]
["TOTAL DES CHARGES (1)",{"$f":"B9+B11","v":0},{"$f":"C9+C11","v":0},{"$f":"D9+D11","v":0},0,{"$f":"F9+F11","v":0},"TOTAL DES PRODUITS (2)",{"$f":"SUM(H9:H12)","v":0},{"$f":"SUM(I9:I12)","v":0},0,0,{"$f":"SUM(L9:L12)","v":0}]
["Résultat prévisionnel : bénéfice   (3) = (2) - (1)",{"$f":"IF(H13-B13>0,H13-B13,0)","v":0},{"$f":"IF(I13-C13>0,I13-C13,0)","v":0},{"$f":"IF(J13-D13>0,J13-D13,0)","v":0},{"$f":"IF(K13-E13>0,K13-E13,0)","v":0},{"$f":"IF(L13-F13>0,L13-F13,0)","v":0},"Résultat prévisionnel : perte  (4) = (1) - (2)",{"$f":"IF(B13-H13>0,B13-H13,0)","v":0},{"$f":"IF(C13-I13>0,C13-I13,0)","v":0},{"$f":"IF(D13-J13>0,D13-J13,0)","v":0},{"$f":"IF(E13-K13>0,E13-K13,0)","v":0},{"$f":"IF(F13-L13>0,F13-L13,0)","v":0}]
["TOTAL EQUILIBRE du compte de résultat prévisionnel (1) + (3) = (2) + (4)",{"$f":"B13+B14","v":0},{"$f":"C13+C14","v":0},{"$f":"D13+D14","v":0},0,{"$f":"F13+F14","v":0},"TOTAL EQUILIBRE du compte de résultat prévisionnel (1) + (3)  = (2) + (4)",{"$f":"H13+H14","v":0},{"$f":"I13+I14","v":0},0,0,{"$f":"L13+L14","v":0}]
["* Il s'agit des sous catégories de comptes présentant les contributions employeur au CAS Pensions.",{"$f":"\"Exécution N-1 : Différence charges de personnel entre tableau 2 et tableau 6 est de : \"&(ROUND(B9,0)-ROUND(#REF!+#REF!,0))","v":{"$error":"#REF!"}},{"$f":"\"BI : Différence charges de personnel entre tableau 2 et tableau 6 est de : \"&(ROUND(C9,0)-ROUND(#REF!+#REF!,0))","v":{"$error":"#REF!"}},{"$f":"\"Nouveau BR : Différence charges de personnel entre tableau 2 et tableau 6 est de : \"&(ROUND(D9,0)-ROUND(#REF!+#REF!,0))","v":{"$error":"#REF!"}},{"$f":"\"Somme des BR : Différence charges de personnel entre tableau 2 et tableau 6 est de : \"&(ROUND(E9,0)-ROUND(#REF!+#REF!,0))","v":{"$error":"#REF!"}},{"$f":"\"Budget BI+BR : Différence charges de personnel entre tableau 2 et tableau 6 est de : \"&(ROUND(F9,0)-ROUND(#REF!+#REF!,0))","v":{"$error":"#REF!"}}]
[null,{"$f":"IF(#REF!=\"\",IF(ROUND(B10,-1)<>ROUND(#REF!,-1),\"! Incohérence charges PC Tab2 SIE\",\"\"),\"\")","v":{"$error":"#REF!"}},{"$f":"IF(#REF!=\"\",IF(ROUND(C10,-1)<>ROUND(#REF!,-1),\"! Incohérence charges PC Tab2 SIE\",\"\"),\"\")","v":{"$error":"#REF!"}},{"$f":"IF(#REF!=\"\",IF(ROUND(D10,-1)<>ROUND(#REF!,-1),\"! Incohérence charges PC Tab2 SIE\",\"\"),\"\")","v":{"$error":"#REF!"}},{"$f":"IF(#REF!=\"\",IF(ROUND(E10,-1)<>ROUND(#REF!,-1),\"! Incohérence charges PC Tab2 SIE\",\"\"),\"\")","v":{"$error":"#REF!"}},{"$f":"IF(#REF!=\"\",IF(ROUND(F10,-1)<>ROUND(#REF!,-1),\"! Incohérence charges PCl Tab2 SIE\",\"\"),\"\")","v":{"$error":"#REF!"}}]
[]
["Calcul de la capacité d'autofinancement (CAF)"]
[]
[null,"Exécution N-1","Budget initial\n(g)","Nouveau BR","Somme des BR\n(yc nouveau BR) (h)","TOTAL : dernier budget modifié\n(i) = (g) + (h)"]
["Résultat prévisionnel de l'exercice \n(bénéfice (3) ou perte (-4)",{"$f":"IF(B14>0,B14,-H14)","v":0},{"$f":"IF(C14>0,C14,-I14)","v":0},{"$f":"IF(D14>0,D14,-J14)","v":0},{"$f":"IF(E14>0,E14,-K14)","v":0},{"$f":"IF(F14>0,F14,-L14)","v":0}]
["+  dotations aux amortissements, dépréciations et provisions",null,null,null,null,{"$f":"C23+E23","v":0}]
["-  reprises sur amortissements, dépréciations et provisions",null,null,null,null,{"$f":"C24+E24","v":0}]
["+ valeur nette comptable des éléments d'actifs cédés",null,null,null,null,{"$f":"C25+E25","v":0}]
["- produits de cession d'éléments d'actifs",null,null,null,null,{"$f":"C26+E26","v":0}]
["- quote-part des subventions d’investissement virée au résultat de l’exercice",null,null,null,null,{"$f":"C27+E27","v":0}]
["= CAF ou IAF*",{"$f":"SUM(B22:B27)","v":0},{"$f":"SUM(C22:C27)","v":0},0,0,{"$f":"SUM(F22:F27)","v":0}]
["* capacité d'autofinancement ou insuffisance d'autofinancement"]
[]
[]
["État prévisionnel de l'évolution de la situation patrimoniale en droits constatés"]
[]
["EMPLOIS","Exécution N-1","Budget initial\n(j)","Nouveau BR","Somme des BR\n(yc nouveau BR) (k)","TOTAL : dernier budget modifié\n(l) = (j) + (k)","RESSOURCES","Exécution N-1","Budget initial\n(m)","Nouveau BR","Somme des BR\n(yc nouveau BR) (n)","TOTAL : dernier budget modifié\n(o) = (m) + (n)"]
["Insuffisance d'autofinancement*",{"$f":"IF(B28<0,-B28,0)","v":0},{"$f":"IF(C28<0,-C28,0)","v":0},{"$f":"IF(D28<0,-D28,0)","v":0},{"$f":"IF(E28<0,-E28,0)","v":0},{"$f":"IF(F28<0,-F28,0)","v":0},"Capacité d'autofinancement*",{"$f":"IF(B28>0,B28,0)","v":0},{"$f":"IF(C28>0,C28,0)","v":0},{"$f":"IF(D28>0,D28,0)","v":0},{"$f":"IF(E28>0,E28,0)","v":0},{"$f":"IF(F28>0,F28,0)","v":0}]
["Investissements",null,null,null,null,{"$f":"C36+E36","v":0},"Financement de l'actif par l'État",null,null,null,null,{"$f":"I36+K36","v":0}]
[null,null,null,null,null,null,"Financement de l'actif par des tiers autres que l'Etat",null,null,null,null,{"$f":"I37+K37","v":0}]
[null,null,null,null,null,null,"Autres ressources",null,null,null,null,0]
["Remboursement des dettes financières",null,null,null,null,{"$f":"C39+E39","v":0},"Augmentation des dettes financières",null,null,null,null,0]
["TOTAL DES EMPLOIS (5)",{"$f":"SUM(B35:B39)","v":0},0,0,{"$f":"SUM(E35:E39)","v":0},{"$f":"SUM(F35:F39)","v":0},"TOTAL DES RESSOURCES (6)",{"$f":"SUM(H35:H39)","v":0},0,0,0,{"$f":"SUM(L35:L39)","v":0}]
["APPORT au FONDS DE ROULEMENT (7) = (6)-(5)",{"$f":"IF(H40-B40>0,H40-B40,0)","v":0},{"$f":"IF(I40-C40>0,I40-C40,0)","v":0},{"$f":"IF(J40-D40>0,J40-D40,0)","v":0},{"$f":"IF(K40-E40>0,K40-E40,0)","v":0},{"$f":"IF(L40-F40>0,L40-F40,0)","v":0},"PRELEVEMENT sur FONDS DE ROULEMENT (8) = (5)-(6)",{"$f":"IF(B40-H40>0,B40-H40,0)","v":0},{"$f":"IF(C40-I40>0,C40-I40,0)","v":0},{"$f":"IF(D40-J40>0,D40-J40,0)","v":0},{"$f":"IF(E40-K40>0,E40-K40,0)","v":0},{"$f":"IF(F40-L40>0,F40-L40,0)","v":0}]
[]
["POUR INFORMATION DE L'ORGANE DÉLIBÉRANT"]
[]
[null,null,null,null,null,null,null,"Exécution N-1\n(p)","Budget initial\n(q)","Nouveau BR","Somme des BR\n(yc nouveau BR) (r)","TOTAL : dernier budget modifié\nVariation (s) = (q) + (r)\nNiveau = (p) + (s)"]
["VARIATION DU FONDS DE ROULEMENT : APPORT (7) ou PRELEVEMENT (8)",null,null,null,null,null,null,{"$f":"IF(B41>0,B41,-H41)","v":0},{"$f":"IF(C41>0,C41,-I41)","v":0},{"$f":"IF(D41>0,D41,-J41)","v":0},{"$f":"IF(E41>0,E41,-K41)","v":0},{"$f":"I46+K46","v":0},null,{"$f":"IF(L46<0,IF(ROUND(L46,-1)=-ROUND(#REF!,-1),\"! Impossibilité Var fonds de roulement = Solde budg Tab2 SIE\",\"\"),IF(L46>0,IF(ROUND(L46,-1)=ROUND(#REF!,-1),\"! Impossibilité Var fonds de roulement = Solde budg Tab2 SIE\",\"\"),\"\"))","v":""}]
["Variation du BESOIN en FONDS DE ROULEMENT",null,null,null,null,null,null,null,null,null,null,{"$f":"I47+K47","v":0}]
["Variation de la TRESORERIE : ABONDEMENT (I) ou PRELEVEMENT (II) *",null,null,null,null,null,null,null,null,null,null,0]
["Niveau du FONDS DE ROULEMENT",null,null,null,null,null,null,null,null,null,null,{"$f":"H49+L46","v":0}]
["Niveau du BESOIN EN FONDS DE ROULEMENT",null,null,null,null,null,null,{"$f":"H49-H51","v":0},{"$f":"I49-I51","v":0},0,0,{"$f":"H50+L47","v":0}]
["Niveau de la TRESORERIE",null,null,null,null,null,null,null,null,null,null,0]
[]
["* : montant issu du tableau \"équilibre financier\""]

{"sheet":"7-tab Plan_tréso_ETAB","index":17,"n_rows":50,"n_cols":15,"rows_kept":50,"cut":false,"hidden":false,"merged":[[3,1,3,14],[0,1,0,14],[1,1,1,14],[49,12,49,13],[4,1,4,8],[49,14,49,15],[27,1,27,14],[7,1,7,14],[30,15,31,15]]}
[null,"Tableau 7- Université de Bretagne Sud (0561718N) : Etablissement principal + Fondation"]
[null,{"$f":"\"Plan de trésorerie - Budget consolidé \"&Maquette!B4&\" \"&Maquette!B5&\" \"&Maquette!B3","v":"Plan de trésorerie - Budget consolidé initial  2023"}]
[]
[null,"POUR INFORMATION DE L'ORGANE DÉLIBÉRANT"]
[]
[null,"( K€ )","janvier","février","mars","avril","mai","juin","juillet","août","septembre","octobre","novembre","décembre","TOTAL Variation de la trésorerie annuelle"]
[null,"(1) SOLDE INITIAL (début de mois)",12965976.23,{"$f":"C49","v":8271060.2300000004},{"$f":"D49","v":18916144.23},12446228.23,23901312.23,17928396.23,11544960.23,30618544.23,23308628.23,16643712.23,11528796.23,13334864.23,{"$f":"SUM(C7:N7)","v":201408622.75999996}]
[null,"ENCAISSEMENTS"]
[null,"Recettes budgétaires globalisées",{"$f":"SUM(C10:C14)","v":2450000},{"$f":"SUM(D10:D14)","v":18030000},2680000,18430000,1605000,1670000,28825000,1330000,1660000,3700000,11345984,7072611.96,98798595.959999993]
[null,"Subvention pour charges de service public",null,16500000,null,17000000,null,null,27000000,null,null,null,8745984,null,{"$f":"SUM(C10:N10)","v":69245984}]
[null,"Autres financements de l'Etat",50000,180000,80000,30000,5000,120000,200000,30000,200000,600000,200000,329516.59999999998,{"$f":"SUM(C11:N11)","v":2024516.6}]
[null,"Fiscalité affectée",null,null,null,null,null,null,475000,null,null,null,null,151184,626184]
[null,"Autres financements publics",600000,800000,900000,400000,500000,550000,700000,750000,900000,1400000,1000000,1606891.23,10106891.23]
[null,"Recettes propres",1800000,550000,1700000,1000000,1100000,1000000,450000,550000,560000,1700000,1400000,4985020.13,16795020.129999999]
[null,"Recettes budgétaires fléchées",{"$f":"SUM(C16:C18)","v":0},{"$f":"SUM(D16:D18)","v":0},0,0,0,0,0,0,0,0,0,0,{"$f":"SUM(C15:N15)","v":0}]
[null,"Financements de l'Etat fléchés",null,null,null,null,null,null,null,null,null,null,null,null,0]
[null,"Autres financements publics fléchés",null,null,null,null,null,null,null,null,null,null,null,null,0]
[null,"Recettes propres fléchées",null,null,null,null,null,null,null,null,null,null,null,null,0]
[null,"Opérations non budgétaires",{"$f":"SUM(C20:C22)","v":0},{"$f":"SUM(D20:D22)","v":0},0,0,0,0,0,0,0,0,0,0,0]
[null,"Emprunts : encaissements en capital",null,null,null,null,null,null,null,null,null,null,null,null,0]
[null,"Prêts : encaissements en capital",null,null,null,null,null,null,null,null,null,null,null,null,0]
[null,"Dépôts et cautionnements",null,null,null,null,null,null,null,null,null,null,null,null,0]
[null,"Opérations gérées en comptes de tiers :",{"$f":"SUM(C24:C26)","v":45000},{"$f":"SUM(D24:D26)","v":433550},250000,25000,142000,25000,10000,15000,573000,40000,30000,400000,1988550]
[null,"TVA encaissée",45000,15000,40000,25000,30000,25000,10000,15000,15000,40000,30000,120000,410000]
[null,"Dispositifs d'intervention pour compte de tiers : encaissements",null,418550,210000,null,112000,null,null,null,558000,null,null,280000,1578550]
[null,"Autres encaissements d'opérations gérées en comptes de tiers",null,null,null,null,null,null,null,null,null,null,null,null,0]
[null,"A. TOTAL",{"$f":"C23+C19+C15+C9","v":2495000},{"$f":"D23+D19+D15+D9","v":18463550},2930000,18455000,1747000,1695000,28835000,1345000,2233000,3740000,11375984,7472611.96,100787145.95999999]
[null,"DECAISSEMENTS"]
[null,"Dépenses liées à des recettes globalisées",{"$f":"SUM(C30:C33)","v":7120000},{"$f":"SUM(D30:D33)","v":7280000},9100000,6900000,7600000,7800000,9600000,8600000,8200000,8700000,9400000,12032055.25,{"$f":"SUM(C29:N29)","v":102332055.25}]
[null,"Personnel",6000000,6000000,7000000,6000000,6000000,6000000,8000000,8000000,6000000,6000000,6000000,8811268,{"$f":"SUM(C30:N30)","v":79811268}]
[null,"Fonctionnement",920000,920000,1500000,700000,1300000,1400000,800000,500000,1200000,1600000,1800000,1901875.45,14541875.449999999]
[null,"Intervention",null,null,null,null,null,null,null,null,null,null,null,null,0]
[null,"Investissement",200000,360000,600000,200000,300000,400000,800000,100000,1000000,1100000,1600000,1318911.8,7978911.7999999998]
[null,"Dépenses liées à des recettes fléchées",{"$f":"SUM(C35:C38)","v":28300},{"$f":"SUM(D35:D38)","v":63300},63300,63300,63300,63300,104800,28300,63300,63300,63300,106936,774736]
[null,"Personnel",12500,12500,12500,12500,12500,12500,12500,12500,12500,12500,12500,13500,151000]
[null,"Fonctionnement",15800,50800,50800,50800,50800,50800,85800,15800,50800,50800,50800,86936,610736]
[null,"Intervention",null,null,null,null,null,null,null,null,null,null,null,null,0]
[null,"Investissement",null,null,null,null,null,null,6500,null,null,null,null,6500,13000]
[null,"Opérations non budgétaires",{"$f":"SUM(C40:C42)","v":0},{"$f":"SUM(D40:D42)","v":0},0,0,0,0,0,0,0,0,0,0,0]
[null,"Emprunts : remboursements en capital",null,null,null,null,null,null,null,null,null,null,null,null,0]
[null,"Prêts : décaissements en capital",null,null,null,null,null,null,null,null,null,null,null,null,0]
[null,"Dépôts et cautionnements",null,null,null,null,null,null,null,null,null,null,null,null,0]
[null,"Opérations gérées en compte de tiers :",{"$f":"SUM(C44:C46)","v":41616},{"$f":"SUM(D44:D46)","v":475166},236616,36616,56616,215136,56616,26616,634616,91616,106616,386624,2364470]
[null,"TVA décaissée",35000,50000,70000,30000,50000,60000,50000,20000,70000,85000,100000,100000,720000]
[null,"Dispositifs d'intervention pour compte de tiers : décaissements",6616,425166,166616,6616,6616,155136,6616,6616,564616,6616,6616,286624,1644470]
[null,"Autres décaissements d'opérations gérées en comptes de tiers",null,null,null,null,null,null,null,null,null,null,null,null,0]
[null,"B. TOTAL",{"$f":"C43+C39+C34+C29","v":7189916},{"$f":"D43+D39+D34+D29","v":7818466},9399916,6999916,7719916,8078436,9761416,8654916,8897916,8854916,9569916,12525615.25,105471261.25]
[null,"(2) SOLDE DU MOIS = A - B",{"$f":"C27-C47","v":-4694916},{"$f":"D27-D47","v":10645084},-6469916,11455084,-5972916,-6383436,19073584,-7309916,-6664916,-5114916,1806068,-5053003.29,{"$f":"SUM(C48:N48)","v":-4684115.29}]
[null,"SOLDE CUMULE (1) + (2)",{"$f":"C48+C7","v":8271060.2300000004},{"$f":"D48+D7","v":18916144.23},12446228.23,23901312.23,17928396.23,11544960.23,30618544.23,23308628.23,16643712.23,11528796.23,13334864.23,8281860.9400000004]
[null,null,null,null,null,null,null,null,null,null,null,null,null,null,"Variation de trésorerie correspondant à celle du tableau d'équilibre financier (I) ou (II)"]

{"sheet":"8-tab recettes_fléchées_ETAB","index":18,"n_rows":31,"n_cols":10,"rows_kept":31,"cut":false,"hidden":false,"merged":[[0,1,0,6],[1,1,1,6],[4,1,4,6]]}
[null,"Tableau 8 - Université de Bretagne Sud (0561718N) : Etablissement principal + Fondation "]
[null,{"$f":"\"Opérations liées aux recettes fléchées - Budget consolidé \"&Maquette!B4&\" \"&Maquette!B5&\" \"&Maquette!B3","v":"Opérations liées aux recettes fléchées - Budget consolidé initial  2023"}]
[]
[]
[null,"POUR INFORMATION DE L'ORGANE DÉLIBÉRANT"]
[]
[]
[null,null,"Antérieures à N\nnon dénouées","N","N+1","N+2","N+3"]
[null,"Position de financement des opérations fléchées en début d'exercice (a)"]
[]
[null,"Recettes fléchées (b)",{"$f":"SUM(C13:C15)","v":2221464},{"$f":"SUM(D13:D15)","v":0},0,0,1777171]
[]
[null,"Financements de l'État fléchés",0,0,0,0,0,null,null,{"$f":"IF(ROUND(D13,-1)<>ROUND('7-tab Plan_tréso_ETAB'!O16,-1),\"! Incohérence Financ. Etat fléchés avec Tab7\",\"\")","v":""}]
[null,"Autres financements publics fléchés",2221464,0,0,0,1777171,null,null,{"$f":"IF(ROUND(D14,-1)<>ROUND('7-tab Plan_tréso_ETAB'!O17,-1),\"! Incohérence Autres financ. fléchés avec Tab7\",\"\")","v":""}]
[null,"Recettes propres fléchées",0,0,0,0,0,null,null,{"$f":"IF(ROUND(D15,-1)<>ROUND('7-tab Plan_tréso_ETAB'!O18,-1),\"! Incohérence Recettes propres fléchées avec Tab7\",\"\")","v":""}]
[]
[null,"Dépenses sur recettes fléchées (c)",{"$f":"C19+C21+C24","v":111173.22000000002},{"$f":"D19+D21+D24","v":774736},1026198,1009936,818968]
[]
[null,"Personnel",{"$f":"C20","v":5782.63},{"$f":"D20","v":151000},151000,151000,121200]
[null,"AE=CP",5782.63,151000,151000,151000,121200]
[null,"Fonctionnement et intervention",{"$f":"C23","v":97226.99},{"$f":"D23","v":610736},862198,845936,694768]
[null,"AE",761802.04,845936,862198,812336,106768]
[null,"CP",97226.99,610736,862198,845936,694768]
[null,"Investissement",{"$f":"C26","v":8163.6},{"$f":"D26","v":13000},13000,13000,3000]
[null,"AE",8163.6,13000,13000,13000,3000]
[null,"CP",8163.6,13000,13000,13000,3000]
[]
[null,"Solde budgétaire de l'exercice résultant des opérations fléchées (b) - (c)",{"$f":"C11-C17","v":2110290.7799999998},{"$f":"D11-D17","v":-774736},{"$f":"E11-E17","v":-1026198},-1009936,958203]
[null,null,null,"(1)"]
[null,null,null,"(1) repris au tableau \"Équilibre financier\" en (a) (tableau 4)"]
[null,null,null,{"$f":"IF(D28>=0,IF(ROUND(D28,-1)<>ROUND('4-tab_financier_ETAB'!G27,-1),\"! Incohérence Tab4\",\"\"),IF(-ROUND('8-tab recettes_fléchées_ETAB'!D28,-1)<>ROUND('4-tab_financier_ETAB'!M27,-1),\"! Incohérence Tab4\",\"\"))","v":""}]

{"sheet":"8-tab recettes_fléchées_PRINC","index":19,"n_rows":30,"n_cols":7,"rows_kept":30,"cut":false,"hidden":false,"merged":[[0,1,0,6],[1,1,1,6],[4,1,4,6]]}
[null,"Tableau 8 - Université de Bretagne Sud (0561718N) : Etablissement principal"]
[null,{"$f":"\"Opérations liées aux recettes fléchées - Budget \"&Maquette!B4&\" \"&Maquette!B5&\" \"&Maquette!B3","v":"Opérations liées aux recettes fléchées - Budget initial  2023"}]
[]
[]
[null,"POUR INFORMATION DE L'ORGANE DÉLIBÉRANT"]
[]
[]
[null,null,"Antérieures à N\nnon dénouées","N","N+1","N+2","N+3"]
[null,"Position de financement des opérations fléchées en début d'exercice (a)"]
[]
[null,"Recettes fléchées (b)",{"$f":"SUM(C13:C15)","v":2221464},{"$f":"SUM(D13:D15)","v":0},0,0,1777171]
[]
[null,"Financements de l'État fléchés",0,0,0,0,0]
[null,"Autres financements publics fléchés",2221464,0,0,0,1777171]
[null,"Recettes propres fléchées",0,0,0,0,0]
[]
[null,"Dépenses sur recettes fléchées (c)",{"$f":"C19+C21+C24","v":111173.22000000002},{"$f":"D19+D21+D24","v":774736},1026198,1009936,818968]
[]
[null,"Personnel",{"$f":"C20","v":5782.63},{"$f":"D20","v":151000},151000,151000,121200]
[null,"AE=CP",5782.63,151000,151000,151000,121200]
[null,"Fonctionnement et intervention",{"$f":"C23","v":97226.99},{"$f":"D23","v":610736},862198,845936,694768]
[null,"AE",761802.04,845936,862198,812336,106768]
[null,"CP",97226.99,610736,862198,845936,694768]
[null,"Investissement",{"$f":"C26","v":8163.6},{"$f":"D26","v":13000},13000,13000,3000]
[null,"AE",8163.6,13000,13000,13000,3000]
[null,"CP",8163.6,13000,13000,13000,3000]
[]
[null,"Solde budgétaire de l'exercice résultant des opérations fléchées (b) - (c)",{"$f":"C11-C17","v":2110290.7799999998},{"$f":"D11-D17","v":-774736},{"$f":"E11-E17","v":-1026198},-1009936,958203]
[null,null,null,"(1)"]
[null,null,null,"(1) repris au tableau \"Équilibre financier\" en (a) (tableau 4)"]

{"sheet":"8-tab recettes_fléchées_AGR","index":20,"n_rows":30,"n_cols":9,"rows_kept":30,"cut":false,"hidden":true,"merged":[[0,1,0,6],[1,1,1,6],[4,1,4,6]]}
[null,"Tableau 8 - Université de Bretagne Sud (0561718N) : Etablissement principal + Fondation"]
[null,{"$f":"\"Opérations liées aux recettes fléchées - Budget agrégé \"&Maquette!B4&\" \"&Maquette!B5&\" \"&Maquette!B3","v":"Opérations liées aux recettes fléchées - Budget agrégé initial  2023"}]
[]
[]
[null,"POUR INFORMATION DE L'ORGANE DÉLIBÉRANT"]
[]
[]
[null,null,"Antérieures à N\nnon dénouées","N","N+1","N+2","N+3"]
[null,"Position de financement des opérations fléchées en début d'exercice (a)"]
[]
[null,"Recettes fléchées (b)",{"$f":"SUM(C13:C15)","v":0},{"$f":"SUM(D13:D15)","v":0},0,0,0]
[]
[null,"Financements de l'État fléchés",null,null,null,null,null,{"$f":"IF(ROUND(D13,-1)<>ROUND('2-tab_aut_budg_AGR'!R19,-1),\"! Incohérence Financ. Etat fléchés avec Tab2 AGR\",\"\")","v":""},{"$f":"IF(ROUND(D13,-1)<>ROUND('3-tab_destination_origine_AGR'!H50,-1),\"! Incohérence Financ. Etat fléchés avec Tab3 AGR\",\"\")","v":""}]
[null,"Autres financements publics fléchés",null,null,null,null,null,{"$f":"IF(ROUND(D14,-1)<>ROUND('2-tab_aut_budg_AGR'!R20,-1),\"! Incohérence Autres financ. fléchés avec Tab2 AGR\",\"\")","v":""},{"$f":"IF(ROUND(D14,-1)<>ROUND('3-tab_destination_origine_AGR'!I50,-1),\"! Incohérence Autres financ. fléchés avec Tab3 AGR\",\"\")","v":""}]
[null,"Recettes propres fléchées",null,null,null,null,null,{"$f":"IF(ROUND(D15,-1)<>ROUND('2-tab_aut_budg_AGR'!R21,-1),\"! Incohérence Recettes propres fléchées avec Tab2 AGR\",\"\")","v":""},{"$f":"IF(ROUND(D15,-1)<>ROUND('3-tab_destination_origine_AGR'!J50,-1),\"! Incohérence Recettes propres fléchées avec Tab3 AGR\",\"\")","v":""}]
[]
[null,"Dépenses sur recettes fléchées (c)",{"$f":"C19+C21+C24","v":0},{"$f":"D19+D21+D24","v":0},0,0,0]
[]
[null,"Personnel",{"$f":"C20","v":0},{"$f":"D20","v":0},0,0,0]
[null,"AE=CP"]
[null,"Fonctionnement et intervention",{"$f":"C23","v":0},{"$f":"D23","v":0},0,0,0]
[null,"AE"]
[null,"CP"]
[null,"Investissement",{"$f":"C26","v":0},{"$f":"D26","v":0},0,0,0]
[null,"AE"]
[null,"CP"]
[]
[null,"Solde budgétaire de l'exercice résultant des opérations fléchées (b) - (c)",{"$f":"C11-C17","v":0},{"$f":"D11-D17","v":0},{"$f":"E11-E17","v":0},0,0]
[null,null,null,"(1)"]
[null,null,null,"(1) repris au tableau \"Équilibre financier\" en (a) (tableau 4)"]

{"sheet":"9-tab op_pluriannuelles_ETAB","index":21,"n_rows":101,"n_cols":17,"rows_kept":101,"cut":false,"hidden":false,"merged":[[73,2,73,3],[20,2,20,3],[21,2,21,3],[24,2,24,3],[25,2,25,3],[26,2,26,3],[27,2,27,3],[28,2,28,3],[29,2,29,3],[68,2,68,3],[69,2,69,3],[70,2,70,3],[71,2,71,3],[72,2,72,3],[67,2,67,3],[60,2,60,3],[74,2,74,3],[75,1,75,3],[76,1,76,3],[45,1,46,3],[45,4,46,4],[50,2,50,3],[49,2,49,3],[53,2,53,3],[54,1,54,3],[55,2,55,3],[57,2,57,3],[59,2,59,3],[63,2,63,3],[64,2,64,3],[65,2,65,3],[66,2,66,3],[45,6,45,9],[45,5,46,5],[47,2,47,3],[48,2,48,3],[51,2,51,3],[38,1,38,3],[39,1,39,3],[40,1,40,3],[61,1,61,3],[62,2,62,3],[52,2,52,3],[56,2,56,3],[58,2,58,3],[7,15,7,16],[9,2,9,3],[10,2,10,3],[13,2,13,3],[14,2,14,3],[12,2,12,3],[11,2,11,3],[0,1,0,12],[1,1,1,12],[2,1,2,6],[7,1,8,3],[7,4,8,4],[7,5,7,9],[7,10,7,14],[15,2,15,3],[16,1,16,3],[17,2,17,3],[18,2,18,3],[19,2,19,3],[96,2,96,15],[98,2,98,15],[100,2,100,15],[22,2,22,3],[23,1,23,3],[30,2,30,3],[92,1,92,15],[94,2,94,15],[31,2,31,3],[32,2,32,3],[33,2,33,3],[34,2,34,3],[35,2,35,3],[41,1,41,3],[36,2,36,3],[37,1,37,3]]}
[null,"Tableau 9 - Université de Bretagne Sud (0561718N) : Etablissement principal + Fondation"]
[null,{"$f":"\"Tableau des opérations pluriannuelles - Budget consolidé \"&Maquette!B4&\" \"&Maquette!B5&\" \"&Maquette!B3","v":"Tableau des opérations pluriannuelles - Budget consolidé initial  2023"}]
[null,"POUR VOTE DE L'ORGANE DÉLIBÉRANT"]
[]
[]
[null,"A - Dépenses"]
[]
[null,"Opérations",null,null,"Montant de l'opération","Autorisations d'engagement",null,null,null,null,"Crédits de paiement",null,null,null,null,"Restes"]
[null,null,null,null,null,"AE ouvertes < N ","Conso AE < N","Reports ou Reprogrammations N","AE nouvelles ouvertes N","Total AE N","CP ouverts < N","Conso CP < N","Reports ou Reprogrammations N","CP nouveaux ouverts N","Total CP  N","Restes à engager > N (AE)","Restes à payer > N sur AE consommées <= N (CP)"]
[null,"PFIRECHSAC","RECH SUBVENTIONS AVEC CONDITIONS",null,17061952.02,10558443.42,8825790.4600000009,0,5100890.04,{"$f":"H10+I10","v":5100890.04},10558443.42,8452679.0199999996,0,5100890.04,{"$f":"M10+N10","v":5100890.04},{"$f":"E10-G10-J10","v":3135271.5199999986},{"$f":"G10+J10-L10-O10","v":373111.44000000041}]
[null,"PFIRECHARE","RECH ALLOCATION DE RECHERCHE DOCTORALE",null,2233040.7999999998,1181084.48,1019145.91,0,591171.61,{"$f":"H11+I11","v":591171.61},1181084.48,1017860.87,0,591171.61,{"$f":"M11+N11","v":591171.61},{"$f":"E11-G11-J11","v":622723.27999999968},{"$f":"G11+J11-L11-O11","v":1285.0400000000373}]
[null,"PFIRECHCCR","RECH CONTRATS DE COLLABORATION",null,2039045.95,1294891.6600000001,996340.57,0,686627.16,{"$f":"H12+I12","v":686627.16},1294891.6599999999,976062.95,0,686627.16,{"$f":"M12+N12","v":686627.16},{"$f":"E12-G12-J12","v":356078.22},{"$f":"G12+J12-L12-O12","v":20277.619999999995}]
[null,"PFIRECHAUT","RECH CONTRATS AUTRES",null,213704.3,133804.54,97840.81,0,78606.66,{"$f":"H13+I13","v":78606.66},133804.54,84496.57,0,78606.66,{"$f":"M13+N13","v":78606.66},{"$f":"E13-G13-J13","v":37256.829999999987},{"$f":"G13+J13-L13-O13","v":13344.239999999991}]
[null,"PFIRECHCIF","RECH CONTRATS CIFRE",null,341946.89,113148.8,55867.39,0,128743.79,128743.79,113148.8,39209.33,0,128743.79,128743.79,157335.71000000002,16658.059999999983]
[null,"PFIRECHSSC","RECH SUBVENTIONS SANS CONDITIONS",null,53879.31,6551.7300000000005,4592.88,0,25775.86,25775.86,6551.7300000000005,2916.84,0,25775.86,25775.86,23510.57,1676.0400000000009]
[null,"PFIPIAHITR","PIA HIT VOLET RECHERCHE",null,864000,172068.43000000002,81551.08,0,322131.57,322131.57,172068.43000000002,71310.490000000005,0,322131.57,322131.57,460317.35000000003,10240.590000000026]
[null,"Total Contrats de recherche",null,null,{"$f":"SUM(E10:E16)","v":22807569.27},{"$f":"SUM(F10:F16)","v":13459993.060000001},{"$f":"SUM(G10:G16)","v":11081129.100000003},0,6933946.6900000004,{"$f":"SUM(J10:J16)","v":6933946.6900000013},{"$f":"SUM(K10:K16)","v":13459993.060000001},{"$f":"SUM(L10:L16)","v":10644536.069999998},0,6933946.6900000004,{"$f":"SUM(O10:O16)","v":6933946.6900000013},{"$f":"SUM(P10:P16)","v":4792493.4799999986},{"$f":"SUM(Q10:Q16)","v":436593.03000000044}]
[null,"PFIERASDIV","PROJETS UE ERASMUS +",null,1442382,785471,629623.97,0,656911,{"$f":"H18+I18","v":656911},785471,605968.64000000001,0,656911,{"$f":"M18+N18","v":656911},{"$f":"E18-G18-J18","v":155847.03000000003},{"$f":"G18+J18-L18-O18","v":23655.329999999958}]
[null,"PFIENSDIV","CONTRATS ENSEIGNEMENT DIVERS",null,27000,27000,19862.97,0,0,0,27000,62.73,0,0,0,7137.0299999999988,19800.240000000002]
[null,"PFIPIACOHY","PR CO-HY-B PLAN DE RELANCE ETAT",null,300000,292095,203591.86,0,7905,7905,292095,154363.75,0,7905,7905,88503.140000000014,49228.109999999986]
[null,"PFIERASCYB","PROJET UE ERASMUS+ CYBERUS",null,4442928,913537,775600.99,0,1009936,{"$f":"H21+I21","v":1009936},291937,111173.22,0,774736,{"$f":"M21+N21","v":774736},{"$f":"E21-G21-J21","v":2657391.0099999998},{"$f":"G21+J21-L21-O21","v":899627.77}]
[null,"PFIPIABRIO","PIA BRIO",null,862000,127599.99999999999,103085.7,0,146200,146200,127600.00000000001,101587.75,0,146200,146200,612714.30000000005,1497.9500000000116]
[null,"PFIANRFORM","ANR PROJET FORMAFLEX",null,273880,101656,72009.25,0,172224,172224,101656,72009.25,0,172224,172224,29646.75,0]
[null,"Total Contrats d'enseignement",null,null,{"$f":"SUM(E18:E23)","v":7348190},{"$f":"SUM(F18:F23)","v":2247359},{"$f":"SUM(G18:G23)","v":1803774.74},0,1993176,{"$f":"SUM(J18:J23)","v":1993176},{"$f":"SUM(K18:K23)","v":1625759},{"$f":"SUM(L18:L23)","v":1045165.34},0,1757976,{"$f":"SUM(O18:O23)","v":1757976},{"$f":"SUM(P18:P23)","v":3551239.26},{"$f":"SUM(Q18:Q23)","v":993809.39999999991}]
[null,"PPICVEC","PPI CVEC",null,2400000,382000,184110.3,0,2018000,{"$f":"H25+I25","v":2018000},190000,67868.47,0,1000000,{"$f":"M25+N25","v":1000000},{"$f":"E25-G25-J25","v":197889.70000000019},{"$f":"G25+J25-L25-O25","v":1134241.8299999996}]
[null,"CPERIFSYS","CPER 2021-2027 IF-SYS-MER / IRDL",null,970000,0,0,0,970000,970000,0,0,0,800000,800000,0,170000]
[null,"CPERBBB","CPER 2021-2027 BREST BAY BASE / LBCM",null,140000,0,0,0,140000,140000,0,0,0,140000,140000,0,0]
[null,"CPERBIA","CPER 2021-2027 BIOALTERNATIVES",null,378000,0,0,0,378000,378000,0,0,0,313000,313000,0,65000]
[null,"PRECERYC","PLAN DE RELANCE ETAT REHAB CERYC",null,3600000,3600000,3599223.83,0,0,0,3600000,3276970.37,0,0,0,776.16999999992549,322253.45999999996]
[null,"PREKERJU","PLAN DE RELANCE ETAT LED KERJULAUDE",null,110000,110000,109999.99,0,0,0,110000,109999.99,0,0,0,9.9999999947613105E-3,0]
[null,"SACUEREACT","FEDER REHAB ENERGETIQ PAQUEBOT",null,1949260,1949260,1949255.15,0,0,{"$f":"H31+I31","v":0},1659260,1129664.06,0,290000,{"$f":"M31+N31","v":290000},{"$f":"E31-G31-J31","v":4.8500000000931323},{"$f":"G31+J31-L31-O31","v":529591.08999999985}]
[null,"SACUEHYDRO","FEDER HYDROGENE STOCKAGE",null,350000,350000,0,0,0,0,105000,0,0,245000,245000,350000,-245000]
[null,"CPERGLAZ","CPER 2021-2027 GLAZ",null,60000,0,0,0,60000,60000,0,0,0,60000,60000,0,0]
[null,"CPERMATTR","CPER 2021-2027 Mat&Trans",null,80000,0,0,0,80000,80000,0,0,0,80000,80000,0,0]
[null,"CPERIDF","CPER 2021-2027 INDUSTRIE DU FUTUR",null,655000,145000,20834.5,0,510000,510000,90000,0,0,465000,465000,124165.5,65834.5]
[null,"CPERRACAM","CPER 2021-2027 RACAM",null,150000,0,0,0,150000,150000,0,0,0,100000,100000,0,50000]
[null,"CPERMSHB","CPER 2021-2027 MSHB",null,80000,0,0,0,54000,54000,0,0,0,54000,54000,26000,0]
[null,"Total Programme pluriannuels d'inv",null,null,{"$f":"SUM(E25:E37)","v":10922260},{"$f":"SUM(F25:F37)","v":6536260},{"$f":"SUM(G25:G37)","v":5863423.7699999996},0,4360000,{"$f":"SUM(J25:J37)","v":4360000},{"$f":"SUM(K25:K37)","v":5754260},{"$f":"SUM(L25:L37)","v":4584502.8900000006},0,3547000,{"$f":"SUM(O25:O37)","v":3547000},{"$f":"SUM(P25:P37)","v":698836.23000000021},{"$f":"SUM(Q25:Q37)","v":2091920.8799999994}]
[null,"Total",null,null,{"$f":"E17+E24+E38","v":41078019.269999996},{"$f":"F17+F24+F38","v":22243612.060000002},{"$f":"G17+G24+G38","v":18748327.610000003},0,13287122.689999999,{"$f":"J17+J24+J38","v":13287122.690000001},{"$f":"K17+K24+K38","v":20840012.060000002},{"$f":"L17+L24+L38","v":16274204.299999999},0,12238922.689999999,{"$f":"O17+O24+O38","v":12238922.690000001},{"$f":"P17+P24+P38","v":9042568.9699999988},{"$f":"Q17+Q24+Q38","v":3522323.3099999996}]
[null,"Ss total personnel",null,null,16998294.510000002,9691555.1600000001,8090760.75,0,4574116.55,{"$f":"H40+I40","v":4574116.55},9691555.1600000001,8090582.3499999996,0,4574116.55,{"$f":"M40+N40","v":4574116.55},{"$f":"E40-G40-J40","v":4333417.2100000018},{"$f":"G40+J40-L40-O40","v":178.40000000130385}]
[null,"Ss total fonctionnement",null,null,12031252.970000001,5208135.05,4174302.16,0,4062065.34,4062065.34,4586535.05,3098649.93,0,3826865.34,3826865.34,3794885.4700000007,1310852.2300000004]
[null,"Ss total investissement",null,null,12048471.789999999,7343921.8499999996,6483264.7000000002,0,4650940.8,4650940.8,6561921.8499999996,5084972.0199999996,0,3837940.8,3837940.8,914266.28999999911,2211292.6800000006]
[]
[]
[null,"B - Recettes"]
[null,"Opérations",null,null,"Montant de l'opération","Prélèvement sur la trésorerie","Financements extérieurs"]
[null,null,null,null,null,null,"Montant","Encaissements < N","Encaissements prévus N","Restes à encaisser > N"]
[null,"PFIRECHSAC","RECH SUBVENTIONS AVEC CONDITIONS",null,17061952.02,{"$f":"E48-G48","v":-311918.99000000209},17373871.010000002,8892539.2200000007,3772802.24,4708529.55]
[null,"PFIRECHARE","RECH ALLOCATION DE RECHERCHE DOCTORALE",null,2233040.7999999998,{"$f":"E49-G49","v":-35199.370000000112},2268240.17,813803.34,461920.16,992516.67]
[null,"PFIRECHCCR","RECH CONTRATS DE COLLABORATION",null,2039045.95,{"$f":"E50-G50","v":-316749.80999999982},2355795.7599999998,1259853.8500000001,668018.59,427923.32]
[null,"PFIRECHAUT","RECH CONTRATS AUTRES",null,213704.3,{"$f":"E51-G51","v":-6932.7000000000116},220637,93384,90875,36378]
[null,"PFIRECHCIF","RECH CONTRATS CIFRE",null,341946.89,-54711.589999999967,396658.48,160613.39000000001,105897.54,130147.55]
[null,"PFIRECHSSC","RECH SUBVENTIONS SANS CONDITIONS",null,53879.31,-8620.6900000000023,62500,25000,12500,25000]
[null,"PFIPIAHITR","PIA HIT VOLET RECHERCHE",null,864000,0,864000,161900,0,702100]
[null,"Total Contrats de recherche",null,null,22807569.27,{"$f":"SUM(F48:F54)","v":-734133.150000002},23541702.420000002,11407093.800000001,5112013.53,7022595.0899999999]
[null,"PFIERASDIV","PROJETS UE ERASMUS +",null,1442382,{"$f":"E56-G56","v":0},1442382,1306349.81,176011.86,-39979.67]
[null,"PFIENSDIV","CONTRATS ENSEIGNEMENT DIVERS",null,27000,{"$f":"E57-G57","v":0},27000,21600,3400,2000]
[null,"PFIPIACOHY","PR CO-HY-B PLAN DE RELANCE ETAT",null,300000,0,300000,300000,0,0]
[null,"PFIERASCYB","PROJET UE ERASMUS+ CYBERUS",null,4442928,{"$f":"E59-G59","v":0},4442928,2221464,0,2221464]
[null,"PFIPIABRIO","PIA BRIO",null,862000,0,862000,258867.12,86200,516932.88]
[null,"PFIANRFORM","ANR PROJET FORMAFLEX",null,273880,0,273880,82164,82164,109552]
[null,"Total Contrats d'enseignement",null,null,7348190,{"$f":"SUM(F56:F61)","v":0},7348190,4190444.93,347775.86,2809969.21]
[null,"PPICVEC","PPI CVEC",null,2400000,{"$f":"E63-G63","v":1245711.81},1154288.19,777984.19,146104,230200]
[null,"CPERIFSYS","CPER 2021-2027 IF-SYS-MER / IRDL",null,970000,0,970000,135000,630000,205000]
[null,"CPERBBB","CPER 2021-2027 BREST BAY BASE / LBCM",null,140000,0,140000,38700,36300,65000]
[null,"CPERBIA","CPER 2021-2027 BIOALTERNATIVES",null,378000,0,378000,56700,308300,13000]
[null,"PRECERYC","PLAN DE RELANCE ETAT REHAB CERYC",null,3600000,0,3600000,3600000,0,0]
[null,"PREKERJU","PLAN DE RELANCE ETAT LED KERJULAUDE",null,110000,0,110000,110000,0,0]
[null,"SACUEREACT","FEDER REHAB ENERGETIQ PAQUEBOT",null,1949260,{"$f":"E69-G69","v":149260},1800000,0,1080000,720000]
[null,"SACUEHYDRO","FEDER HYDROGENE STOCKAGE",null,350000,70000,280000,0,280000,0]
[null,"CPERGLAZ","CPER 2021-2027 GLAZ",null,60000,0,60000,0,43200,16800]
[null,"CPERMATTR","CPER 2021-2027 Mat&Trans",null,80000,0,80000,0,36000,44000]
[null,"CPERIDF","CPER 2021-2027 INDUSTRIE DU FUTUR",null,655000,0,655000,72900,329100,253000]
[null,"CPERRACAM","CPER 2021-2027 RACAM",null,150000,0,150000,0,65000,85000]
[null,"CPERMSHB","CPER 2021-2027 MSHB",null,80000,0,80000,0,36000,44000]
[null,"Total Programme pluriannuels d'inv",null,null,10922260,{"$f":"SUM(F63:F75)","v":1464971.81},9457288.1899999995,4791284.1900000004,2990004,1676000]
[null,"Total",null,null,{"$f":"+E55+E62+E76","v":41078019.269999996},{"$f":"+F55+F62+F76","v":730838.65999999805},{"$f":"+G55+G62+G76","v":40347180.609999999},{"$f":"+H55+H62+H76","v":20388822.920000002},{"$f":"I55+I62+I76","v":8449793.3900000006},{"$f":"J55+J62+J76","v":11508564.300000001}]
[]
[]
[]
[]
[]
[]
[]
[]
[]
[]
[]
[]
[null,"Différence Dépenses - Recettes",{"$f":"E39-E77","v":0}]
[]
[]
[null,"COMMENTAIRES SUR LES TABLEAUX DE SUIVI DES OPÉRATIONS PLURIANNUELLES"]
[]
[null,1,"Les opérations sont identifiées par un nom et un millésime ; elles peuvent ne pas être toutes individualisées et faire l'objet de regroupements, un niveau de détail suffisant au regard des caractéristiques de l'établissements devant néanmoins être maintenu ;"]
[]
[null,2,"Le degré d'exigence quant à la précision de l'évaluation, au budget initial, des reports prévisibles devra être fonction des contraintes qui pèsent sur les établissements pour établir ce chiffrage, notamment pour les contrats de recherche ;"]
[]
[null,3,"En recettes, une ligne sera maintenue, même après la fin d'une opération tant que la totalité des financements extérieurs n'a pas été recouvrée ;"]
[]
[null,4,"Pour les contrats de recherche, ne devra être indiquée au titre de l'autofinancement que, le cas échéant, la participation de l'établissement qui doit donner lieu à justification en application du contrat."]

{"sheet":"10-tab_op_pluri_détail_ETAB","index":22,"n_rows":46,"n_cols":28,"rows_kept":46,"cut":false,"hidden":false,"merged":[[24,15,24,16],[24,17,24,18],[28,8,28,9],[28,11,28,13],[29,2,29,4],[24,2,24,5],[24,10,24,11],[20,15,20,16],[20,17,20,18],[21,2,23,4],[21,10,21,11],[21,15,21,16],[21,17,21,18],[22,10,22,11],[22,15,22,16],[22,17,22,18],[23,10,23,11],[23,15,23,16],[23,17,23,18],[20,2,20,5],[20,10,20,11],[16,10,16,11],[16,15,16,16],[16,17,16,18],[17,2,19,4],[17,10,17,11],[17,15,17,16],[17,17,17,18],[18,10,18,11],[18,15,18,16],[18,17,18,18],[19,10,19,11],[19,15,19,16],[19,17,19,18],[16,2,16,5],[12,10,12,11],[12,15,12,16],[12,17,12,18],[13,2,15,4],[13,10,13,11],[13,15,13,16],[13,17,13,18],[14,10,14,11],[14,15,14,16],[14,17,14,18],[15,10,15,11],[15,15,15,16],[15,17,15,18],[12,2,12,5],[8,17,8,18],[10,15,10,16],[10,17,10,18],[11,10,11,11],[11,15,11,16],[11,17,11,18],[45,2,45,5],[30,2,32,4],[33,2,33,5],[34,2,36,4],[37,2,37,5],[38,2,40,4],[0,2,0,22],[41,2,41,5],[42,2,42,4],[43,2,43,4],[44,2,44,4],[9,2,11,4],[9,10,9,11],[9,15,9,16],[9,17,9,18],[10,10,10,11],[1,2,1,22],[7,8,7,20],[7,22,7,27],[8,2,8,4],[8,10,8,11],[8,15,8,16]]}
[null,null,"Tableau 10 - Université de Bretagne Sud (0561718N) : Etablissement principal + Fondation "]
[null,null,{"$f":"\"Tableau détaillé des opérations pluriannuelles et programmation - Budget consolidé \"&Maquette!B4&\" \"&Maquette!B5&\" \"&Maquette!B3","v":"Tableau détaillé des opérations pluriannuelles et programmation - Budget consolidé initial  2023"}]
[]
[null,null,"POUR INFORMATION DE L'ORGANE DÉLIBÉRANT"]
[null,null,"Suivi par opération (ou par regroupement d'opérations) des autorisations d'engagement, des crédits de paiement et des recettes"]
[]
[null,null,"A - Prévision d'autorisations d'engagement et de crédits de paiement"]
[null,null,"Prévisions d'AE et de CP",null,null,null,"Prévisions",null,"Prévisions N (BI + BR)",null,null,null,null,null,null,null,null,null,null,null,null,null,"Prévisions N+1 et suivantes"]
[null,null,"Opération",null,null,"Nature","Coût total de l'opération",null,"AE ouvertes < N","Conso AE < N","Reports ou Reprogrammations N",null,"AE nouvelles ouvertes N","Total AE  N","CP \nouverts\n< N               ","Conso CP < N",null,"Reports ou Reprogrammations N",null,"CP nouveaux ouverts N","Total CP  N",null,"AE prévues en N+1","CP prévus en N+1","AE prévues en N+2","CP prévus en N+2","AE prévues > N+2","CP prévus > N+2"]
[null,null,"Contrats de recherche",null,null,"Personnel",15070882.220000001,null,9222269.8699999992,7759272.1600000001,0,null,4091399.55,4091399.55,9222269.870000001,7759093.7599999998,null,0,null,4091399.55,4091399.55,null,1192880.96,1192880.96,471126.4,471126.4,93205.440000000002,93205.440000000002]
[null,null,null,null,null,"Fonctionnement",6752292.2599999998,null,3569878.34,2764369.7,0,null,2550606.34,2550606.34,3569878.34,2403365.5699999998,null,0,null,2550606.34,2550606.34,null,486112.1,486112.1,109096.15,109096.15,36599.33,36599.33]
[null,null,null,null,null,"Investissement",984394.79,null,667844.85,557487.24,0,null,291940.8,291940.8,667844.85,482076.74,null,0,null,291940.8,291940.8,null,18574.14,18574.14,6035,6035,0,0]
[null,null,"Total Contrats de recherche",null,null,null,{"$f":"SUM(G10:G12)","v":22807569.27},null,{"$f":"SUM(I10:I12)","v":13459993.059999999},{"$f":"SUM(J10:J12)","v":11081129.1},0,null,6933946.6900000004,6933946.6900000004,{"$f":"SUM(O10:O12)","v":13459993.060000001},{"$f":"SUM(P10:Q12)","v":10644536.07},null,0,null,6933946.6900000004,6933946.6900000004,null,1697567.2,1697567.2,586257.55000000005,586257.55000000005,129804.77,129804.77]
[null,null,"Contrats d'enseignement",null,null,"Personnel",1927412.29,null,469285.29,331488.59000000003,0,null,482717,482717,469285.29,331488.59000000003,null,0,null,482717,482717,null,214425,214425,487125,487125,273860,273860]
[null,null,null,null,null,"Fonctionnement",5238960.71,null,1638256.71,1409932.46,0,null,1497459,1497459,1016656.71,695284.36,null,0,null,1262259,1262259,null,884973,884973,978211,1011811,240061,1063261]
[null,null,null,null,null,"Investissement",181817,null,139817,62353.69,0,null,13000,13000,139817,18392.39,null,0,null,13000,13000,null,13000,13000,13000,13000,3000,3000]
[null,null,"Total Contrats d'enseignement",null,null,null,{"$f":"SUM(G14:G16)","v":7348190},null,{"$f":"SUM(I14:I16)","v":2247359},{"$f":"SUM(J14:J16)","v":1803774.74},0,null,1993176,1993176,{"$f":"SUM(O14:O16)","v":1625759},{"$f":"SUM(P14:Q16)","v":1045165.34},null,0,null,1757976,1757976,null,1112398,1112398,1478336,1511936,516921,1340121]
[null,null,"Programme pluriannuels d'inv",null,null,"Personnel",0,null,0,0,0,null,0,0,0,0,null,0,null,0,0,null,0,0,0,0,0,0]
[null,null,null,null,null,"Fonctionnement",40000,null,0,0,0,null,14000,14000,0,0,null,0,null,14000,14000,null,26000,26000,0,0,0,0]
[null,null,null,null,null,"Investissement",10882260,null,6536260,5863423.7699999996,0,null,4346000,4346000,5754260,4584502.8899999997,null,0,null,3533000,3533000,null,0,1595000,0,0,0,0]
[null,null,"Total Programme pluriannuels d'inv",null,null,null,{"$f":"SUM(G18:G20)","v":10922260},null,{"$f":"SUM(I18:I20)","v":6536260},{"$f":"SUM(J18:J20)","v":5863423.7699999996},0,null,4360000,4360000,{"$f":"SUM(O18:O20)","v":5754260},{"$f":"SUM(P18:Q20)","v":4584502.8899999997},null,0,null,3547000,3547000,null,26000,1621000,0,0,0,0]
[null,null,null,null,null,"Ss total Personnel",{"$f":"+G10+G14+G18","v":16998294.510000002},null,{"$f":"+I10+I14+I18","v":9691555.1599999983},8090760.75,0,null,4574116.55,4574116.55,{"$f":"O10+O14+O18","v":9691555.1600000001},8090582.3499999996,null,0,null,4574116.55,4574116.55,null,1407305.96,1407305.96,958251.4,958251.4,367065.44,367065.44]
[null,null,null,null,null,"Ss total Fonctionnement",{"$f":"+G11+G15+G19","v":12031252.969999999},null,{"$f":"+I11+I15+I19","v":5208135.05},4174302.16,0,null,4062065.34,4062065.34,4586535.05,3098649.9299999997,null,0,null,3826865.34,3826865.34,null,1397085.1,1397085.1,1087307.1499999999,1120907.1499999999,276660.33,1099860.33]
[null,null,null,null,null,"Ss total Investissement",{"$f":"+G12+G16+G20","v":12048471.789999999},null,{"$f":"+I12+I16+I20","v":7343921.8499999996},6483264.6999999993,0,null,4650940.8,4650940.8,6561921.8499999996,5084972.0199999996,null,0,null,3837940.8,3837940.8,null,31574.14,1626574.14,19035,19035,3000,3000]
[null,null,"TOTAL",null,null,null,{"$f":"SUM(G22:G24)","v":41078019.269999996},null,{"$f":"SUM(I22:I24)","v":22243612.059999995},{"$f":"SUM(J22:J24)","v":18748327.609999999},0,null,13287122.689999999,13287122.689999999,{"$f":"SUM(O22:O24)","v":20840012.060000002},{"$f":"SUM(P22:Q24)","v":16274204.299999999},null,0,null,12238922.689999999,12238922.689999999,null,2835965.2,4430965.2,2064593.55,2098193.5499999998,646725.77,1469925.77]
[]
[null,null,"B - Prévisions de recettes"]
[]
[null,null,"Prévisions de recettes",null,null,null,"Prévisions",null,"Prévisions N",null,null,"Prévisions en N+1 et suivantes"]
[null,null,"Opération",null,null,"Nature","Financement de l'opération",null,"Encaissements < N","Encaissements prévus N",null,"Encaissements prévus en N+1","Encaissements prévus en N+2","Encaissements prévus > N+2"]
[null,null,"Contrats de recherche",null,null,"Financement de l'Etat",5006996.12,null,1602415.41,715284.46,null,769862.15,373700.18,287074.8]
[null,null,null,null,null,"Autres financements publics",15153275.539999999,null,8218271.75,3440437.94,null,2281995.81,714317.8,243312]
[null,null,null,null,null,"Autres financements",3381430.76,null,1586406.64,956291.13,null,128905.84,0,0]
[null,null,"Total Contrats de recherche",null,null,null,{"$f":"SUM(G31:G33)","v":23541702.420000002},null,{"$f":"SUM(I31:I33)","v":11407093.800000001},5112013.53,null,3180763.8,1088017.98,530386.80000000005]
[null,null,"Contrats d'enseignement",null,null,"Financement de l'Etat",1162000,null,558600,86200,null,86200,344800,0]
[null,null,null,null,null,"Autres financements publics",6186190,null,3621882.44,261575.86,null,27388,0,2221464]
[null,null,null,null,null,"Autres financements",0,null,9962.49,0,null,0,0,0]
[null,null,"Total Contrats d'enseignement",null,null,null,{"$f":"SUM(G35:G37)","v":7348190},null,{"$f":"SUM(I35:I37)","v":4190444.93},347775.86,null,113588,344800,2221464]
[null,null,"Programme pluriannuels d'inv",null,null,"Financement de l'Etat",5739288.1900000004,null,4791284.1900000004,664004,null,53800,0,0]
[null,null,null,null,null,"Autres financements publics",3718000,null,0,2326000,null,672000,0,0]
[null,null,null,null,null,"Autres financements",0,null,0,0,null,0,0,0]
[null,null,"Total Programme pluriannuels d'inv",null,null,null,{"$f":"SUM(G39:G41)","v":9457288.1900000013},null,{"$f":"SUM(I39:I41)","v":4791284.1900000004},2990004,null,725800,0,0]
[null,null,null,null,null,"Ss total Financement de l'Etat",{"$f":"G31+G35+G39","v":11908284.310000001},null,{"$f":"I31+I35+I39","v":6952299.6000000006},1465488.46,null,909862.15,718500.18,287074.8]
[null,null,null,null,null,"Ss total Autres financements publics",{"$f":"G32+G36+G40","v":25057465.539999999},null,{"$f":"I32+I36+I40","v":11840154.189999999},6028013.7999999998,null,2981383.81,714317.8,2464776]
[null,null,null,null,null,"Ss total Autres financements",{"$f":"G33+G37+G41","v":3381430.76},null,{"$f":"I33+I37+I41","v":1596369.13},956291.13,null,128905.84,0,0]
[null,null,"TOTAL",null,null,null,{"$f":"SUM(G43:G45)","v":40347180.609999999},null,{"$f":"SUM(I43:I45)","v":20388822.919999998},8449793.3900000006,null,4020151.8,1432817.98,2751850.8]

{"sheet":"11-tab_UMR_ETAB","index":23,"n_rows":48,"n_cols":18,"rows_kept":48,"cut":false,"hidden":false,"merged":[[0,0,0,10],[1,0,1,10],[5,4,6,9],[8,0,9,1],[8,2,9,3],[9,4,9,5],[9,6,9,7],[9,8,9,9],[8,4,8,17],[9,10,9,11],[9,12,9,13],[9,14,9,15],[9,16,9,17],[10,0,12,0],[11,2,11,3],[11,4,11,5],[11,6,11,7],[11,8,11,9],[12,2,12,3],[12,4,12,5],[12,6,12,7],[12,8,12,9],[15,0,16,1],[15,2,16,3],[15,4,15,17],[16,4,16,5],[16,6,16,7],[16,8,16,9],[16,10,16,11],[16,12,16,13],[16,14,16,15],[16,16,16,17],[11,10,11,11],[11,12,11,13],[11,14,11,15],[11,16,11,17],[12,10,12,11],[12,12,12,13],[12,14,12,15],[12,16,12,17],[24,0,26,0],[25,2,25,3],[25,4,25,5],[25,6,25,7],[25,8,25,9],[19,10,19,11],[19,12,19,13],[19,14,19,15],[19,16,19,17],[22,0,23,1],[22,2,23,3],[22,4,22,17],[23,4,23,5],[23,6,23,7],[23,8,23,9],[23,10,23,11],[23,12,23,13],[23,14,23,15],[23,16,23,17],[17,0,19,0],[18,2,18,3],[18,4,18,5],[18,6,18,7],[18,8,18,9],[25,10,25,11],[25,12,25,13],[25,14,25,15],[25,16,25,17],[19,2,19,3],[19,4,19,5],[19,6,19,7],[19,8,19,9],[18,10,18,11],[18,12,18,13],[18,14,18,15],[18,16,18,17],[26,2,26,3],[26,4,26,5],[26,6,26,7],[26,8,26,9],[26,10,26,11],[26,12,26,13],[26,14,26,15],[26,16,26,17],[31,0,33,0],[32,2,32,3],[32,4,32,5],[32,6,32,7],[32,8,32,9],[29,0,30,1],[29,2,30,3],[29,4,29,17],[30,4,30,5],[30,6,30,7],[30,8,30,9],[30,10,30,11],[30,12,30,13],[30,14,30,15],[30,16,30,17],[32,10,32,11],[32,12,32,13],[32,14,32,15],[32,16,32,17],[33,2,33,3],[33,4,33,5],[33,6,33,7],[33,8,33,9],[33,10,33,11],[33,12,33,13],[33,14,33,15],[33,16,33,17],[38,0,40,0],[39,2,39,3],[39,4,39,5],[39,6,39,7],[39,8,39,9],[39,10,39,11],[39,12,39,13],[40,14,40,15],[40,16,40,17],[39,14,39,15],[36,0,37,1],[36,2,37,3],[36,4,36,17],[37,4,37,5],[37,6,37,7],[37,8,37,9],[37,10,37,11],[37,12,37,13],[37,14,37,15],[37,16,37,17],[45,0,47,0],[46,2,46,3],[46,4,46,5],[46,6,46,7],[46,8,46,9],[43,0,44,1],[43,2,44,3],[43,4,43,17],[44,4,44,5],[44,6,44,7],[44,8,44,9],[44,10,44,11],[44,12,44,13],[44,14,44,15],[44,16,44,17],[46,10,46,11],[46,12,46,13],[46,14,46,15],[47,16,47,17],[47,8,47,9],[47,10,47,11],[46,16,46,17],[47,2,47,3],[47,4,47,5],[47,6,47,7],[47,12,47,13],[47,14,47,15],[39,16,39,17],[40,2,40,3],[40,4,40,5],[40,6,40,7],[40,8,40,9],[40,10,40,11],[40,12,40,13]]}
["TABLEAU 11 - Université de Bretagne Sud (0561718N) : Etablissement principal + Fondation "]
[{"$f":"\"TABLEAU RETRAÇANT LES MOYENS DES UNITÉS MIXTES DE RECHERCHE - Budget consolidé \"&Maquette!B4&\" \"&Maquette!B5&\" \"&Maquette!B3","v":"TABLEAU RETRAÇANT LES MOYENS DES UNITÉS MIXTES DE RECHERCHE - Budget consolidé initial  2023"}]
[]
[]
["POUR  INFORMATION DE L'ORGANE DÉLIBÉRANT"]
[]
[]
[]
[null,null,"Moyens de l’établissement",null,"Moyens hors budget de l’établissement _2021"]
[null,null,null,null,"CNRS",null,"ENTSA Bretagne",null,"ENIB",null,"ubo"]
["IRDL\nUMR 6027","Personnel",105,"Emplois ",1,"Emplois",46,"Emplois",10,"Emplois",20,"Emplois",null,"Emplois",null,"Emplois",null,"Emplois"]
[null,"Fonctionnement \n(dotation sur SCSP)",116500,null,107000,null,102000,null,"Statut Partenaire pas de dotation affichée ",null,22000]
[null,"Investissement\n(PPI recherche)"]
[]
[]
[null,null,"Moyens de l’établissement",null,"Moyens hors budget de l’établissement"]
[null,null,null,null,"CNRS",null,"UNIV Rennes 1",null,"INSA",null,"INRIA"]
["IRISA \nUMR 6074","Personnel",40.5,"Emplois ",54.6,"Emplois",239.75,"Emplois",37,"Emplois",255.4,"Emplois",null,"Emplois",null,"Emplois",null,"Emplois"]
[null,"Fonctionnement \n(dotation sur SCSP)",41500,null,230000,null,293191,null,15277,null,342000]
[null,"Investissement\n(PPI recherche)",null,null,null,null,null,null,23223]
[]
[]
[null,null,"Moyens de l’établissement",null,"Moyens hors budget de l’établissement"]
[null,null,null,null,"CNRS",null,"ENIB",null,"ENSTA Bretagne",null,"IMT Atlantique",null,"UBO"]
["Lab-STICC \nUMR 6285","Personnel",38.200000000000003,"Emplois ",7.9,"Emplois",26.05,"Emplois",40,"Emplois",113.5,"Emplois",76.45,"Emplois",null,"Emplois",null,"Emplois"]
[null,"Fonctionnement \n(dotation sur SCSP)",50500,null,70000,null,52200,null,56000,null,83625,null,91280]
[null,"Investissement\n(PPI recherche)",30000]
[]
[]
[null,null,"Moyens de l’établissement",null,"Moyens hors budget de l’établissement"]
[]
["LGO             \nUMR 6538","Personnel",null,"Emplois ",null,"Emplois",null,"Emplois",null,"Emplois",null,"Emplois",null,"Emplois",null,"Emplois",null,"Emplois"]
[null,"Fonctionnement \n(dotation sur SCSP)"]
[null,"Investissement\n(PPI recherche)"]
[]
[]
[null,null,"Moyens de l’établissement",null,"Moyens hors budget de l’établissement"]
[null,null,null,null,"CNRS"]
["LMBA                      \nUMR 6205","Personnel",2,"Emplois ",0,"Emplois",null,"Emplois",null,"Emplois",null,"Emplois",null,"Emplois",null,"Emplois",null,"Emplois"]
[null,"Fonctionnement \n(dotation sur SCSP)",33000,null,12000]
[null,"Investissement\n(PPI recherche)"]
[]
[]
[null,null,"Moyens de l’établissement",null,"Moyens hors budget de l’établissement"]
[null,null,null,null,"Université d'Angers",null,"Le Mans Université",null,"CNRS-INSHS"]
["TEMOS \nUMR 9016","Personnel",null,"Emplois ",1.5,"Emplois",0.5,"Emplois",2,"Emplois",null,"Emplois",null,"Emplois",null,"Emplois",null,"Emplois"]
[null,"Fonctionnement \n(dotation sur SCSP)",null,null,33500,null,22200,null,30000]
[null,"Investissement\n(PPI recherche)"]

{"sheet":"Annexe Synthèse_ETAB","index":24,"n_rows":63,"n_cols":8,"rows_kept":63,"cut":false,"hidden":false,"merged":[[62,3,62,4],[0,0,0,8],[56,5,56,6],[57,3,57,4],[57,5,57,6],[58,5,58,6],[59,5,59,6],[61,3,61,4],[45,3,45,4],[46,5,46,6],[47,5,47,6],[49,3,49,4],[51,3,51,4],[53,1,59,1],[53,3,53,4],[55,3,55,4],[25,3,25,4],[55,5,55,6],[56,3,56,4],[31,3,31,4],[37,3,37,4],[37,5,37,6],[38,5,38,6],[39,5,39,6],[41,3,41,4],[14,3,14,4],[16,3,16,4],[17,3,17,4],[18,3,18,4],[20,3,20,4],[1,0,1,8],[38,8,39,8],[43,3,43,4],[46,8,47,8],[6,1,12,1],[6,3,6,4],[6,5,6,6],[8,3,8,4],[8,5,8,6],[9,3,9,4],[9,5,9,6],[10,3,10,4],[10,5,10,6],[11,5,11,6],[12,5,12,6],[14,1,51,1]]}
["ANNEXE 5 - Université de Bretagne Sud (0561718N) : Etablissement principal + Fondation"]
[{"$f":"\"Synthèse budgétaire et comptable - Budget consolidé \"&Maquette!B4&\" \"&Maquette!B5&\" \"&Maquette!B3","v":"Synthèse budgétaire et comptable - Budget consolidé initial  2023"}]
[]
[null,"POUR INFORMATION DE L'ORGANE DÉLIBÉRANT"]
[]
[null,null,null,null,null,null,null,{"$f":"IF(Maquette!B4=\"initial\",\"BI \"&Maquette!B5,IF(Maquette!B4=\"rectificatif\",\"BR \"&Maquette!B5,\"\"))","v":"BI "}]
[null,"Stocks initiaux",null,1,null,"Niveau initial de restes à payer",null,5508714.3900000015]
[]
[null,null,null,2,null,"Niveau initial du fonds de roulement",null,{"$f":"'6-tab CR_TF_ETAB'!H49","v":12189108.680000009}]
[null,null,null,3,null,"Niveau initial du besoin en fonds de roulement",null,{"$f":"H9-H11+0.06","v":-776867.48999999138}]
[null,null,null,4,null,"Niveau initial de la trésorerie",null,{"$f":"'6-tab CR_TF_ETAB'!H51","v":12965976.23}]
[null,null,null,null,"4.a","dont niveau initial de la trésorerie fléchée",null,1929527]
[null,null,null,null,"4.b","dont niveau initial de la trésorerie non fléchée",null,11036449.059999984]
[]
[null,"Flux de l'année",null,5,null,"Autorisations d'engagement",null,{"$f":"'2-tab_aut_budg_ETAB'!K28","v":104614991.25}]
[]
[null,null,null,6,null,"Résultat patrimonial",null,{"$f":"IF('6-tab CR_TF_ETAB'!F14>0,'6-tab CR_TF_ETAB'!F14,-'6-tab CR_TF_ETAB'!L14)","v":-1060087}]
[null,null,null,7,null,"Capacité d'autofinancement (CAF)",null,{"$f":"'6-tab CR_TF_ETAB'!F28","v":1449255}]
[null,null,null,8,null,"Variation du fonds de roulement",null,{"$f":"'6-tab CR_TF_ETAB'!L46","v":-3616137}]
[]
[null,null,null,9,"9.a","Opérations bilancielles non budgétaires","SENS",{"$f":"SUM(H22:H24)","v":0}]
[null,null,null,null,null,"Nouvel emprunt / remboursement de prêt","+ / -"]
[null,null,null,null,null,"Remboursement d'emprunt / prêt accordé","+"]
[null,null,null,null,null,"Cautionnements et dépôts","-",{"$f":"'7-tab Plan_tréso_ETAB'!O22-'7-tab Plan_tréso_ETAB'!O42","v":0}]
[]
[null,null,null,10,"9.a","Opérations comptables non retraitées par la CAF, non budgétaires","SENS",{"$f":"SUM(H27:H30)","v":0}]
[null,null,null,null,null,"Variation des stocks","+ / -"]
[null,null,null,null,null,"Production immobilisée","+"]
[null,null,null,null,null,"Charges sur créances irrécouvrables","-"]
[null,null,null,null,null,"Produits divers de gestion courante","+"]
[]
[null,null,null,11,"9.b","Décalages de flux de trésorerie liés aux opérations budgétaires","SENS",{"$f":"H34-H36","v":692058.28999999166}]
[null,null,null,null,null,"Ecart entre les produits / ressources et les encaissements relatifs à des opérations sur exercices antérieurs","+ / -"]
[null,null,null,null,null,"Ecart entre les produits / ressources et les encaissements relatifs à des opérations de l'exercice en cours","+ / -",1081058.0399999917]
[null,null,null,null,null,"Ecart entre les charges / immobilisations et les décaissements relatifs à des opérations sur exercices antérieurs","+ / -"]
[null,null,null,null,null,"Ecart entre les charges / immobilisations et les décaissements relatifs à des opérations de l'exercice en cours","+ / -",388999.75]
[]
[null,null,null,12,null,"Solde budgétaire = 8 - 9 - 10 - 11",null,{"$f":"H19-H26-H32-H21","v":-4308195.2899999917}]
[null,null,null,null,"12.a","Recettes budgétaires",null,{"$f":"'2-tab_aut_budg_ETAB'!R28","v":98798595.960000008}]
[null,null,null,null,"12.b","Crédits de paiement ouverts",null,{"$f":"'2-tab_aut_budg_ETAB'!L28","v":103106791.25}]
[]
[null,null,null,13,"9.c","Flux de trésorerie liés aux opérations au nom et pour le compte de tiers",null,{"$f":"'4-tab_financier_ETAB'!M20-'4-tab_financier_ETAB'!G20","v":-375920}]
[]
[null,null,null,14,"9.c","Flux de trésorerie liés aux autres encaissements / décaissements sur comptes de tiers (non budgétaires)",null,{"$f":"'4-tab_financier_ETAB'!M22-'4-tab_financier_ETAB'!G22","v":0}]
[]
[null,null,null,15,null,"Variation de la trésorerie = 12 - 13 - 14",null,{"$f":"H38+H42-H44","v":-4684115.2899999917}]
[null,null,null,null,"15.a","dont variation de la trésorerie fléchée",null,{"$f":"'4-tab_financier_ETAB'!G27-'4-tab_financier_ETAB'!M27","v":-774736}]
[null,null,null,null,"15.b","dont variation de la trésorerie non fléchée",null,{"$f":"'4-tab_financier_ETAB'!G29-'4-tab_financier_ETAB'!M29","v":-3909379.2899999917}]
[]
[null,null,null,16,null,"Variation du besoin en fonds de roulement = 9 + 10 + 11 - 13 + 14",null,{"$f":"H26+H32-H42+H21+H44","v":1067978.2899999917}]
[]
[null,null,null,17,null,"Restes à payer",null,{"$f":"H15-H40","v":1508200}]
[]
[null,"Stocks finaux",null,18,null,"Niveau final de restes à payer",null,{"$f":"H7+H52","v":7016914.3900000015}]
[]
[null,null,null,19,null,"Niveau final du fonds de roulement",null,{"$f":"H9+H19","v":8572971.680000009}]
[null,null,null,20,null,"Niveau final du besoin en fonds de roulement",null,{"$f":"H56-H58","v":291110.74000000022}]
[null,null,null,21,null,"Niveau final de la trésorerie",null,{"$f":"H11+H46","v":8281860.9400000088}]
[null,null,null,null,"21.a","dont niveau final de la trésorerie fléchée",null,{"$f":"H12+H47","v":1154791}]
[null,null,null,null,"21.b","dont niveau final de la trésorerie non fléchée",null,{"$f":"H13+H48","v":7127069.7699999921}]
[]
[null,null,null,null,null,"Comptabilité budgétaire"]
[null,null,null,null,null,"Comptabilité générale"]

{"sheet":"Annexe PAA_ETAB","index":25,"n_rows":37,"n_cols":25,"rows_kept":37,"cut":false,"hidden":false,"merged":[[29,1,30,8],[33,1,34,8],[0,1,0,24],[1,1,1,24],[3,1,3,9],[3,19,3,23],[4,4,4,5],[4,11,5,11],[4,20,4,21]]}
[null,"ANNEXE 14 - Université de Bretagne Sud (0561718N) : Etablissement principal + Fondation "]
[null,"Plan d'actions achat - Prévisionnel"]
[]
[null,"Identité du projet ",null,null,null,null,null,null,null,null,"Mutualisation du besoin ",null,null,null,null,"Objectif de gain achat",null,null,null,"Autres objectifs de politique publique",null,null,null,null,"Suivi du marché"]
[null,"Code CPV à 2 positions","Niveau le plus fin de votre nomenclature achat","Objet du marché, du marché subséquent ou de l'action de progrès","Type de leviers utilisés \nindiquer maximum 2 leviers\n",null,"Date de notification prévisionnelle","Durée du contrat en mois (reconductions comprises)","Volume des achats prévisionnel \nen euros HT","Renouvellement \n(R) ou nouveau marché (N) ","Marché subséquent d'un accord-cadre (O/N)","Accord-cadre avec des entités extérieures (O/N) \nvoir ci-dessous","Groupement de commande (O/N)\nvoir ci-dessous","Recours à un marché du SAE (O/N)","Recours à une centrale d'achats UGAP/AMUE (O/N)","Performance de l'acheteur en  prévisionnel sur la durée totale du marché\n(en euros HT)","Pourcentage ","Chiffre d'affaires attendu\n base 12 mois  \nen euros HT","Performance de l'acheteur\nbase 12 mois","Rédaction du contrat adaptée à une PME (O/N)","Projet ouvert à des achats innovants (O/N)",null,"Intégration de clauses environnementales (O/N)\nvoir ci-dessous","Intégration de clauses sociales (O/N)\nvoir ci-dessous","Points d'attention"]
[null,null,null,null,null,null,null,null,null,null,null,null,null,null,null,null,null,null,null,null,"oui ou non","si oui indiquer les coordonnées de l'acheteur (nom, prénom, adresse électronique)"]
[null,55520000,"CB 21","Prestations de services ; cocktails Lorient","juste besoin","suivi fournisseur","2023-02-01",48,null,"R","N","N","N","N","N",null,null,null,null,"N","Non",null,"O","N"]
[null,55520000,"CB 21","Prestations de services ; cocktails Vannes","juste besoin","suivi fournisseur","2023-02-01",48,null,"R","N","N","N","N","N",null,null,null,null,"N","Non",null,"O","N"]
[null,55520000,"CB 21","Prestations de services ; plateaux repas Lorient","juste besoin","suivi fournisseur","2023-02-01",48,null,"R","N","N","N","N","N",null,null,null,null,"N","Non",null,"O","N"]
[null,55520000,"CB 21","Prestations de services ; plateaux repas Vannes","juste besoin","suivi fournisseur","2023-02-01",48,null,"R","N","N","N","N","N",null,null,null,null,"N","Non",null,"O","N"]
[null,32232000,"IE 02","Système de Visioconférences","juste besoin","suivi fournisseur","2023-03-01",48,null,"R","N","N","N","N","N",null,null,null,null,"N","Non",null,"N","N"]
[null,30121100,"AC 21 AC 22","Location/maintenance photocopieurs","juste besoin","suivi fournisseur","2023-03-01",48,null,"R","O","O","N","N","N",null,null,null,null,"N","Non",null,"N","N"]
[null,30100000,"IA 21","Location/maintenance imprimantes","juste besoin","suivi fournisseur","2023-03-01",48,null,"R","O","O","N","N","N",null,null,null,null,"N","Non",null,"N","N"]
[null,64210000,"II 01","Abonnements et communications téléphoniques","juste besoin","suivi fournisseur","2023-03-26",48,null,"R","N","N","N","N","N",null,null,null,null,"N","Non",null,"N","N"]
[null,45259000,"BE 15","Maintenance Chauffage, ventilation, traitement d'eau","juste besoin","suivi fournisseur","2023-05-01",48,null,"R","N","N","N","N","N",null,null,null,null,"N","Non",null,"O","N"]
[null,45259000,"BE 15","Maintenance Clim de confort et locaux sensibles","juste besoin","suivi fournisseur","2023-05-01",48,null,"R","N","N","N","N","N",null,null,null,null,"N","Non",null,"O","N"]
[null,45259000,"BE 15","Maintenance des systèmes de sécurité incendie, désenfumage","juste besoin","suivi fournisseur","2023-05-01",48,null,"R","N","N","N","N","N",null,null,null,null,"N","Non",null,"O","N"]
[null,90911200,"BB 11","Nettoyage locaux Bâtiment Yves Coppens Campus Tohannic","juste besoin","suivi fournisseur","2023-12-01",48,null,"R","N","N","N","N","N",null,null,null,null,"N","Non",null,"O","N"]
[null,22113000,"CE 01","Fournitures d'ouvrages en langue française","juste besoin","suivi fournisseur",45261,48,null,"R","N","N","N","N","N",null,null,null,null,"N","Non",null,"N","N"]
[null,22113000,"CE 01","Fournitures d'ouvrages en langue étrangère","juste besoin","suivi fournisseur",45261,48,null,"R","N","N","N","N","N",null,null,null,null,"N","Non",null,"O","N"]
[null,30190000,"AB 01","Fournitures de bureaux","juste besoin","suivi fournisseur",45261,48,null,"R","N","N","N","N","N",null,null,null,null,"N","Non",null,"O","N"]
[null,79713000,"BC 01","Gradiennage des locaux","juste besoin","suivi fournisseur",45261,48,null,"R","N","N","N","N","N",null,null,null,null,"N","Non",null,"N","N"]
[null,null,null,null,null,null,null,null,null,null,null,null,null,null,null,null,null,"Total : "]
[null,"Pour les procédures portées par l'établissement, accords-cadres  comme  groupements de commande, merci d'indiquer ici ",null,null,null,null,null,null,null,null,null,null,null,null,null,null,null,null,"Objectif : X %"]
[null,"(si porteur de plusieurs accords-cadres ou groupement de commande, remettre l'objet avec le noms des autres parties prenantes) : "]
[null,null,"noms des établissements parties prenantes à la procédure : ",null,null,null,null,null,null,null,null,null,null,null,null,null,null,null,"du montant annuel des achats (HT)"]
[]
[]
[null,"Commentaires sur les clauses sociales (freins et accélérateurs à l'intégration de clauses, recrutement de personnel handicapé…) :"]
[]
[]
[]
[null,"Commentaires sur les clauses environnementales (freins et accélérateurs à l'intégration de clauses…) :"]
[]
[]
[]
[null,"Actions de structuration de la fonction achat lancées en N-1 (recrutement d'un référent \"développement durable\", d'acheteurs experts…) "]

{"sheet":"Annexe immo_ETAB ","index":26,"n_rows":40,"n_cols":9,"rows_kept":40,"cut":false,"hidden":false,"merged":[[21,1,21,2],[1,1,1,15],[2,1,2,15],[7,3,7,5],[7,8,7,15],[8,8,38,15],[11,1,11,2],[12,1,12,2],[13,1,13,2],[14,1,14,2],[15,1,15,2],[16,1,16,2],[17,1,17,2],[18,1,18,2],[19,1,19,2],[20,1,20,2],[38,1,38,2],[26,1,26,2],[27,1,27,2],[28,1,28,2],[31,1,31,2],[34,1,34,2],[37,1,37,2]]}
[]
[null,"ANNEXE 15 - Université de Bretagne Sud (0561718N) : Etablissement principal + Fondation "]
[null,"Annexe immobilière"]
[]
[null,"POUR INFORMATION DE L'ORGANE DÉLIBÉRANT"]
[]
[]
[null,"Opérateur : Université Bretagne Sud ",null,"Réunion de l'organe délibérant du 14 décembre 2021",null,null,null,null,"Commentaires portant sur la stratégie immobilière de l'établissement :\n(notamment sur l'avancement des opérations prévues dans le SPSI, la levée des réserves de France Domaine ou du CIE,  les économies réalisées ou programmées,...)"]
[null,null,null,null,null,null,null,null,"L'Université a libéré de manière définitive, à l'été 2018, les dernières surfaces qu'elle occupait au sein du bâtiment Pôle de Formations Sanitaires et Sociales (PFSS) à Lorient. L'usage de ce bâtiment de 6135m2 de SHON se répartit désormais exclusivement entre deux utilisateurs tiers (l'IFPS de Lorient et l'organisme de formations Askoria). Pour autant, ce bâtiment propriété de l'État est confié en gestion à l'UBS via les conventions d'utilisation passées avec France-Domaine. N'ayant plus d'intérêt à conserver ce bâtiment, le CA de l'Université a pris une délibération, le 14 décembre 2018, approuvant l'inutilité de ce bien pour l'Établissement. Le Centre Hospitalier Bretagne Sud, dont dépend l'IPFS de Lorient, avait marqué son souhait d'acquérir ce bâtiment. Les services des domaines sont mobilisés en vue de la réalisation de cette cession, mais la situation sanitaire 2020 a ralenti le processus, qui n'est pas encore abouti.\n\nPar ailleurs, et dans un contexte de doublement des groupes accueillis sur la filière cyber-défense de l'ENSIBS, des espaces au sein de la délégation de Vannes de la CCI du Morbihan lui sont mises à disposition dans le cadre d'une Convention d'Occupation Temporaire. Ce site est limitrophe du campus de Tohannic. La surface occupée sur l'année universitaire 2020/2021 était de 560m2 pour un coût de 56k€ par an (afin d''y positionner la troisième année de la filière cyber-défense), A la rentrée 2021/2022, une surface complémentaire de 326m2 est occupée pour accueillir les étudiants de  seconde année de cette même filière. Le coût global de cette occupation passe ainsi à hauteur de 90k€.\nIl est à souligner que le site de la délégation vannetaise de la CCI a été racheté par Golfe du Morbihan - Vannes Agglomération, en novembre 2021, dans le cadre de la réalisation du projet de pôle numérique de Vannes prévu au CPER 2021-2027. Les conditions d'utilisation de ces espaces sont à redéfinir en lien avec la Collectivité, une fois cette cession opérée.\n\nEn termes de travaux structurants, l'opération de réhabilitation de l'IUT de Lorient inscrite au CPER2015-2020 avait débuté en 2018 par la réfection complète de l'étanchéité et de l'isolation des toitures-terrasses du bâtiment HSE. Elle s'est poursuivie et achevée sur l'année universitaire 2019/2020 par la réhabilitation énergétique et gros-entretien de ce même bâtiment, ainsi que la rénovation des toitures-terrasses du bâtiment GIM.\nDe même, ont été terminés sur l'exercice 2020 les travaux de réhabilitation du bâtiment ENSIBS de Vannes, eux-aussi inscrits au CPER 2015-2020.  \nAinsi, à fin 2020, l'ensemble des opérations bâtimentaires du CPER 2015-2020 confiées en maîtrise d'ouvrage à l'UBS était achevé.\n\nL'année 2021 est, pour sa part, fortement structurée autour de la réalisation des opérations d'amélioration de la performance énergétique lauréates du plan de relance de l'économie déployé par l'Etat. Dans ce cadre, l'UBS a obtenu une dotation globale de 3,860 M€ se répartissant entre :\n- la réhabilitation énergétique du bâtiment Coppens à Vannes, pour un montant de 3,750M€. Les travaux, qui seront pour plus de la moitié terminés fin 2021, portent sur l'isolation thermique par l'extérieur des façades, le remplacement des menuiseries extérieures, le reprise de l'isolation des toitures, le remplacement des chaudières, la mise en place d'une installation de production d'électricité photovoltaïque en toiture, ainsi que la migration Led des éclairages.\n- la migration Led des éclairages des bâtiments Sciences 2 et Kerjulaude à Lorient, accomplie au premier semestre 2021, pour un montant total de 110 k€. \n\nL'année 2021 est également marquée par le lancement des études de réhabilitation énergétique du bâtiment Paquebot à Lorient, qui bénéficie de financements européens du programme React-EU à hauteur de 1,8M€. Les travaux sont prévus sur 2022.\nAprès études de faisabilité orientant le projet d'aménagement d'espaces de sport, vie étudiante et culturelle vers l'ancien gymnase de Kerjulaude, ce projet sera mené sur 2022, intégrant un transfert de propriété de ce site appartenant à Lorient-Agglomération vers l'UBS. Cette opération mobilise pour partie des crédits CVEC.\nEnfin, le projet de SPSI portant sur la période 2021/2025 a été adressé aux entités ayant à formuler un avis avant approbation de ce Schéma Directeur, \n\nD'un point de vue des dépenses de fonctionnement, 2021 connait des niveaux normalement t rencontrés les années antérieures, après un exercice 2020 en décrue du fait de la pandémie Covid. Une vigilance particulière concernera le budget de fonctionnement 2022 à l'aune de la forte hausse actuelle des prix de l'électricité et du gaz (ce poste représentant, avant les actuelles augmentation conjoncturelles, une charge de l'ordre de 1M€ par an)."]
[null,null,null,null,"exécution (année 2021)","dernier BR (année 2022)"]
[null,"Données physiques"]
[null,"Nombre de bâtiments occupés",null,"X",22,22]
[null,"dont biens propres",null,"X",1,1]
[null,"dont biens domaniaux",null,"X",21,21]
[null,"dont prises à bail",null,"X",0,0]
[null,"dont autres mises à disposition (ex. : collectivités territoriales)",null,"X",0,0]
[null,"Surface totale occupée (m² - SUB)",null,"X",96151,95591]
[null,"dont biens propres",null,"X",934,934]
[null,"dont biens domaniaux",null,"X",94657,94657]
[null,"dont prises à bail",null,"X"]
[null,"dont autres mises à disposition (ex. : collectivités territoriales)",null,"X",560]
[null,"Ratio m² SUN / poste de travail (*)",null,"X"]
[]
[]
[null,null,null,"classe de compte (n°)","exécution \n(N-1)","dernier BR\n (N)"]
[null,"Dépenses de fonctionnement à l'€ près"]
[null,"Redevances de crédit-bail immobilier (*)",null,6125,0,0]
[null,"Locations immobilières (*)",null,6132,110548.46,152582.04]
[null,"Entretien et réparations sur biens immobiliers (*)",null,6152,380739.38,394619.8]
[]
[null,"Dépenses d'acquisition à l'€ près"]
[null,"Acquisition de biens propres ou de biens domaniaux",null,"X",0,50000]
[]
[null,"Dépenses d'investissement à l'€ près"]
[null,"Réalisation de travaux structurants sur les biens propres ou domaniaux",null,"X",4375169,2615865]
[]
[null,"Produits de cession d'immobilisations corporelles à l'€ près"]
[null,"dont biens propres",null,7752,0,0]
[null,"dont biens domaniaux",null,7752,0,0]
[null,"(*) Les données sont disponibles à la saisie dans le système d'informations des opérateurs de l'Etat (SI OPE)"]